Workbook

Sheet Info
A1: FALSE | B1: Ende
A2: Ende | B2: Info
B3: Ende
B10: Kosten- und Leistungsrechnung
B11: für die kommunale Abwasserentsorgung in der Steiermark
C13: Version 09/2025
G14: =CONCATENATE("Rechnungsabschlussjahr: "&BAB!J13) -> Rechnungsabschlussjahr: 2024
C16: Bezeichnung der KLR-Ebene (Gemeinde, AWV, AWG, etc.): | G16: Stichtag | I16: Ansatz
G17: 2024-12-31 | I17: 851
C18: 8179.26 | E18: =DATE(G18,1,1) -> 2024-01-01 | G18: =YEAR(wST.PeriodeEnde) -> 2024
C19: 9623.94
C21: Erstellungsdatum:
C22: Dateneingabe durch:
C23: Funktion:
C25: Der Ersteller / die Erstellerin erklärt, die nachfolgenden Nutzungsbedingungen akzeptiert zu haben.
C29: Herausgeber
C31: Amt der Steiermärkischen Landesregierung, Abteilung 14, Referat Siedlungswasserwirtschaft
C32: Wartingergasse 43, 8010 Graz
C34: Gemeindebund Steiermark
C35: Stadionplatz 2, 8041 Graz
C37: Inhaltliche Bearbeitung
C39: Amt der Steiermärkischen Landesregierung, Abteilung 14
C41: Gemeindebund Steiermark
C43: Programmierung der Arbeitsmappe
C45: Quantum - Institut für betriebswirtschaftliche Beratung GmbH
C47: Haftungsausschluss
C49: Eine Haftung der Herausgeber für Schäden aufgrund von Fehlern in der gegenständlichen Excel-Arbeitsmappe wird ausgeschlossen. Die Ergebnisse sind auf Plausibilität zu prüfen.
C51: Nutzungsbedingungen
C53: Die gegenständliche Excel-Arbeitsmappe steht den Abwasserentsorgern in der Steiermark kostenlos zur Verfügung. Eine Nutzung außerhalb der Steiermark ist nicht zulässig.
C55: Heranzuziehendes Rechnungsjahr
C57: Für die Bearbeitung der gegenständlichen Excel-Arbeitsmappe ist der zuletzt genehmigte Rechnungsabschluss (Jahresabschluss) heranzuziehen.

Sheet BÜB
A1: FALSE | B1: FALSE | C1: FALSE | D1: FALSE | E1: TRUE | F1: TRUE | G1: TRUE | H1: TRUE | I1: TRUE | J1: TRUE | K1: =wBÜ.View -> TRUE | L1: =wBÜ.View -> TRUE | M1: =wBÜ.View -> TRUE | N1: TRUE | O1: =wBÜ.View -> TRUE | P1: TRUE | Q1: TRUE | R1: TRUE | S1: TRUE | T1: TRUE | U1: Ende
A2: FALSE | B2: BÜB | E2: TRUE
A3: FALSE | B3: Ende | E3: 1
A4: TRUE
A5: TRUE | F5: ="Betriebsüberleitungsbogen Daten Abwasserentsorgung Rechnungsabschluss "&wST.Jahr&CHAR(10)&"KLR-Ebene: "&wST.KLR_Ebene -> Betriebsüberleitungsbogen Daten Abwasserentsorgung Rechnungsabschluss 2024 KLR-Ebene:
A6: TRUE
A7: TRUE | G7: Ansatz | H7: Konto | I7: Bezeichnung | J7: Ergebnis- haushalt (Detailnachweis) | K7: Betriebsüberleitung | O7: Anteil Kostenstelle KLR | U7: Finanzierungs- haushalt (Detailnachweis) | V7: Zuordnungs-kennziffern für Liquidität | W7: Kommentar | X7: Wert KLR | AA7: Kontrolle für Kostenstellen-zuordnung
A8: TRUE | K8: Neutral | L8: Anders- / Zusatzerlöse /-kosten | M8: Erlöse / Kosten | N8: Zuordnungs-kennziffern für BAB | O8: Kanal | Q8: Kläranlage | S8: Verwaltung | X8: Kanal | Y8: Kläranlage | Z8: Verwaltung
A9: TRUE | O9: in % | P9: absolut in € | Q9: in % | R9: absolut in € | S9: in % | T9: absolut in €
A10: TRUE
A11: TRUE | F11: OPERATIVE GEBARUNG | J11: Summe Erträge | M11: Summe Erlöse | U11: Summe Einzahlungen
A12: =OR(A13:A24) -> TRUE | F12: SU 21 Summe Erträge / Erlöse - SU 31 Summe Einzahlungen operative Gebarung | J12: =SUMPRODUCT(J13:J28,$B13:$B28) -> 0 | K12: =SUMPRODUCT(K13:K28,$B13:$B28) -> 0 | L12: =SUMPRODUCT(L13:L28,$B13:$B28) -> 0 | M12: =SUMPRODUCT(M13:M28,$B13:$B28) -> 0 | U12: =SUMPRODUCT(U13:U28,$B13:$B28) -> 0
A13: =OR(wBÜ.ShowRows=1,B13>0) -> TRUE | B13: =IF(G13=0,0,IF(VALUE(LEFT(G13,3))=wST.Ansatz,1,0)) -> 0 | E13: + - | M13: =+J13-K13+L13 -> 0
A14: =OR(wBÜ.ShowRows=1,B14>0) -> TRUE | B14: 0 | E14: + - | M14: 0
A15: =OR(wBÜ.ShowRows=1,B15>0) -> TRUE | B15: =IF(G15=0,0,IF(VALUE(LEFT(G15,3))=wST.Ansatz,1,0)) -> 0 | E15: + - | M15: =+J15-K15+L15 -> 0
A16: TRUE | B16: 0 | E16: + - | M16: 0
A17: TRUE | B17: 0 | E17: + - | M17: 0
A18: =OR(wBÜ.ShowRows=1,B18>0) -> TRUE | B18: =IF(G18=0,0,IF(VALUE(LEFT(G18,3))=wST.Ansatz,1,0)) -> 0 | E18: + - | M18: =+J18-K18+L18 -> 0
A19: TRUE | B19: 0 | E19: + - | M19: 0
A20: TRUE | B20: 0 | E20: + - | M20: 0
A21: =OR(wBÜ.ShowRows=1,B21>0) -> TRUE | B21: =IF(G21=0,0,IF(VALUE(LEFT(G21,3))=wST.Ansatz,1,0)) -> 0 | E21: + - | M21: =+J21-K21+L21 -> 0
A22: TRUE | B22: 0 | E22: + - | M22: 0
A23: TRUE | B23: 0 | E23: + - | M23: 0
A24: TRUE | B24: 0 | E24: + - | M24: 0
A25: TRUE | B25: =IF(G25=0,0,IF(VALUE(LEFT(G25,3))=wST.Ansatz,1,0)) -> 0 | E25: + - | M25: =+J25-K25+L25 -> 0
A26: =OR(wBÜ.ShowRows=1,B26>0) -> TRUE | B26: =IF(G26=0,0,IF(VALUE(LEFT(G26,3))=wST.Ansatz,1,0)) -> 0 | E26: + - | M26: =+J26-K26+L26 -> 0
A27: =OR(wBÜ.ShowRows=1,B27>0) -> TRUE | B27: =IF(G27=0,0,IF(VALUE(LEFT(G27,3))=wST.Ansatz,1,0)) -> 0 | E27: + - | M27: =+J27-K27+L27 -> 0
A28: =A12 -> TRUE | B28: 0
A29: =A28 -> TRUE | J29: Summe Aufwendungen | M29: Summe Kosten | U29: Summe Auszahlungen
A30: =OR(A31:A72) -> TRUE | F30: SU 22 Summe Aufwendungen / Kosten - SU 32 Summe Auszahlungen operative Gebarung | J30: =SUMPRODUCT(J31:J72,$B31:$B72) -> 0 | K30: =SUMPRODUCT(K31:K72,$B31:$B72) -> 0 | L30: =SUMPRODUCT(L31:L72,$B31:$B72) -> 0 | M30: =SUMPRODUCT(M31:M72,$B31:$B72) -> 0 | U30: =SUMPRODUCT(U31:U72,$B31:$B72) -> 0
A31: =OR(wBÜ.ShowRows=1,B31>0) -> TRUE | B31: =IF(G31=0,0,IF(VALUE(LEFT(G31,3))=wST.Ansatz,1,0)) -> 0 | E31: + - | M31: =+J31-K31+L31 -> 0 | X31: =IF(P31="",$M31*O31,P31) -> 0 | Y31: =IF(R31="",$M31*Q31,R31) -> 0 | Z31: =IF(T31="",$M31*S31,T31) -> 0 | AA31: =ROUND(M31-X31-Y31-Z31,2) -> 0
A32: TRUE | B32: 0 | E32: + - | M32: 0 | X32: =IF(P32="",$M32*O32,P32) -> 0 | Y32: =IF(R32="",$M32*Q32,R32) -> 0 | Z32: =IF(T32="",$M32*S32,T32) -> 0 | AA32: 0
A33: TRUE | B33: 0 | E33: + - | M33: 0 | X33: 0 | Y33: 0 | Z33: 0 | AA33: 0
A34: TRUE | B34: 0 | E34: + - | M34: 0 | X34: 0 | Y34: 0 | Z34: 0 | AA34: 0
A35: TRUE | B35: 0 | E35: + - | M35: 0 | X35: 0 | Y35: 0 | Z35: 0 | AA35: 0
A36: TRUE | B36: 0 | E36: + - | M36: 0 | X36: 0 | Y36: 0 | Z36: 0 | AA36: 0
A37: TRUE | B37: 0 | E37: + - | M37: 0 | X37: 0 | Y37: 0 | Z37: 0 | AA37: 0
A38: TRUE | B38: 0 | E38: + - | M38: 0 | X38: 0 | Y38: 0 | Z38: 0 | AA38: 0
A39: TRUE | B39: 0 | E39: + - | M39: 0 | X39: 0 | Y39: 0 | Z39: 0 | AA39: 0
A40: TRUE | B40: 0 | E40: + - | M40: 0 | X40: 0 | Y40: 0 | Z40: 0 | AA40: 0
A41: TRUE | B41: 0 | E41: + - | M41: 0 | X41: 0 | Y41: 0 | Z41: 0 | AA41: 0
A42: TRUE | B42: 0 | E42: + - | M42: 0 | X42: 0 | Y42: 0 | Z42: 0 | AA42: 0
A43: TRUE | B43: 0 | E43: + - | M43: 0 | X43: 0 | Y43: 0 | Z43: 0 | AA43: 0
A44: TRUE | B44: 0 | E44: + - | M44: 0 | X44: 0 | Y44: 0 | Z44: 0 | AA44: 0
A45: TRUE | B45: 0 | E45: + - | M45: 0 | X45: 0 | Y45: 0 | Z45: 0 | AA45: 0
A46: TRUE | B46: 0 | E46: + - | M46: 0 | X46: 0 | Y46: 0 | Z46: 0 | AA46: 0
A47: TRUE | B47: 0 | E47: + - | M47: 0 | X47: 0 | Y47: 0 | Z47: 0 | AA47: 0
A48: TRUE | B48: 0 | E48: + - | M48: 0 | X48: 0 | Y48: 0 | Z48: 0 | AA48: 0
A49: TRUE | B49: 0 | E49: + - | M49: 0 | X49: 0 | Y49: 0 | Z49: 0 | AA49: 0
A50: TRUE | B50: 0 | E50: + - | M50: 0 | X50: 0 | Y50: 0 | Z50: 0 | AA50: 0
A51: TRUE | B51: 0 | E51: + - | M51: 0 | X51: 0 | Y51: 0 | Z51: 0 | AA51: 0
A52: TRUE | B52: 0 | E52: + - | M52: 0 | X52: 0 | Y52: 0 | Z52: 0 | AA52: 0
A53: TRUE | B53: 0 | E53: + - | M53: 0 | X53: 0 | Y53: 0 | Z53: 0 | AA53: 0
A54: TRUE | B54: 0 | E54: + - | M54: 0 | X54: 0 | Y54: 0 | Z54: 0 | AA54: 0
A55: TRUE | B55: 0 | E55: + - | M55: 0 | X55: 0 | Y55: 0 | Z55: 0 | AA55: 0
A56: TRUE | B56: 0 | E56: + - | M56: 0 | X56: 0 | Y56: 0 | Z56: 0 | AA56: 0
A57: TRUE | B57: 0 | E57: + - | M57: 0 | X57: 0 | Y57: 0 | Z57: 0 | AA57: 0
A58: TRUE | B58: 0 | E58: + - | M58: 0 | X58: 0 | Y58: 0 | Z58: 0 | AA58: 0
A59: TRUE | B59: 0 | E59: + - | M59: 0 | X59: 0 | Y59: 0 | Z59: 0 | AA59: 0
A60: TRUE | B60: 0 | E60: + - | M60: 0 | X60: 0 | Y60: 0 | Z60: 0 | AA60: 0
A61: TRUE | B61: =IF(G61=0,0,IF(VALUE(LEFT(G61,3))=wST.Ansatz,1,0)) -> 0 | E61: + - | M61: 0 | X61: 0 | Y61: 0 | Z61: 0 | AA61: 0
A62: TRUE | B62: 0 | E62: + - | M62: 0 | X62: 0 | Y62: 0 | Z62: 0 | AA62: 0
A63: TRUE | B63: 0 | E63: + - | M63: 0 | X63: 0 | Y63: 0 | Z63: 0 | AA63: 0
A64: TRUE | B64: 0 | E64: + - | M64: 0 | X64: 0 | Y64: 0 | Z64: 0 | AA64: 0
A65: TRUE | B65: 0 | E65: + - | M65: 0 | X65: 0 | Y65: 0 | Z65: 0 | AA65: 0
A66: TRUE | B66: 0 | E66: + - | M66: 0 | X66: 0 | Y66: 0 | Z66: 0 | AA66: 0
A67: TRUE | B67: =IF(G67=0,0,IF(VALUE(LEFT(G67,3))=wST.Ansatz,1,0)) -> 0 | E67: + - | M67: =+J67-K67+L67 -> 0 | X67: =IF(P67="",$M67*O67,P67) -> 0 | Y67: =IF(R67="",$M67*Q67,R67) -> 0 | Z67: =IF(T67="",$M67*S67,T67) -> 0 | AA67: =ROUND(M67-X67-Y67-Z67,2) -> 0
A68: =OR(wBÜ.ShowRows=1,B68>0) -> TRUE | B68: =IF(G68=0,0,IF(VALUE(LEFT(G68,3))=wST.Ansatz,1,0)) -> 0 | E68: + - | M68: =+J68-K68+L68 -> 0 | X68: =IF(P68="",$M68*O68,P68) -> 0 | Y68: =IF(R68="",$M68*Q68,R68) -> 0 | Z68: =IF(T68="",$M68*S68,T68) -> 0 | AA68: =ROUND(M68-X68-Y68-Z68,2) -> 0
A69: =OR(wBÜ.ShowRows=1,B69>0) -> TRUE | B69: =IF(G69=0,0,IF(VALUE(LEFT(G69,3))=wST.Ansatz,1,0)) -> 0 | E69: + - | M69: =+J69-K69+L69 -> 0 | X69: =IF(P69="",$M69*O69,P69) -> 0 | Y69: =IF(R69="",$M69*Q69,R69) -> 0 | Z69: =IF(T69="",$M69*S69,T69) -> 0 | AA69: =ROUND(M69-X69-Y69-Z69,2) -> 0
A70: =OR(wBÜ.ShowRows=1,B70>0) -> TRUE | B70: =IF(G70=0,0,IF(VALUE(LEFT(G70,3))=wST.Ansatz,1,0)) -> 0 | E70: + - | M70: =+J70-K70+L70 -> 0 | X70: =IF(P70="",$M70*O70,P70) -> 0 | Y70: =IF(R70="",$M70*Q70,R70) -> 0 | Z70: =IF(T70="",$M70*S70,T70) -> 0 | AA70: =ROUND(M70-X70-Y70-Z70,2) -> 0
A71: =OR(wBÜ.ShowRows=1,B71>0) -> TRUE | B71: =IF(G71=0,0,IF(VALUE(LEFT(G71,3))=wST.Ansatz,1,0)) -> 0 | E71: + - | M71: =+J71-K71+L71 -> 0 | X71: =IF(P71="",$M71*O71,P71) -> 0 | Y71: =IF(R71="",$M71*Q71,R71) -> 0 | Z71: =IF(T71="",$M71*S71,T71) -> 0 | AA71: =ROUND(M71-X71-Y71-Z71,2) -> 0
A72: TRUE | B72: 0
A73: TRUE | F73: SA 0 - Nettoergebnis / SA 1 - Geldfluss aus der Operativen Gebarung | J73: =J12-J30 -> 0 | K73: =K12-K30 -> 0 | L73: =L12-L30 -> 0 | M73: =M12-M30 -> 0 | U73: =U12-U30 -> 0 | V73: SA 1 - Geldfluss aus der Operativen Gebarung
A74: TRUE
A75: TRUE | B75: ="3.1" -> 3.1 | C75: 1.1 | G75: 8510 | H75: 89411 | I75: Entnahme von zweckgebundenen Haushaltsrücklagen gem. § 190 Abs. 1 StGHVO | V75: SU 33 Summe Einzahlungen investive Gebarung
A76: TRUE | B76: ="3.2" -> 3.2 | C76: 1.2 | G76: 8510 | H76: 89412 | I76: Entnahme von zweckgebundenen Haushaltsrücklagen gem. § 190 Abs. 2 StGHVO | V76: SU 34 Summe Auszahlungen investive Gebarung
A77: TRUE | B77: ="4.1" -> 4.1 | C77: 1.3 | G77: 8510 | H77: 79411 | I77: Zuweisung an zweckgebundene Haushaltsrücklagen gem. § 189 Abs. 1 StGHVO | J77: 0 | K77: Eingabe mit Minus (-) | V77: SU 35 Summe Einzahlungen aus der Finanzierungstätigkeit
A78: TRUE | B78: ="4.2" -> 4.2 | C78: 1.4 | G78: 8510 | H78: 79412 | I78: Zuweisung an zweckgebundene Haushaltsrücklagen gem. § 189 Abs. 2 StGHVO | J78: 0 | K78: Eingabe mit Minus (-) | V78: SU 36 Summe Auszahlungen aus der Finanzierungstätigkeit
A79: TRUE | C79: 1.5 | F79: SA 00 - Nettoergebnis nach Zuweisung und Entnahmen von Haushaltsrücklagen | J79: =J73+J75+J76+J77+J78 -> 0 | V79: MVAG 361 Auszahlungen aus der Tilgung von Finanzschulden
A80: TRUE | B80: ="4.1" -> 4.1 | C80: 1.6 | V80: Stand Rücklage per 31.12. (aus Anlage 6b VRV 2015)
A81: TRUE | B81: ="4.2" -> 4.2 | C81: 1.7 | V81: Stand ZMR per 31.12. (aus Anlage 6b VRV 2015)
A82: TRUE | B82: ="4.3" -> 4.3 | C82: 2.1
A83: TRUE | B83: ="4.4" -> 4.4 | C83: 2.2.1 | G83: Kalkulatorische Kosten | L83: Kalkulatorische Anders-/ Zusatzkosten
A84: TRUE | C84: 2.2.2 | L84: Summe | M84: =SUM(M85:M103) -> 0
A85: TRUE | B85: 1.1 | C85: 2.3 | G85: 8510 | I85: Kalkulatorische Anlagenabschreibung - aus Registerblatt Anlagen | L85: =Anlagen!T8+Anlagen!T70+Anlagen!T78+Anlagen!T86+Anlagen!T94+Anlagen!T108 -> 0 | M85: =+L85 -> 0 | N85: 2.1 | P85: =SUM(Anlagen!AC10:AC114) -> 0 | R85: =SUM(Anlagen!AD10:AD114) -> 0 | T85: =SUM(Anlagen!AE10:AE114) -> 0 | X85: =IF(P85="",$M85*O85,P85) -> 0 | Y85: =IF(R85="",$M85*Q85,R85) -> 0 | Z85: =IF(T85="",$M85*S85,T85) -> 0 | AA85: =ROUND(M85-X85-Y85-Z85,2) -> 0
A86: TRUE | B86: 1.2 | C86: 2.4 | G86: 8510 | I86: Eigenkapitalzinsen - aus Registerblatt Eigenkapitalzinsen | L86: =+Eigenkapitalzinsen!G19 -> 0 | M86: =+L86 -> 0 | N86: 2.2.1 | P86: =+Eigenkapitalzinsen!I19 -> 0 | R86: =+Eigenkapitalzinsen!J19 -> 0 | T86: =+Eigenkapitalzinsen!K19 -> 0 | X86: =IF(P86="",$M86*O86,P86) -> 0 | Y86: =IF(R86="",$M86*Q86,R86) -> 0 | Z86: =IF(T86="",$M86*S86,T86) -> 0 | AA86: =ROUND(M86-X86-Y86-Z86,2) -> 0
A87: TRUE | B87: 1.3 | C87: 3.1 | G87: 8510 | I87: Auflösung Subventionen - Korrektur Anlagenabschreibung - aus Registerblatt Anlagen | L87: =-Anlagen!T117 -> 0 | M87: 0 | N87: 3.1 | P87: =-SUM(Anlagen!AC118:AC160) -> 0 | R87: =-SUM(Anlagen!AD118:AD160) -> 0 | T87: =-SUM(Anlagen!AE118:AE160) -> 0 | X87: =IF(P87="",$M87*O87,P87) -> 0 | Y87: 0 | Z87: 0 | AA87: =ROUND(M87-X87-Y87-Z87,2) -> 0
A88: TRUE | B88: 1.4 | C88: 3.2 | G88: 8510 | I88: Auflösung Beiträge - Korrektur Anlagenabschreibung - aus Registerblatt Anlagen | L88: =-Anlagen!T163 -> 0 | M88: 0 | N88: 3.2 | P88: =-SUM(Anlagen!AC164:AC200) -> 0 | R88: =-SUM(Anlagen!AD164:AD200) -> 0 | T88: =-SUM(Anlagen!AE164:AE200) -> 0 | X88: 0 | Y88: 0 | Z88: 0 | AA88: 0
A89: TRUE | B89: 1.5 | G89: 8510 | I89: Kalkulatorische Wagnisse | M89: =+L89 -> 0 | N89: 2.3 | X89: 0 | Y89: 0 | Z89: 0 | AA89: 0
A90: TRUE | B90: 1.6 | G90: 8510 | I90: Sonstige kalkulatorische Kosten | M90: =+L90 -> 0 | N90: 2.4 | X90: 0 | Y90: 0 | Z90: 0 | AA90: 0
A91: TRUE | B91: 1.7 | G91: 8510 | I91: Korrektur Sonstige kalkulatorische Kosten (Auflösung Rückstellungen) | K91: Eingabe mit Minus (-) | M91: 0 | N91: 2.4 | X91: 0 | Y91: 0 | Z91: 0 | AA91: 0
A92: TRUE | B92: 2.2.2 | G92: 8510 | I92: Korrektur Sonstige kalkulatorische Kosten (Auflösung Sonstiges) | K92: Eingabe mit Minus (-) | M92: 0 | N92: 2.4 | X92: 0 | Y92: 0 | Z92: 0 | AA92: 0
A93: TRUE | G93: 8510 | I93: Sonstige kalkulatorische Kosten (ILV) Wirtschaftshof | M93: 0 | N93: 2.4 | X93: 0 | Y93: 0 | Z93: 0 | AA93: 0
A94: TRUE | G94: 8510 | I94: Sonstige kalkulatorische Kosten (ILV) Bauamt | M94: 0 | N94: 2.4 | X94: 0 | Y94: 0 | Z94: 0 | AA94: 0
A95: TRUE | G95: 8510 | I95: Sonstige kalkulatorische Kosten (ILV) Allgemeine Verwaltung | M95: 0 | N95: 2.4 | X95: 0 | Y95: 0 | Z95: 0 | AA95: 0
A96: TRUE | G96: 8510 | I96: Sonstige kalkulatorische Kosten (ILV) Pensionsleistungen | M96: 0 | N96: 2.4 | X96: 0 | Y96: 0 | Z96: 0 | AA96: 0
A97: =OR(wBÜ.ShowRows=1,B97>0) -> TRUE | B97: =IF(M97=0,0,1) -> 0 | E97: + - | G97: 8510 | M97: 0 | X97: 0 | Y97: 0 | Z97: 0 | AA97: 0
A98: TRUE | B98: =IF(M98=0,0,1) -> 0 | E98: + - | M98: 0 | X98: 0 | Y98: 0 | Z98: 0 | AA98: 0
A99: =OR(wBÜ.ShowRows=1,B99>0) -> TRUE | B99: =IF(M99=0,0,1) -> 0 | E99: + - | M99: =+L99 -> 0 | X99: =IF(P99="",$M99*O99,P99) -> 0 | Y99: =IF(R99="",$M99*Q99,R99) -> 0 | Z99: =IF(T99="",$M99*S99,T99) -> 0 | AA99: =ROUND(M99-X99-Y99-Z99,2) -> 0
A100: TRUE | B100: 0 | E100: + - | M100: 0 | X100: 0 | Y100: 0 | Z100: 0 | AA100: 0
A101: TRUE | B101: 0 | E101: + - | M101: 0 | X101: 0 | Y101: 0 | Z101: 0 | AA101: 0
A102: TRUE | B102: =IF(M102=0,0,1) -> 0 | E102: + - | M102: 0 | X102: 0 | Y102: 0 | Z102: 0 | AA102: 0
A103: TRUE
A104: TRUE | L104: Gesamtkosten | M104: =+M30+M84 -> 0
A105: TRUE
A106: TRUE | L106: Erlöse | M106: =M12 -> 0
A107: TRUE
A108: Ende

Sheet BAB
A1: FALSE | B1: Ende
A2: FALSE | B2: Anlagen
A3: FALSE | B3: Ende
A4: TRUE
A5: TRUE
A6: TRUE
A7: TRUE | C7: Eine Umweltförderung des BMLUK – managed by Kommunalkredit Public Consulting
A8: TRUE
A9: TRUE | B9: Kosten- und Leistungsrechnung (VRV) – ABA
A10: TRUE | B10: Betriebsabrechnungsbogen (BAB) nach ÖWAV AB 64 inkl. Erlösermittlung - Beträge exkl. UST
A11: TRUE | B11: =CONCATENATE("Gemeindebund Steiermark u. Land Steiermark Version 09/2025; Erstellungsdatum "&TEXT(Info!G21,"TT.MM.JJJJ")) -> Gemeindebund Steiermark u. Land Steiermark Version 09/2025; Erstellungsdatum 00.01.1900
A12: TRUE
A13: TRUE | B13: KLR-Ebene: | C13: =wST.KLR_Ebene -> 0 | I13: Jahr des Rechnungsabschlusses: | J13: =wST.Jahr -> 2024
A14: TRUE
A15: TRUE | E15: Summe | H15: Kanal | I15: Kläranlage | J15: Verwaltung
A16: TRUE
A17: TRUE | B17: 1. | C17: Betriebskosten | E17: =SUM(H17:J17) -> 0 | H17: =SUM(H18:H33) -> 0 | I17: =SUM(I18:I33) -> 0 | J17: =SUM(J19:J32) -> 0
A18: TRUE
A19: TRUE | B19: 1.1 | C19: Material- und Stoffkosten | E19: =H19+I19+J19 -> 0 | H19: =SUMIF(BÜB!$N$31:$N$72,$B19,BÜB!X$31:X$72) -> 0 | I19: =SUMIF(BÜB!$N$31:$N$72,$B19,BÜB!Y$31:Y$72) -> 0 | J19: =SUMIF(BÜB!$N$31:$N$72,$B19,BÜB!Z$31:Z$72) -> 0
A20: TRUE
A21: TRUE | B21: 1.2 | C21: Personalkosten | E21: =H21+I21+J21 -> 0 | H21: =SUMIF(BÜB!$N$31:$N$72,$B21,BÜB!X$31:X$72) -> 0 | I21: =SUMIF(BÜB!$N$31:$N$72,$B21,BÜB!Y$31:Y$72) -> 0 | J21: =SUMIF(BÜB!$N$31:$N$72,$B21,BÜB!Z$31:Z$72) -> 0
A22: TRUE
A23: TRUE | B23: 1.3 | C23: Leistungen durch Dritte | E23: =H23+I23+J23 -> 0 | H23: =SUMIF(BÜB!$N$31:$N$72,$B23,BÜB!X$31:X$72) -> 0 | I23: =SUMIF(BÜB!$N$31:$N$72,$B23,BÜB!Y$31:Y$72) -> 0 | J23: =SUMIF(BÜB!$N$31:$N$72,$B23,BÜB!Z$31:Z$72) -> 0
A24: TRUE
A25: TRUE | B25: 1.4 | C25: Energiekosten | E25: =H25+I25+J25 -> 0 | H25: =SUMIF(BÜB!$N$31:$N$72,$B25,BÜB!X$31:X$72) -> 0 | I25: =SUMIF(BÜB!$N$31:$N$72,$B25,BÜB!Y$31:Y$72) -> 0 | J25: =SUMIF(BÜB!$N$31:$N$72,$B25,BÜB!Z$31:Z$72) -> 0
A26: TRUE
A27: TRUE | B27: 1.5 | C27: Entsorgungskosten | E27: =H27+I27+J27 -> 0 | H27: =SUMIF(BÜB!$N$31:$N$72,$B27,BÜB!X$31:X$72) -> 0 | I27: =SUMIF(BÜB!$N$31:$N$72,$B27,BÜB!Y$31:Y$72) -> 0 | J27: =SUMIF(BÜB!$N$31:$N$72,$B27,BÜB!Z$31:Z$72) -> 0
A28: TRUE
A29: TRUE | B29: 1.6 | C29: Sonstige betriebliche Kosten | E29: =H29+I29+J29 -> 0 | H29: =SUMIF(BÜB!$N$31:$N$72,$B29,BÜB!X$31:X$72) -> 0 | I29: =SUMIF(BÜB!$N$31:$N$72,$B29,BÜB!Y$31:Y$72) -> 0 | J29: =SUMIF(BÜB!$N$31:$N$72,$B29,BÜB!Z$31:Z$72) -> 0
A30: TRUE
A31: TRUE
A32: TRUE | B32: 1.7 | C32: Vorschreibung Verbandsanteil | E32: =H32+I32 -> 0 | H32: =SUMIF(BÜB!$N$31:$N$72,$B32,BÜB!X$31:X$72) -> 0 | I32: =SUMIF(BÜB!$N$31:$N$72,$B32,BÜB!Y$31:Y$72) -> 0
A33: TRUE
A34: TRUE
A35: TRUE | B35: 2. | C35: Kapitalkosten | E35: =SUM(H35:J35) -> 0 | H35: =SUM(H36:H47)-H39 -> 0 | I35: =SUM(I36:I47)-I39 -> 0 | J35: =SUM(J36:J47)-J39 -> 0
A36: TRUE
A37: TRUE | B37: 2.1 | C37: Kalkulatorische Anlagenabschreibung | E37: =H37+I37+J37 -> 0 | H37: =SUMIF(BÜB!$N$31:$N$103,$B37,BÜB!X$31:X$103) -> 0 | I37: =SUMIF(BÜB!$N$31:$N$103,$B37,BÜB!Y$31:Y$103) -> 0 | J37: =SUMIF(BÜB!$N$31:$N$103,$B37,BÜB!Z$31:Z$103) -> 0
A38: TRUE
A39: TRUE | B39: 2.2 | C39: Kalkulatorische Zinsen | E39: =H39+I39+J39 -> 0 | H39: =H41+H43 -> 0 | I39: =I41+I43 -> 0 | J39: =J41+J43 -> 0
A40: TRUE
A41: TRUE | B41: 2.2.1 | C41: Eigenkapitalzinsen | E41: =H41+I41+J41 -> 0 | H41: =SUMIF(BÜB!$N$31:$N$103,$B41,BÜB!X$31:X$103) -> 0 | I41: =SUMIF(BÜB!$N$31:$N$103,$B41,BÜB!Y$31:Y$103) -> 0 | J41: =SUMIF(BÜB!$N$31:$N$103,$B41,BÜB!Z$31:Z$103) -> 0
A42: TRUE
A43: TRUE | B43: 2.2.2 | C43: Fremdkapitalzinsen | E43: =H43+I43+J43 -> 0 | H43: =SUMIF(BÜB!$N$31:$N$103,$B43,BÜB!X$31:X$103) -> 0 | I43: =SUMIF(BÜB!$N$31:$N$103,$B43,BÜB!Y$31:Y$103) -> 0 | J43: =SUMIF(BÜB!$N$31:$N$103,$B43,BÜB!Z$31:Z$103) -> 0
A44: TRUE
A45: TRUE | B45: 2.3 | C45: Kalkulatorische Wagnisse | E45: =H45+I45+J45 -> 0 | H45: =SUMIF(BÜB!$N$31:$N$103,$B45,BÜB!X$31:X$103) -> 0 | I45: =SUMIF(BÜB!$N$31:$N$103,$B45,BÜB!Y$31:Y$103) -> 0 | J45: =SUMIF(BÜB!$N$31:$N$103,$B45,BÜB!Z$31:Z$103) -> 0
A46: TRUE
A47: TRUE | B47: 2.4 | C47: Sonstige kalkulatorischen Kosten | E47: =H47+I47+J47 -> 0 | H47: =SUMIF(BÜB!$N$31:$N$103,$B47,BÜB!X$31:X$103) -> 0 | I47: =SUMIF(BÜB!$N$31:$N$103,$B47,BÜB!Y$31:Y$103) -> 0 | J47: =SUMIF(BÜB!$N$31:$N$103,$B47,BÜB!Z$31:Z$103) -> 0
A48: TRUE
A49: TRUE
A50: TRUE | B50: 3. | C50: Kostenauflösung / Kostenkorrektur | E50: =SUM(H50:J50) -> 0 | H50: =SUM(H51:H54) -> 0 | I50: =SUM(I51:I54) -> 0 | J50: =SUM(J51:J54) -> 0
A51: TRUE
A52: TRUE | B52: 3.1 | C52: Auflösung Subventionen - Korrektur Anlagenabschreibung | E52: =H52+I52+J52 -> 0 | H52: =IF($E$37=0,0,SUMIF(BÜB!$N$31:$N$103,$B52,BÜB!X$31:X$103)-(SUMIF(BÜB!$N$13:$N$28,$B52,BÜB!$M$13:$M$28)*H$37/$E$37)) -> 0 | I52: =IF($E$37=0,0,SUMIF(BÜB!$N$31:$N$103,$B52,BÜB!Y$31:Y$103)-(SUMIF(BÜB!$N$13:$N$28,$B52,BÜB!$M$13:$M$28)*I$37/$E$37)) -> 0 | J52: =IF($E$37=0,0,SUMIF(BÜB!$N$31:$N$103,$B52,BÜB!Z$31:Z$103)-(SUMIF(BÜB!$N$13:$N$28,$B52,BÜB!$M$13:$M$28)*J$37/$E$37)) -> 0
A53: TRUE
A54: TRUE | B54: 3.2 | C54: Auflösung Beiträge - Korrektur Anlagenabschreibung | E54: =H54+I54+J54 -> 0 | H54: =IF($E$37=0,0,SUMIF(BÜB!$N$31:$N$103,$B54,BÜB!X$31:X$103)-(SUMIF(BÜB!$N$13:$N$28,$B54,BÜB!$M$13:$M$28)*H$37/$E$37)) -> 0 | I54: =IF($E$37=0,0,SUMIF(BÜB!$N$31:$N$103,$B54,BÜB!Y$31:Y$103)-(SUMIF(BÜB!$N$13:$N$28,$B54,BÜB!$M$13:$M$28)*I$37/$E$37)) -> 0 | J54: =IF($E$37=0,0,SUMIF(BÜB!$N$31:$N$103,$B54,BÜB!Z$31:Z$103)-(SUMIF(BÜB!$N$13:$N$28,$B54,BÜB!$M$13:$M$28)*J$37/$E$37)) -> 0
A55: TRUE
A56: TRUE | B56: GESAMTKOSTEN vor Umlage Verwaltung | E56: =E50+E35+E17 -> 0 | H56: =H50+H35+H17 -> 0 | I56: =I50+I35+I17 -> 0 | J56: =J50+J35+J17 -> 0
A57: TRUE
A58: TRUE | B58: Umlage Verwaltungskosten | H58: =IF((H56+I56)*H56=0,0,(J56/(H56+I56)*H56)) -> 0 | I58: =IF((H56+I56)*I56=0,0,(J56/(H56+I56)*I56)) -> 0
A59: TRUE
A60: TRUE | B60: GESAMTKOSTEN nach Umlage Verwaltung | E60: =H60+I60 -> 0 | H60: =H56+H58 -> 0 | I60: =I56+I58 -> 0
A61: TRUE
A62: TRUE | E62: =IF(E60=0,"",E60/E60) ->  | H62: =IF(E60=0,"",H60/E60) ->  | I62: =IF(E60=0,"",I60/E60) -> 
A63: TRUE
A64: TRUE | E64: Summe
A65: TRUE
A66: TRUE | B66: 4. | C66: Erlöse | E66: =SUM(E68:F70) -> 0 | H66: 5. Allgemeine Angaben
A67: TRUE
A68: TRUE | B68: 4.1 | C68: Laufende Erlöse | E68: =SUMIF(BÜB!$N$13:$N$28,$B68,BÜB!M$13:M$28) -> 0 | F68: =SUMIF(BÜB!$N$31:$N$66,$B68,BÜB!T$31:T$66) -> 0 | H68: Abwassermenge [m³]
A69: TRUE
A70: TRUE | B70: 4.2 | C70: Sonstige Erlöse | E70: =SUMIF(BÜB!$N$13:$N$28,$B70,BÜB!M$13:M$28) -> 0 | F70: =SUMIF(BÜB!$N$31:$N$66,$B70,BÜB!T$31:T$66) -> 0 | H70: Anschlussgrad [%]
A71: TRUE
A72: TRUE | B72: 6. | C72: Ergebnis
A73: TRUE
A74: TRUE | C74: Berechneter kostendeckender Abwasserpreis (EUR/m³) | E74: =IF(J68=0,"",E60/J68) ->  | H74: Kostendeckungsgrad (%) | J74: =IF(E60=0,"",E66/E60) -> 
A75: TRUE
A76: TRUE
A77: TRUE | B77: 7. | C77: Anmerkungen
A78: TRUE | C78: Sonstige Anmerkungen zur Leistungsstruktur
A79: TRUE | C79: Betrieb und Wartung für Kanäle, Pumpwerke, Sonderbauwerke der zu betrachtenden KLR-Ebene durch:
A80: TRUE | C80: Konsensinhaber der Kläranlage(n) samt Klärschlammbehandlung für die Abwasserreinigung der betrachteten KLR-Ebene:
A81: TRUE | C81: Betrieb und Wartung der Kläranlage(n) samt Klärschlammbehandlung für die Abwasserreinigung der betrachtenden KLR-Ebene:
A82: TRUE | C82: Sonstige Anmerkungen
A83: TRUE
A84: TRUE
A85: TRUE
A86: TRUE
A87: Ende

Sheet Anlagen
A1: FALSE | B1: Ende
A2: FALSE | B2: Anlagen | D2: 001.00 | AB2: IZ / FZ / BZ
A3: FALSE | B3: Ende
A4: TRUE
A5: TRUE | C5: =TEXT(wST.Ansatz,"000")&", Anlagen-, Subventions- und Interessentenbeitragsnachweis Abwasserentsorgung per "&TEXT(wST.PeriodeEnde,"T. MMMM JJJJ")&" KLR-Ebene: "&wST.KLR_Ebene -> 851, Anlagen-, Subventions- und Interessentenbeitragsnachweis Abwasserentsorgung per 31. Dezember 2024 KLR-Ebene:
A6: TRUE | AC6: AfA | AF6: =X7 -> Buchwert 31.12.2024
A7: TRUE | C7: Konto | D7: Ansatz | E7: Kurzbezeichnung (zB Bauabschnitt) | F7: Bezeichnung (textl. Erläuterung) | G7: Anlagenart | H7: Datum der Inbetriebnahme TT.MM.JJJJ | I7: Nutzungs-dauer | J7: ="AK/HK / Subv. & Beiträge bis "&TEXT(wST.PeriodeAnfang,"T.M.JJJJ") -> AK/HK / Subv. & Beiträge bis 1.1.2024 | K7: ="Zugänge im Jahr "&wST.Jahr -> Zugänge im Jahr 2024 | L7: ="Abgänge im Jahr "&wST.Jahr -> Abgänge im Jahr 2024 | M7: Kostenstelle für KLR | N7: Kontrolle Kostenstellen | O7: ="Wert bis "&TEXT(wST.PeriodeEnde,"T.M.JJJJ") -> Wert bis 31.12.2024 | P7: ="kumulierte Abschreibung bis "&TEXT(wST.PeriodeAnfang,"T.M.JJ") -> kumulierte Abschreibung bis 1.1.24 | Q7: verbleibender Anteil nach Abgang | R7: ="Restbuchwert vor Afa" -> Restbuchwert vor Afa | S7: Restnutzungsdauer | T7: Abschreibung / Auflösung Haushaltsjahr | U7: Abschreibung Haushaltsjahr ohne Abgang | V7: Restbuch- wert- abschreibung | W7: ="kumulierte Abschreibung / Auflösung bis "&TEXT(wST.PeriodeEnde,"T.M.JJJJ") -> kumulierte Abschreibung / Auflösung bis 31.12.2024 | X7: ="Buchwert "&TEXT(wST.PeriodeEnde,"T.M.JJJJ") -> Buchwert 31.12.2024 | AC7: Kanal | AD7: Kläranlage | AE7: Verwaltung | AF7: Kanal | AG7: Kläranlage | AH7: Verwaltung
A8: =O8>0 -> FALSE | C8: ="00" -> 00 | D8: GRUNDSTÜCKE | J8: =SUM(J9,J15,J21,J27,J63) -> 0 | K8: =SUM(K9,K15,K21,K27,K63) -> 0 | L8: =SUM(L9,L15,L21,L27,L63) -> 0 | O8: =SUM(O9,O15,O21,O27,O63) -> 0 | P8: =SUM(P9,P15,P21,P27,P63) -> 0 | T8: =SUM(T9,T15,T21,T27,T63) -> 0 | W8: =SUM(W9,W15,W21,W27,W63) -> 0 | X8: =SUM(X9,X15,X21,X27,X63) -> 0
A9: =O9>0 -> FALSE | C9: ="000" -> 000 | D9: Bebaute Grundstücke | J9: =SUMPRODUCT(J10:J14,$Y10:$Y14) -> 0 | K9: =SUMPRODUCT(K10:K14,$Y10:$Y14) -> 0 | L9: =SUMPRODUCT(L10:L14,$Y10:$Y14) -> 0 | O9: =SUMPRODUCT(O10:O14,$Y10:$Y14) -> 0 | P9: =SUMPRODUCT(P10:P14,$Y10:$Y14) -> 0 | T9: =SUMPRODUCT(T10:T14,$Y10:$Y14) -> 0 | U9: =SUMPRODUCT(U10:U14,$Y10:$Y14) -> 0 | W9: =SUMPRODUCT(W10:W14,$Y10:$Y14) -> 0 | X9: =SUMPRODUCT(X10:X14,$Y10:$Y14) -> 0 | AA9: =SUM(AA10:AA14) -> 0
A10: =Y10>0 -> FALSE | B10: + - | J10: 0 | N10: =IF(AND(M10="",D10=""),"",IF(AND(D10<>"",M10=""),"Keine Zuordnung",IF(OR(M10=$AC$7,M10=$AD$7,M10=$AE$7),"OK","Falsche Kostenstelle"))) ->  | O10: =IF(AND(Z10+I10<=wST.Jahr,K10<>0,NOT(ISBLANK(I10))),"Zugang ungültig!",IF(Z10>wST.Jahr,0,SUM(J10,K10,-L10))) -> 0 | P10: =IF(I10=0,0,IF(Z10>=wST.Jahr,0,MAX(0,MIN(J10,J10/I10*(wST.Jahr-Z10)-J10/I10*IF(MONTH(H10)>6,0.5,0))))) -> 0 | Q10: =IF(SUM(J10,K10)=0,1,1-L10/SUM(J10,K10)) -> 1 | R10: =(K10+J10-P10)*Q10 -> 0 | S10: =MAX(0,(Z10+I10-wST.Jahr+IF(AND(Z10<>wST.Jahr,MONTH(H10)>6),0.5,0))*IF(AND(Z10=wST.Jahr,MONTH(H10)>6),2,1)) -> 0 | T10: =U10+V10 -> 0 | U10: =IF(S10=0,0,IF(Z10>wST.Jahr,0,MAX(0,MIN(R10,R10/S10)))) -> 0 | V10: =(K10+J10-P10)*(1-Q10) -> 0 | W10: =MIN(J10+K10,P10+U10+V10) -> 0 | X10: =IF(Z10>wST.Jahr,0,J10+K10-W10) -> 0 | Y10: =IF(D10=0,0,IF(VALUE(LEFT(D10,3))=wST.Ansatz,1,0)) -> 0 | Z10: =YEAR(H10) -> 1900 | AA10: =IF(Z10>wST.Jahr-1,0,J10*Y10) -> 0 | AC10: =IF($M10=AC$7,$T10,) -> 0 | AD10: 0 | AE10: 0 | AF10: =IF($M10=AF$7,$X10,) -> 0 | AG10: 0 | AH10: 0
A11: FALSE | B11: + - | J11: 0 | O11: 0 | P11: 0 | Q11: 1 | R11: 0 | S11: 0 | T11: 0 | U11: 0 | V11: 0 | W11: 0 | X11: 0 | Y11: 0 | Z11: 1900 | AA11: 0 | AC11: 0 | AD11: 0 | AE11: 0 | AF11: 0 | AG11: 0 | AH11: 0
A12: =Y12>0 -> FALSE | B12: + - | J12: 0 | N12: =IF(AND(M12="",D12=""),"",IF(AND(D12<>"",M12=""),"Keine Zuordnung",IF(OR(M12=$AC$7,M12=$AD$7,M12=$AE$7),"OK","Falsche Kostenstelle"))) ->  | O12: =IF(AND(Z12+I12<=wST.Jahr,K12<>0,NOT(ISBLANK(I12))),"Zugang ungültig!",IF(Z12>wST.Jahr,0,SUM(J12,K12,-L12))) -> 0 | P12: =IF(I12=0,0,IF(Z12>=wST.Jahr,0,MAX(0,MIN(J12,J12/I12*(wST.Jahr-Z12)-J12/I12*IF(MONTH(H12)>6,0.5,0))))) -> 0 | Q12: =IF(SUM(J12,K12)=0,1,1-L12/SUM(J12,K12)) -> 1 | R12: =(K12+J12-P12)*Q12 -> 0 | S12: =MAX(0,(Z12+I12-wST.Jahr+IF(AND(Z12<>wST.Jahr,MONTH(H12)>6),0.5,0))*IF(AND(Z12=wST.Jahr,MONTH(H12)>6),2,1)) -> 0 | T12: =U12+V12 -> 0 | U12: =IF(S12=0,0,IF(Z12>wST.Jahr,0,MAX(0,MIN(R12,R12/S12)))) -> 0 | V12: =(K12+J12-P12)*(1-Q12) -> 0 | W12: =MIN(J12+K12,P12+U12+V12) -> 0 | X12: =IF(Z12>wST.Jahr,0,J12+K12-W12) -> 0 | Y12: =IF(D12=0,0,IF(VALUE(LEFT(D12,3))=wST.Ansatz,1,0)) -> 0 | Z12: =YEAR(H12) -> 1900 | AA12: =IF(Z12>wST.Jahr-1,0,J12*Y12) -> 0 | AC12: =IF($M12=AC$7,$T12,) -> 0 | AD12: =IF($M12=AD$7,$T12,) -> 0 | AE12: =IF($M12=AE$7,$T12,) -> 0 | AF12: =IF($M12=AF$7,$X12,) -> 0 | AG12: =IF($M12=AG$7,$X12,) -> 0 | AH12: =IF($M12=AH$7,$X12,) -> 0
A13: =Y13>0 -> FALSE | B13: + - | J13: 0 | N13: =IF(AND(M13="",D13=""),"",IF(AND(D13<>"",M13=""),"Keine Zuordnung",IF(OR(M13=$AC$7,M13=$AD$7,M13=$AE$7),"OK","Falsche Kostenstelle"))) ->  | O13: =IF(AND(Z13+I13<=wST.Jahr,K13<>0,NOT(ISBLANK(I13))),"Zugang ungültig!",IF(Z13>wST.Jahr,0,SUM(J13,K13,-L13))) -> 0 | P13: =IF(I13=0,0,IF(Z13>=wST.Jahr,0,MAX(0,MIN(J13,J13/I13*(wST.Jahr-Z13)-J13/I13*IF(MONTH(H13)>6,0.5,0))))) -> 0 | Q13: =IF(SUM(J13,K13)=0,1,1-L13/SUM(J13,K13)) -> 1 | R13: =(K13+J13-P13)*Q13 -> 0 | S13: =MAX(0,(Z13+I13-wST.Jahr+IF(AND(Z13<>wST.Jahr,MONTH(H13)>6),0.5,0))*IF(AND(Z13=wST.Jahr,MONTH(H13)>6),2,1)) -> 0 | T13: =U13+V13 -> 0 | U13: =IF(S13=0,0,IF(Z13>wST.Jahr,0,MAX(0,MIN(R13,R13/S13)))) -> 0 | V13: =(K13+J13-P13)*(1-Q13) -> 0 | W13: =MIN(J13+K13,P13+U13+V13) -> 0 | X13: =IF(Z13>wST.Jahr,0,J13+K13-W13) -> 0 | Y13: =IF(D13=0,0,IF(VALUE(LEFT(D13,3))=wST.Ansatz,1,0)) -> 0 | Z13: =YEAR(H13) -> 1900 | AA13: =IF(Z13>wST.Jahr-1,0,J13*Y13) -> 0 | AC13: 0 | AD13: 0 | AE13: 0 | AF13: 0 | AG13: 0 | AH13: 0
A14: FALSE | P14: 0 | Q14: 1 | R14: 0 | S14: 0 | U14: 0 | V14: 0
A15: =O15>0 -> FALSE | C15: 1 | D15: Unbebaute Grundstücke | J15: =SUMPRODUCT(J16:J20,$Y16:$Y20) -> 0 | K15: =SUMPRODUCT(K16:K20,$Y16:$Y20) -> 0 | L15: =SUMPRODUCT(L16:L20,$Y16:$Y20) -> 0 | O15: =SUMPRODUCT(O16:O20,$Y16:$Y20) -> 0 | P15: =SUMPRODUCT(P16:P20,$Y16:$Y20) -> 0 | T15: =SUMPRODUCT(T16:T20,$Y16:$Y20) -> 0 | U15: =SUMPRODUCT(U16:U20,$Y16:$Y20) -> 0 | W15: =SUMPRODUCT(W16:W20,$Y16:$Y20) -> 0 | X15: =SUMPRODUCT(X16:X20,$Y16:$Y20) -> 0 | AA15: =SUM(AA16:AA20) -> 0
A16: =Y16>0 -> FALSE | B16: + - | J16: 0 | N16: =IF(AND(M16="",D16=""),"",IF(AND(D16<>"",M16=""),"Keine Zuordnung",IF(OR(M16=$AC$7,M16=$AD$7,M16=$AE$7),"OK","Falsche Kostenstelle"))) ->  | O16: =IF(AND(Z16+I16<=wST.Jahr,K16<>0,NOT(ISBLANK(I16))),"Zugang ungültig!",IF(Z16>wST.Jahr,0,SUM(J16,K16,-L16))) -> 0 | P16: =IF(I16=0,0,IF(Z16>=wST.Jahr,0,MAX(0,MIN(J16,J16/I16*(wST.Jahr-Z16)-J16/I16*IF(MONTH(H16)>6,0.5,0))))) -> 0 | Q16: =IF(SUM(J16,K16)=0,1,1-L16/SUM(J16,K16)) -> 1 | R16: =(K16+J16-P16)*Q16 -> 0 | S16: =MAX(0,(Z16+I16-wST.Jahr+IF(AND(Z16<>wST.Jahr,MONTH(H16)>6),0.5,0))*IF(AND(Z16=wST.Jahr,MONTH(H16)>6),2,1)) -> 0 | T16: =U16+V16 -> 0 | U16: =IF(S16=0,0,IF(Z16>wST.Jahr,0,MAX(0,MIN(R16,R16/S16)))) -> 0 | V16: =(K16+J16-P16)*(1-Q16) -> 0 | W16: =MIN(J16+K16,P16+U16+V16) -> 0 | X16: =IF(Z16>wST.Jahr,0,J16+K16-W16) -> 0 | Y16: =IF(D16=0,0,IF(VALUE(LEFT(D16,3))=wST.Ansatz,1,0)) -> 0 | Z16: =YEAR(H16) -> 1900 | AA16: =IF(Z16>wST.Jahr-1,0,J16*Y16) -> 0 | AC16: =IF($M16=AC$7,$T16,) -> 0 | AD16: 0 | AE16: 0 | AF16: =IF($M16=AF$7,$X16,) -> 0 | AG16: 0 | AH16: 0
A17: =Y17>0 -> FALSE | B17: + - | J17: 0 | N17: =IF(AND(M17="",D17=""),"",IF(AND(D17<>"",M17=""),"Keine Zuordnung",IF(OR(M17=$AC$7,M17=$AD$7,M17=$AE$7),"OK","Falsche Kostenstelle"))) ->  | O17: =IF(AND(Z17+I17<=wST.Jahr,K17<>0,NOT(ISBLANK(I17))),"Zugang ungültig!",IF(Z17>wST.Jahr,0,SUM(J17,K17,-L17))) -> 0 | P17: =IF(I17=0,0,IF(Z17>=wST.Jahr,0,MAX(0,MIN(J17,J17/I17*(wST.Jahr-Z17)-J17/I17*IF(MONTH(H17)>6,0.5,0))))) -> 0 | Q17: =IF(SUM(J17,K17)=0,1,1-L17/SUM(J17,K17)) -> 1 | R17: =(K17+J17-P17)*Q17 -> 0 | S17: =MAX(0,(Z17+I17-wST.Jahr+IF(AND(Z17<>wST.Jahr,MONTH(H17)>6),0.5,0))*IF(AND(Z17=wST.Jahr,MONTH(H17)>6),2,1)) -> 0 | T17: =U17+V17 -> 0 | U17: =IF(S17=0,0,IF(Z17>wST.Jahr,0,MAX(0,MIN(R17,R17/S17)))) -> 0 | V17: =(K17+J17-P17)*(1-Q17) -> 0 | W17: =MIN(J17+K17,P17+U17+V17) -> 0 | X17: =IF(Z17>wST.Jahr,0,J17+K17-W17) -> 0 | Y17: =IF(D17=0,0,IF(VALUE(LEFT(D17,3))=wST.Ansatz,1,0)) -> 0 | Z17: =YEAR(H17) -> 1900 | AA17: =IF(Z17>wST.Jahr-1,0,J17*Y17) -> 0 | AC17: 0 | AD17: 0 | AE17: 0 | AF17: 0 | AG17: 0 | AH17: 0
A18: =Y18>0 -> FALSE | B18: + - | J18: 0 | N18: =IF(AND(M18="",D18=""),"",IF(AND(D18<>"",M18=""),"Keine Zuordnung",IF(OR(M18=$AC$7,M18=$AD$7,M18=$AE$7),"OK","Falsche Kostenstelle"))) ->  | O18: =IF(AND(Z18+I18<=wST.Jahr,K18<>0,NOT(ISBLANK(I18))),"Zugang ungültig!",IF(Z18>wST.Jahr,0,SUM(J18,K18,-L18))) -> 0 | P18: =IF(I18=0,0,IF(Z18>=wST.Jahr,0,MAX(0,MIN(J18,J18/I18*(wST.Jahr-Z18)-J18/I18*IF(MONTH(H18)>6,0.5,0))))) -> 0 | Q18: =IF(SUM(J18,K18)=0,1,1-L18/SUM(J18,K18)) -> 1 | R18: =(K18+J18-P18)*Q18 -> 0 | S18: =MAX(0,(Z18+I18-wST.Jahr+IF(AND(Z18<>wST.Jahr,MONTH(H18)>6),0.5,0))*IF(AND(Z18=wST.Jahr,MONTH(H18)>6),2,1)) -> 0 | T18: =U18+V18 -> 0 | U18: =IF(S18=0,0,IF(Z18>wST.Jahr,0,MAX(0,MIN(R18,R18/S18)))) -> 0 | V18: =(K18+J18-P18)*(1-Q18) -> 0 | W18: =MIN(J18+K18,P18+U18+V18) -> 0 | X18: =IF(Z18>wST.Jahr,0,J18+K18-W18) -> 0 | Y18: =IF(D18=0,0,IF(VALUE(LEFT(D18,3))=wST.Ansatz,1,0)) -> 0 | Z18: =YEAR(H18) -> 1900 | AA18: =IF(Z18>wST.Jahr-1,0,J18*Y18) -> 0 | AC18: 0 | AD18: 0 | AE18: 0 | AF18: 0 | AG18: 0 | AH18: 0
A19: =Y19>0 -> FALSE | B19: + - | J19: 0 | N19: =IF(AND(M19="",D19=""),"",IF(AND(D19<>"",M19=""),"Keine Zuordnung",IF(OR(M19=$AC$7,M19=$AD$7,M19=$AE$7),"OK","Falsche Kostenstelle"))) ->  | O19: =IF(AND(Z19+I19<=wST.Jahr,K19<>0,NOT(ISBLANK(I19))),"Zugang ungültig!",IF(Z19>wST.Jahr,0,SUM(J19,K19,-L19))) -> 0 | P19: =IF(I19=0,0,IF(Z19>=wST.Jahr,0,MAX(0,MIN(J19,J19/I19*(wST.Jahr-Z19)-J19/I19*IF(MONTH(H19)>6,0.5,0))))) -> 0 | Q19: =IF(SUM(J19,K19)=0,1,1-L19/SUM(J19,K19)) -> 1 | R19: =(K19+J19-P19)*Q19 -> 0 | S19: =MAX(0,(Z19+I19-wST.Jahr+IF(AND(Z19<>wST.Jahr,MONTH(H19)>6),0.5,0))*IF(AND(Z19=wST.Jahr,MONTH(H19)>6),2,1)) -> 0 | T19: =U19+V19 -> 0 | U19: =IF(S19=0,0,IF(Z19>wST.Jahr,0,MAX(0,MIN(R19,R19/S19)))) -> 0 | V19: =(K19+J19-P19)*(1-Q19) -> 0 | W19: =MIN(J19+K19,P19+U19+V19) -> 0 | X19: =IF(Z19>wST.Jahr,0,J19+K19-W19) -> 0 | Y19: =IF(D19=0,0,IF(VALUE(LEFT(D19,3))=wST.Ansatz,1,0)) -> 0 | Z19: =YEAR(H19) -> 1900 | AA19: =IF(Z19>wST.Jahr-1,0,J19*Y19) -> 0 | AC19: 0 | AD19: 0 | AE19: 0 | AF19: 0 | AG19: 0 | AH19: 0
A20: =Y20>0 -> FALSE | P20: =IF(I20=0,0,IF(Z20>=wST.Jahr,0,MAX(0,MIN(J20,J20/I20*(wST.Jahr-Z20)-J20/I20*IF(MONTH(H20)>6,0.5,0))))) -> 0 | Q20: =IF(SUM(J20,K20)=0,1,1-L20/SUM(J20,K20)) -> 1 | R20: =(K20+J20-P20)*Q20 -> 0 | S20: =MAX(0,(Z20+I20-wST.Jahr+IF(AND(Z20<>wST.Jahr,MONTH(H20)>6),0.5,0))*IF(AND(Z20=wST.Jahr,MONTH(H20)>6),2,1)) -> 0 | U20: =IF(S20=0,0,IF(Z20>wST.Jahr,0,MAX(0,MIN(R20,R20/S20)))) -> 0 | V20: =(K20+J20-P20)*(1-Q20) -> 0
A21: =O21>0 -> FALSE | C21: 2 | D21: Straßenbauten | J21: =SUMPRODUCT(J22:J26,$Y22:$Y26) -> 0 | K21: =SUMPRODUCT(K22:K26,$Y22:$Y26) -> 0 | L21: =SUMPRODUCT(L22:L26,$Y22:$Y26) -> 0 | O21: =SUMPRODUCT(O22:O26,$Y22:$Y26) -> 0 | P21: =SUMPRODUCT(P22:P26,$Y22:$Y26) -> 0 | T21: =SUMPRODUCT(T22:T26,$Y22:$Y26) -> 0 | U21: =SUMPRODUCT(U22:U26,$Y22:$Y26) -> 0 | W21: =SUMPRODUCT(W22:W26,$Y22:$Y26) -> 0 | X21: =SUMPRODUCT(X22:X26,$Y22:$Y26) -> 0 | AA21: =SUM(AA22:AA26) -> 0
A22: =Y22>0 -> FALSE | B22: + - | J22: 0 | N22: =IF(AND(M22="",D22=""),"",IF(AND(D22<>"",M22=""),"Keine Zuordnung",IF(OR(M22=$AC$7,M22=$AD$7,M22=$AE$7),"OK","Falsche Kostenstelle"))) ->  | O22: =IF(AND(Z22+I22<=wST.Jahr,K22<>0,NOT(ISBLANK(I22))),"Zugang ungültig!",IF(Z22>wST.Jahr,0,SUM(J22,K22,-L22))) -> 0 | P22: =IF(I22=0,0,IF(Z22>=wST.Jahr,0,MAX(0,MIN(J22,J22/I22*(wST.Jahr-Z22)-J22/I22*IF(MONTH(H22)>6,0.5,0))))) -> 0 | Q22: =IF(SUM(J22,K22)=0,1,1-L22/SUM(J22,K22)) -> 1 | R22: =(K22+J22-P22)*Q22 -> 0 | S22: =MAX(0,(Z22+I22-wST.Jahr+IF(AND(Z22<>wST.Jahr,MONTH(H22)>6),0.5,0))*IF(AND(Z22=wST.Jahr,MONTH(H22)>6),2,1)) -> 0 | T22: =U22+V22 -> 0 | U22: =IF(S22=0,0,IF(Z22>wST.Jahr,0,MAX(0,MIN(R22,R22/S22)))) -> 0 | V22: =(K22+J22-P22)*(1-Q22) -> 0 | W22: =MIN(J22+K22,P22+U22+V22) -> 0 | X22: =IF(Z22>wST.Jahr,0,J22+K22-W22) -> 0 | Y22: =IF(D22=0,0,IF(VALUE(LEFT(D22,3))=wST.Ansatz,1,0)) -> 0 | Z22: =YEAR(H22) -> 1900 | AA22: =IF(Z22>wST.Jahr-1,0,J22*Y22) -> 0 | AC22: =IF($M22=AC$7,$T22,) -> 0 | AD22: 0 | AE22: 0 | AF22: =IF($M22=AF$7,$X22,) -> 0 | AG22: 0 | AH22: 0
A23: FALSE | B23: + - | J23: 0 | O23: 0 | P23: 0 | Q23: 1 | R23: 0 | S23: 0 | T23: 0 | U23: 0 | V23: 0 | W23: 0 | X23: 0 | Y23: 0 | Z23: 1900 | AA23: 0 | AC23: 0 | AD23: 0 | AE23: 0 | AF23: 0 | AG23: 0 | AH23: 0
A24: FALSE | B24: + - | J24: 0 | O24: 0 | P24: 0 | Q24: 1 | R24: 0 | S24: 0 | T24: 0 | U24: 0 | V24: 0 | W24: 0 | X24: 0 | Y24: 0 | Z24: 1900 | AA24: 0 | AC24: 0 | AD24: 0 | AE24: 0 | AF24: 0 | AG24: 0 | AH24: 0
A25: =Y25>0 -> FALSE | B25: + - | J25: 0 | N25: =IF(AND(M25="",D25=""),"",IF(AND(D25<>"",M25=""),"Keine Zuordnung",IF(OR(M25=$AC$7,M25=$AD$7,M25=$AE$7),"OK","Falsche Kostenstelle"))) ->  | O25: =IF(AND(Z25+I25<=wST.Jahr,K25<>0,NOT(ISBLANK(I25))),"Zugang ungültig!",IF(Z25>wST.Jahr,0,SUM(J25,K25,-L25))) -> 0 | P25: =IF(I25=0,0,IF(Z25>=wST.Jahr,0,MAX(0,MIN(J25,J25/I25*(wST.Jahr-Z25)-J25/I25*IF(MONTH(H25)>6,0.5,0))))) -> 0 | Q25: =IF(SUM(J25,K25)=0,1,1-L25/SUM(J25,K25)) -> 1 | R25: =(K25+J25-P25)*Q25 -> 0 | S25: =MAX(0,(Z25+I25-wST.Jahr+IF(AND(Z25<>wST.Jahr,MONTH(H25)>6),0.5,0))*IF(AND(Z25=wST.Jahr,MONTH(H25)>6),2,1)) -> 0 | T25: =U25+V25 -> 0 | U25: =IF(S25=0,0,IF(Z25>wST.Jahr,0,MAX(0,MIN(R25,R25/S25)))) -> 0 | V25: =(K25+J25-P25)*(1-Q25) -> 0 | W25: =MIN(J25+K25,P25+U25+V25) -> 0 | X25: =IF(Z25>wST.Jahr,0,J25+K25-W25) -> 0 | Y25: =IF(D25=0,0,IF(VALUE(LEFT(D25,3))=wST.Ansatz,1,0)) -> 0 | Z25: =YEAR(H25) -> 1900 | AA25: =IF(Z25>wST.Jahr-1,0,J25*Y25) -> 0 | AC25: 0 | AD25: 0 | AE25: 0 | AF25: 0 | AG25: 0 | AH25: 0
A26: FALSE | P26: 0 | Q26: 1 | R26: 0 | S26: 0 | U26: 0 | V26: 0
A27: =O27>0 -> FALSE | C27: 4 | D27: Wasser- und Abwasserbauten- und anlagen | J27: =SUMPRODUCT(J28:J62,$Y28:$Y62) -> 0 | K27: =SUMPRODUCT(K28:K62,$Y28:$Y62) -> 0 | L27: =SUMPRODUCT(L28:L62,$Y28:$Y62) -> 0 | O27: =SUMPRODUCT(O28:O62,$Y28:$Y62) -> 0 | P27: =SUMPRODUCT(P28:P62,$Y28:$Y62) -> 0 | T27: =SUMPRODUCT(T28:T62,$Y28:$Y62) -> 0 | U27: =SUMPRODUCT(U28:U62,$Y28:$Y62) -> 0 | W27: =SUMPRODUCT(W28:W62,$Y28:$Y62) -> 0 | X27: =SUMPRODUCT(X28:X62,$Y28:$Y62) -> 0 | AA27: =SUM(AA28:AA62) -> 0
A28: =Y28>0 -> FALSE | B28: + - | J28: 0 | N28: =IF(AND(M28="",D28=""),"",IF(AND(D28<>"",M28=""),"Keine Zuordnung",IF(OR(M28=$AC$7,M28=$AD$7,M28=$AE$7),"OK","Falsche Kostenstelle"))) ->  | O28: =IF(AND(Z28+I28<=wST.Jahr,K28<>0,NOT(ISBLANK(I28))),"Zugang ungültig!",IF(Z28>wST.Jahr,0,SUM(J28,K28,-L28))) -> 0 | P28: =IF(I28=0,0,IF(Z28>=wST.Jahr,0,MAX(0,MIN(J28,J28/I28*(wST.Jahr-Z28)-J28/I28*IF(MONTH(H28)>6,0.5,0))))) -> 0 | Q28: =IF(SUM(J28,K28)=0,1,1-L28/SUM(J28,K28)) -> 1 | R28: =(K28+J28-P28)*Q28 -> 0 | S28: =MAX(0,(Z28+I28-wST.Jahr+IF(AND(Z28<>wST.Jahr,MONTH(H28)>6),0.5,0))*IF(AND(Z28=wST.Jahr,MONTH(H28)>6),2,1)) -> 0 | T28: =U28+V28 -> 0 | U28: =IF(S28=0,0,IF(Z28>wST.Jahr,0,MAX(0,MIN(R28,R28/S28)))) -> 0 | V28: =(K28+J28-P28)*(1-Q28) -> 0 | W28: =MIN(J28+K28,P28+U28+V28) -> 0 | X28: =IF(Z28>wST.Jahr,0,J28+K28-W28) -> 0 | Y28: =IF(D28=0,0,IF(VALUE(LEFT(D28,3))=wST.Ansatz,1,0)) -> 0 | Z28: =YEAR(H28) -> 1900 | AA28: =IF(Z28>wST.Jahr-1,0,J28*Y28) -> 0 | AC28: =IF($M28=AC$7,$T28,) -> 0 | AD28: 0 | AE28: 0 | AF28: =IF($M28=AF$7,$X28,) -> 0 | AG28: 0 | AH28: 0
A29: FALSE | B29: + - | J29: 0 | O29: 0 | P29: 0 | Q29: 1 | R29: 0 | S29: 0 | T29: 0 | U29: 0 | V29: 0 | W29: 0 | X29: 0 | Y29: 0 | Z29: 1900 | AA29: 0 | AC29: 0 | AD29: 0 | AE29: 0 | AF29: 0 | AG29: 0 | AH29: 0
A30: FALSE | B30: + - | J30: 0 | O30: 0 | P30: 0 | Q30: 1 | R30: 0 | S30: 0 | T30: 0 | U30: 0 | V30: 0 | W30: 0 | X30: 0 | Y30: 0 | Z30: 1900 | AA30: 0 | AC30: 0 | AD30: 0 | AE30: 0 | AF30: 0 | AG30: 0 | AH30: 0
A31: =Y31>0 -> FALSE | B31: + - | J31: 0 | N31: =IF(AND(M31="",D31=""),"",IF(AND(D31<>"",M31=""),"Keine Zuordnung",IF(OR(M31=$AC$7,M31=$AD$7,M31=$AE$7),"OK","Falsche Kostenstelle"))) ->  | O31: =IF(AND(Z31+I31<=wST.Jahr,K31<>0,NOT(ISBLANK(I31))),"Zugang ungültig!",IF(Z31>wST.Jahr,0,SUM(J31,K31,-L31))) -> 0 | P31: =IF(I31=0,0,IF(Z31>=wST.Jahr,0,MAX(0,MIN(J31,J31/I31*(wST.Jahr-Z31)-J31/I31*IF(MONTH(H31)>6,0.5,0))))) -> 0 | Q31: =IF(SUM(J31,K31)=0,1,1-L31/SUM(J31,K31)) -> 1 | R31: =(K31+J31-P31)*Q31 -> 0 | S31: =MAX(0,(Z31+I31-wST.Jahr+IF(AND(Z31<>wST.Jahr,MONTH(H31)>6),0.5,0))*IF(AND(Z31=wST.Jahr,MONTH(H31)>6),2,1)) -> 0 | T31: =U31+V31 -> 0 | U31: =IF(S31=0,0,IF(Z31>wST.Jahr,0,MAX(0,MIN(R31,R31/S31)))) -> 0 | V31: =(K31+J31-P31)*(1-Q31) -> 0 | W31: =MIN(J31+K31,P31+U31+V31) -> 0 | X31: =IF(Z31>wST.Jahr,0,J31+K31-W31) -> 0 | Y31: =IF(D31=0,0,IF(VALUE(LEFT(D31,3))=wST.Ansatz,1,0)) -> 0 | Z31: =YEAR(H31) -> 1900 | AA31: =IF(Z31>wST.Jahr-1,0,J31*Y31) -> 0 | AC31: 0 | AD31: 0 | AE31: 0 | AF31: 0 | AG31: 0 | AH31: 0
A32: FALSE | B32: + - | J32: 0 | O32: 0 | P32: 0 | Q32: 1 | R32: 0 | S32: 0 | T32: 0 | U32: 0 | V32: 0 | W32: 0 | X32: 0 | Y32: 0 | Z32: 1900 | AA32: 0 | AC32: =IF($M32=AC$7,$T32,) -> 0 | AD32: 0 | AE32: 0 | AF32: =IF($M32=AF$7,$X32,) -> 0 | AG32: 0 | AH32: 0
A33: FALSE | B33: + - | J33: 0 | O33: 0 | P33: 0 | Q33: 1 | R33: 0 | S33: 0 | T33: 0 | U33: 0 | V33: 0 | W33: 0 | X33: 0 | Y33: 0 | Z33: 1900 | AA33: 0 | AC33: 0 | AD33: 0 | AE33: 0 | AF33: 0 | AG33: 0 | AH33: 0
A34: FALSE | B34: + - | J34: 0 | O34: 0 | P34: 0 | Q34: 1 | R34: 0 | S34: 0 | T34: 0 | U34: 0 | V34: 0 | W34: 0 | X34: 0 | Y34: 0 | Z34: 1900 | AA34: 0 | AC34: 0 | AD34: 0 | AE34: 0 | AF34: 0 | AG34: 0 | AH34: 0
A35: FALSE | B35: + - | J35: 0 | O35: 0 | P35: 0 | Q35: 1 | R35: 0 | S35: 0 | T35: 0 | U35: 0 | V35: 0 | W35: 0 | X35: 0 | Y35: 0 | Z35: 1900 | AA35: 0 | AC35: 0 | AD35: 0 | AE35: 0 | AF35: 0 | AG35: 0 | AH35: 0
A36: FALSE | B36: + - | J36: 0 | O36: 0 | P36: 0 | Q36: 1 | R36: 0 | S36: 0 | T36: 0 | U36: 0 | V36: 0 | W36: 0 | X36: 0 | Y36: 0 | Z36: 1900 | AA36: 0 | AC36: 0 | AD36: 0 | AE36: 0 | AF36: 0 | AG36: 0 | AH36: 0
A37: FALSE | B37: + - | J37: 0 | O37: 0 | P37: 0 | Q37: 1 | R37: 0 | S37: 0 | T37: 0 | U37: 0 | V37: 0 | W37: 0 | X37: 0 | Y37: 0 | Z37: 1900 | AA37: 0 | AC37: 0 | AD37: 0 | AE37: 0 | AF37: 0 | AG37: 0 | AH37: 0
A38: FALSE | B38: + - | J38: 0 | O38: 0 | P38: 0 | Q38: 1 | R38: 0 | S38: 0 | T38: 0 | U38: 0 | V38: 0 | W38: 0 | X38: 0 | Y38: 0 | Z38: 1900 | AA38: 0 | AC38: 0 | AD38: 0 | AE38: 0 | AF38: 0 | AG38: 0 | AH38: 0
A39: FALSE | B39: + - | J39: 0 | O39: 0 | P39: 0 | Q39: 1 | R39: 0 | S39: 0 | T39: 0 | U39: 0 | V39: 0 | W39: 0 | X39: 0 | Y39: 0 | Z39: 1900 | AA39: 0 | AC39: 0 | AD39: 0 | AE39: 0 | AF39: 0 | AG39: 0 | AH39: 0
A40: FALSE | B40: + - | J40: 0 | O40: 0 | P40: 0 | Q40: 1 | R40: 0 | S40: 0 | T40: 0 | U40: 0 | V40: 0 | W40: 0 | X40: 0 | Y40: 0 | Z40: 1900 | AA40: 0 | AC40: 0 | AD40: 0 | AE40: 0 | AF40: 0 | AG40: 0 | AH40: 0
A41: FALSE | B41: + - | J41: 0 | O41: 0 | P41: 0 | Q41: 1 | R41: 0 | S41: 0 | T41: 0 | U41: 0 | V41: 0 | W41: 0 | X41: 0 | Y41: 0 | Z41: 1900 | AA41: 0 | AC41: 0 | AD41: 0 | AE41: 0 | AF41: 0 | AG41: 0 | AH41: 0
A42: FALSE | B42: + - | J42: 0 | O42: 0 | P42: 0 | Q42: 1 | R42: 0 | S42: 0 | T42: 0 | U42: 0 | V42: 0 | W42: 0 | X42: 0 | Y42: 0 | Z42: 1900 | AA42: 0 | AC42: 0 | AD42: 0 | AE42: 0 | AF42: 0 | AG42: 0 | AH42: 0
A43: FALSE | B43: + - | J43: 0 | O43: 0 | P43: 0 | Q43: 1 | R43: 0 | S43: 0 | T43: 0 | U43: 0 | V43: 0 | W43: 0 | X43: 0 | Y43: 0 | Z43: 1900 | AA43: 0 | AC43: 0 | AD43: 0 | AE43: 0 | AF43: 0 | AG43: 0 | AH43: 0
A44: FALSE | B44: + - | J44: 0 | O44: 0 | P44: 0 | Q44: 1 | R44: 0 | S44: 0 | T44: 0 | U44: 0 | V44: 0 | W44: 0 | X44: 0 | Y44: 0 | Z44: 1900 | AA44: 0 | AC44: 0 | AD44: 0 | AE44: 0 | AF44: 0 | AG44: 0 | AH44: 0
A45: FALSE | B45: + - | J45: 0 | O45: 0 | P45: 0 | Q45: 1 | R45: 0 | S45: 0 | T45: 0 | U45: 0 | V45: 0 | W45: 0 | X45: 0 | Y45: 0 | Z45: 1900 | AA45: 0 | AC45: 0 | AD45: 0 | AE45: 0 | AF45: 0 | AG45: 0 | AH45: 0
A46: =Y46>0 -> FALSE | B46: + - | J46: 0 | N46: =IF(AND(M46="",D46=""),"",IF(AND(D46<>"",M46=""),"Keine Zuordnung",IF(OR(M46=$AC$7,M46=$AD$7,M46=$AE$7),"OK","Falsche Kostenstelle"))) ->  | O46: =IF(AND(Z46+I46<=wST.Jahr,K46<>0,NOT(ISBLANK(I46))),"Zugang ungültig!",IF(Z46>wST.Jahr,0,SUM(J46,K46,-L46))) -> 0 | P46: =IF(I46=0,0,IF(Z46>=wST.Jahr,0,MAX(0,MIN(J46,J46/I46*(wST.Jahr-Z46)-J46/I46*IF(MONTH(H46)>6,0.5,0))))) -> 0 | Q46: =IF(SUM(J46,K46)=0,1,1-L46/SUM(J46,K46)) -> 1 | R46: =(K46+J46-P46)*Q46 -> 0 | S46: =MAX(0,(Z46+I46-wST.Jahr+IF(AND(Z46<>wST.Jahr,MONTH(H46)>6),0.5,0))*IF(AND(Z46=wST.Jahr,MONTH(H46)>6),2,1)) -> 0 | T46: =U46+V46 -> 0 | U46: =IF(S46=0,0,IF(Z46>wST.Jahr,0,MAX(0,MIN(R46,R46/S46)))) -> 0 | V46: =(K46+J46-P46)*(1-Q46) -> 0 | W46: =MIN(J46+K46,P46+U46+V46) -> 0 | X46: =IF(Z46>wST.Jahr,0,J46+K46-W46) -> 0 | Y46: =IF(D46=0,0,IF(VALUE(LEFT(D46,3))=wST.Ansatz,1,0)) -> 0 | Z46: =YEAR(H46) -> 1900 | AA46: =IF(Z46>wST.Jahr-1,0,J46*Y46) -> 0 | AC46: 0 | AD46: 0 | AE46: 0 | AF46: 0 | AG46: 0 | AH46: 0
A47: FALSE | B47: + - | J47: 0 | O47: 0 | P47: 0 | Q47: 1 | R47: 0 | S47: 0 | T47: 0 | U47: 0 | V47: 0 | W47: 0 | X47: 0 | Y47: 0 | Z47: 1900 | AA47: 0 | AC47: 0 | AD47: 0 | AE47: 0 | AF47: 0 | AG47: 0 | AH47: 0
A48: FALSE | B48: + - | J48: 0 | O48: 0 | P48: 0 | Q48: 1 | R48: 0 | S48: 0 | T48: 0 | U48: 0 | V48: 0 | W48: 0 | X48: 0 | Y48: 0 | Z48: 1900 | AA48: 0 | AC48: 0 | AD48: 0 | AE48: 0 | AF48: 0 | AG48: 0 | AH48: 0
A49: FALSE | B49: + - | J49: 0 | O49: 0 | P49: 0 | Q49: 1 | R49: 0 | S49: 0 | T49: 0 | U49: 0 | V49: 0 | W49: 0 | X49: 0 | Y49: 0 | Z49: 1900 | AA49: 0 | AC49: 0 | AD49: 0 | AE49: 0 | AF49: 0 | AG49: 0 | AH49: 0
A50: FALSE | B50: + - | J50: 0 | O50: 0 | P50: 0 | Q50: 1 | R50: 0 | S50: 0 | T50: 0 | U50: 0 | V50: 0 | W50: 0 | X50: 0 | Y50: 0 | Z50: 1900 | AA50: 0 | AC50: 0 | AD50: 0 | AE50: 0 | AF50: 0 | AG50: 0 | AH50: 0
A51: FALSE | B51: + - | J51: 0 | O51: 0 | P51: 0 | Q51: 1 | R51: 0 | S51: 0 | T51: 0 | U51: 0 | V51: 0 | W51: 0 | X51: 0 | Y51: 0 | Z51: 1900 | AA51: 0 | AC51: 0 | AD51: 0 | AE51: 0 | AF51: 0 | AG51: 0 | AH51: 0
A52: FALSE | B52: + - | J52: 0 | O52: 0 | P52: 0 | Q52: 1 | R52: 0 | S52: 0 | T52: 0 | U52: 0 | V52: 0 | W52: 0 | X52: 0 | Y52: 0 | Z52: 1900 | AA52: 0 | AC52: 0 | AD52: 0 | AE52: 0 | AF52: 0 | AG52: 0 | AH52: 0
A53: FALSE | B53: + - | J53: 0 | O53: 0 | P53: 0 | Q53: 1 | R53: 0 | S53: 0 | T53: 0 | U53: 0 | V53: 0 | W53: 0 | X53: 0 | Y53: 0 | Z53: 1900 | AA53: 0 | AC53: 0 | AD53: 0 | AE53: 0 | AF53: 0 | AG53: 0 | AH53: 0
A54: =Y54>0 -> FALSE | B54: + - | J54: 0 | N54: =IF(AND(M54="",D54=""),"",IF(AND(D54<>"",M54=""),"Keine Zuordnung",IF(OR(M54=$AC$7,M54=$AD$7,M54=$AE$7),"OK","Falsche Kostenstelle"))) ->  | O54: =IF(AND(Z54+I54<=wST.Jahr,K54<>0,NOT(ISBLANK(I54))),"Zugang ungültig!",IF(Z54>wST.Jahr,0,SUM(J54,K54,-L54))) -> 0 | P54: =IF(I54=0,0,IF(Z54>=wST.Jahr,0,MAX(0,MIN(J54,J54/I54*(wST.Jahr-Z54)-J54/I54*IF(MONTH(H54)>6,0.5,0))))) -> 0 | Q54: =IF(SUM(J54,K54)=0,1,1-L54/SUM(J54,K54)) -> 1 | R54: =(K54+J54-P54)*Q54 -> 0 | S54: =MAX(0,(Z54+I54-wST.Jahr+IF(AND(Z54<>wST.Jahr,MONTH(H54)>6),0.5,0))*IF(AND(Z54=wST.Jahr,MONTH(H54)>6),2,1)) -> 0 | T54: =U54+V54 -> 0 | U54: =IF(S54=0,0,IF(Z54>wST.Jahr,0,MAX(0,MIN(R54,R54/S54)))) -> 0 | V54: =(K54+J54-P54)*(1-Q54) -> 0 | W54: =MIN(J54+K54,P54+U54+V54) -> 0 | X54: =IF(Z54>wST.Jahr,0,J54+K54-W54) -> 0 | Y54: =IF(D54=0,0,IF(VALUE(LEFT(D54,3))=wST.Ansatz,1,0)) -> 0 | Z54: =YEAR(H54) -> 1900 | AA54: =IF(Z54>wST.Jahr-1,0,J54*Y54) -> 0 | AC54: =IF($M54=AC$7,$T54,) -> 0 | AD54: =IF($M54=AD$7,$T54,) -> 0 | AE54: =IF($M54=AE$7,$T54,) -> 0 | AF54: =IF($M54=AF$7,$X54,) -> 0 | AG54: =IF($M54=AG$7,$X54,) -> 0 | AH54: =IF($M54=AH$7,$X54,) -> 0
A55: FALSE | B55: + - | J55: 0 | O55: 0 | P55: 0 | Q55: 1 | R55: 0 | S55: 0 | T55: 0 | U55: 0 | V55: 0 | W55: 0 | X55: 0 | Y55: 0 | Z55: 1900 | AA55: 0 | AC55: 0 | AD55: 0 | AE55: 0 | AF55: 0 | AG55: 0 | AH55: 0
A56: FALSE | B56: + - | J56: 0 | O56: 0 | P56: 0 | Q56: 1 | R56: 0 | S56: 0 | T56: 0 | U56: 0 | V56: 0 | W56: 0 | X56: 0 | Y56: 0 | Z56: 1900 | AA56: 0 | AC56: 0 | AD56: 0 | AE56: 0 | AF56: 0 | AG56: 0 | AH56: 0
A57: FALSE | B57: + - | J57: 0 | O57: 0 | P57: 0 | Q57: 1 | R57: 0 | S57: 0 | T57: 0 | U57: 0 | V57: 0 | W57: 0 | X57: 0 | Y57: 0 | Z57: 1900 | AA57: 0 | AC57: 0 | AD57: 0 | AE57: 0 | AF57: 0 | AG57: 0 | AH57: 0
A58: FALSE | B58: + - | J58: 0 | O58: 0 | P58: 0 | Q58: 1 | R58: 0 | S58: 0 | T58: 0 | U58: 0 | V58: 0 | W58: 0 | X58: 0 | Y58: 0 | Z58: 1900 | AA58: 0 | AC58: 0 | AD58: 0 | AE58: 0 | AF58: 0 | AG58: 0 | AH58: 0
A59: FALSE | B59: + - | J59: 0 | O59: 0 | P59: 0 | Q59: 1 | R59: 0 | S59: 0 | T59: 0 | U59: 0 | V59: 0 | W59: 0 | X59: 0 | Y59: 0 | Z59: 1900 | AA59: 0 | AC59: 0 | AD59: 0 | AE59: 0 | AF59: 0 | AG59: 0 | AH59: 0
A60: FALSE | B60: + - | J60: 0 | O60: 0 | P60: 0 | Q60: 1 | R60: 0 | S60: 0 | T60: 0 | U60: 0 | V60: 0 | W60: 0 | X60: 0 | Y60: 0 | Z60: 1900 | AA60: 0 | AC60: 0 | AD60: 0 | AE60: 0 | AF60: 0 | AG60: 0 | AH60: 0
A61: =Y61>0 -> FALSE | B61: + - | J61: 0 | N61: =IF(AND(M61="",D61=""),"",IF(AND(D61<>"",M61=""),"Keine Zuordnung",IF(OR(M61=$AC$7,M61=$AD$7,M61=$AE$7),"OK","Falsche Kostenstelle"))) ->  | O61: =IF(AND(Z61+I61<=wST.Jahr,K61<>0,NOT(ISBLANK(I61))),"Zugang ungültig!",IF(Z61>wST.Jahr,0,SUM(J61,K61,-L61))) -> 0 | P61: =IF(I61=0,0,IF(Z61>=wST.Jahr,0,MAX(0,MIN(J61,J61/I61*(wST.Jahr-Z61)-J61/I61*IF(MONTH(H61)>6,0.5,0))))) -> 0 | Q61: =IF(SUM(J61,K61)=0,1,1-L61/SUM(J61,K61)) -> 1 | R61: =(K61+J61-P61)*Q61 -> 0 | S61: =MAX(0,(Z61+I61-wST.Jahr+IF(AND(Z61<>wST.Jahr,MONTH(H61)>6),0.5,0))*IF(AND(Z61=wST.Jahr,MONTH(H61)>6),2,1)) -> 0 | T61: =U61+V61 -> 0 | U61: =IF(S61=0,0,IF(Z61>wST.Jahr,0,MAX(0,MIN(R61,R61/S61)))) -> 0 | V61: =(K61+J61-P61)*(1-Q61) -> 0 | W61: =MIN(J61+K61,P61+U61+V61) -> 0 | X61: =IF(Z61>wST.Jahr,0,J61+K61-W61) -> 0 | Y61: =IF(D61=0,0,IF(VALUE(LEFT(D61,3))=wST.Ansatz,1,0)) -> 0 | Z61: =YEAR(H61) -> 1900 | AA61: =IF(Z61>wST.Jahr-1,0,J61*Y61) -> 0 | AC61: 0 | AD61: 0 | AE61: 0 | AF61: 0 | AG61: 0 | AH61: 0
A62: FALSE | P62: 0 | Q62: 1 | R62: 0 | S62: 0 | U62: 0 | V62: 0
A63: =O63>0 -> FALSE | C63: 6 | D63: Sonstige Grundstückseinrichtungen | J63: =SUMPRODUCT(J64:J68,$Y64:$Y68) -> 0 | K63: =SUMPRODUCT(K64:K68,$Y64:$Y68) -> 0 | L63: =SUMPRODUCT(L64:L68,$Y64:$Y68) -> 0 | O63: =SUMPRODUCT(O64:O68,$Y64:$Y68) -> 0 | P63: =SUMPRODUCT(P64:P68,$Y64:$Y68) -> 0 | T63: =SUMPRODUCT(T64:T68,$Y64:$Y68) -> 0 | U63: =SUMPRODUCT(U64:U68,$Y64:$Y68) -> 0 | W63: =SUMPRODUCT(W64:W68,$Y64:$Y68) -> 0 | X63: =SUMPRODUCT(X64:X68,$Y64:$Y68) -> 0 | AA63: =SUM(AA64:AA68) -> 0
A64: =Y64>0 -> FALSE | B64: + - | J64: 0 | N64: =IF(AND(M64="",D64=""),"",IF(AND(D64<>"",M64=""),"Keine Zuordnung",IF(OR(M64=$AC$7,M64=$AD$7,M64=$AE$7),"OK","Falsche Kostenstelle"))) ->  | O64: =IF(AND(Z64+I64<=wST.Jahr,K64<>0,NOT(ISBLANK(I64))),"Zugang ungültig!",IF(Z64>wST.Jahr,0,SUM(J64,K64,-L64))) -> 0 | P64: =IF(I64=0,0,IF(Z64>=wST.Jahr,0,MAX(0,MIN(J64,J64/I64*(wST.Jahr-Z64)-J64/I64*IF(MONTH(H64)>6,0.5,0))))) -> 0 | Q64: =IF(SUM(J64,K64)=0,1,1-L64/SUM(J64,K64)) -> 1 | R64: =(K64+J64-P64)*Q64 -> 0 | S64: =MAX(0,(Z64+I64-wST.Jahr+IF(AND(Z64<>wST.Jahr,MONTH(H64)>6),0.5,0))*IF(AND(Z64=wST.Jahr,MONTH(H64)>6),2,1)) -> 0 | T64: =U64+V64 -> 0 | U64: =IF(S64=0,0,IF(Z64>wST.Jahr,0,MAX(0,MIN(R64,R64/S64)))) -> 0 | V64: =(K64+J64-P64)*(1-Q64) -> 0 | W64: =MIN(J64+K64,P64+U64+V64) -> 0 | X64: =IF(Z64>wST.Jahr,0,J64+K64-W64) -> 0 | Y64: =IF(D64=0,0,IF(VALUE(LEFT(D64,3))=wST.Ansatz,1,0)) -> 0 | Z64: =YEAR(H64) -> 1900 | AA64: =IF(Z64>wST.Jahr-1,0,J64*Y64) -> 0 | AC64: =IF($M64=AC$7,$T64,) -> 0 | AD64: 0 | AE64: 0 | AF64: =IF($M64=AF$7,$X64,) -> 0 | AG64: 0 | AH64: 0
A65: =Y65>0 -> FALSE | B65: + - | J65: 0 | N65: =IF(AND(M65="",D65=""),"",IF(AND(D65<>"",M65=""),"Keine Zuordnung",IF(OR(M65=$AC$7,M65=$AD$7,M65=$AE$7),"OK","Falsche Kostenstelle"))) ->  | O65: =IF(AND(Z65+I65<=wST.Jahr,K65<>0,NOT(ISBLANK(I65))),"Zugang ungültig!",IF(Z65>wST.Jahr,0,SUM(J65,K65,-L65))) -> 0 | P65: =IF(I65=0,0,IF(Z65>=wST.Jahr,0,MAX(0,MIN(J65,J65/I65*(wST.Jahr-Z65)-J65/I65*IF(MONTH(H65)>6,0.5,0))))) -> 0 | Q65: =IF(SUM(J65,K65)=0,1,1-L65/SUM(J65,K65)) -> 1 | R65: =(K65+J65-P65)*Q65 -> 0 | S65: =MAX(0,(Z65+I65-wST.Jahr+IF(AND(Z65<>wST.Jahr,MONTH(H65)>6),0.5,0))*IF(AND(Z65=wST.Jahr,MONTH(H65)>6),2,1)) -> 0 | T65: =U65+V65 -> 0 | U65: =IF(S65=0,0,IF(Z65>wST.Jahr,0,MAX(0,MIN(R65,R65/S65)))) -> 0 | V65: =(K65+J65-P65)*(1-Q65) -> 0 | W65: =MIN(J65+K65,P65+U65+V65) -> 0 | X65: =IF(Z65>wST.Jahr,0,J65+K65-W65) -> 0 | Y65: =IF(D65=0,0,IF(VALUE(LEFT(D65,3))=wST.Ansatz,1,0)) -> 0 | Z65: =YEAR(H65) -> 1900 | AA65: =IF(Z65>wST.Jahr-1,0,J65*Y65) -> 0 | AC65: 0 | AD65: 0 | AE65: 0 | AF65: 0 | AG65: 0 | AH65: 0
A66: =Y66>0 -> FALSE | B66: + - | J66: 0 | N66: =IF(AND(M66="",D66=""),"",IF(AND(D66<>"",M66=""),"Keine Zuordnung",IF(OR(M66=$AC$7,M66=$AD$7,M66=$AE$7),"OK","Falsche Kostenstelle"))) ->  | O66: =IF(AND(Z66+I66<=wST.Jahr,K66<>0,NOT(ISBLANK(I66))),"Zugang ungültig!",IF(Z66>wST.Jahr,0,SUM(J66,K66,-L66))) -> 0 | P66: =IF(I66=0,0,IF(Z66>=wST.Jahr,0,MAX(0,MIN(J66,J66/I66*(wST.Jahr-Z66)-J66/I66*IF(MONTH(H66)>6,0.5,0))))) -> 0 | Q66: =IF(SUM(J66,K66)=0,1,1-L66/SUM(J66,K66)) -> 1 | R66: =(K66+J66-P66)*Q66 -> 0 | S66: =MAX(0,(Z66+I66-wST.Jahr+IF(AND(Z66<>wST.Jahr,MONTH(H66)>6),0.5,0))*IF(AND(Z66=wST.Jahr,MONTH(H66)>6),2,1)) -> 0 | T66: =U66+V66 -> 0 | U66: =IF(S66=0,0,IF(Z66>wST.Jahr,0,MAX(0,MIN(R66,R66/S66)))) -> 0 | V66: =(K66+J66-P66)*(1-Q66) -> 0 | W66: =MIN(J66+K66,P66+U66+V66) -> 0 | X66: =IF(Z66>wST.Jahr,0,J66+K66-W66) -> 0 | Y66: =IF(D66=0,0,IF(VALUE(LEFT(D66,3))=wST.Ansatz,1,0)) -> 0 | Z66: =YEAR(H66) -> 1900 | AA66: =IF(Z66>wST.Jahr-1,0,J66*Y66) -> 0 | AC66: 0 | AD66: 0 | AE66: 0 | AF66: 0 | AG66: 0 | AH66: 0
A67: =Y67>0 -> FALSE | B67: + - | J67: 0 | N67: =IF(AND(M67="",D67=""),"",IF(AND(D67<>"",M67=""),"Keine Zuordnung",IF(OR(M67=$AC$7,M67=$AD$7,M67=$AE$7),"OK","Falsche Kostenstelle"))) ->  | O67: =IF(AND(Z67+I67<=wST.Jahr,K67<>0,NOT(ISBLANK(I67))),"Zugang ungültig!",IF(Z67>wST.Jahr,0,SUM(J67,K67,-L67))) -> 0 | P67: =IF(I67=0,0,IF(Z67>=wST.Jahr,0,MAX(0,MIN(J67,J67/I67*(wST.Jahr-Z67)-J67/I67*IF(MONTH(H67)>6,0.5,0))))) -> 0 | Q67: =IF(SUM(J67,K67)=0,1,1-L67/SUM(J67,K67)) -> 1 | R67: =(K67+J67-P67)*Q67 -> 0 | S67: =MAX(0,(Z67+I67-wST.Jahr+IF(AND(Z67<>wST.Jahr,MONTH(H67)>6),0.5,0))*IF(AND(Z67=wST.Jahr,MONTH(H67)>6),2,1)) -> 0 | T67: =U67+V67 -> 0 | U67: =IF(S67=0,0,IF(Z67>wST.Jahr,0,MAX(0,MIN(R67,R67/S67)))) -> 0 | V67: =(K67+J67-P67)*(1-Q67) -> 0 | W67: =MIN(J67+K67,P67+U67+V67) -> 0 | X67: =IF(Z67>wST.Jahr,0,J67+K67-W67) -> 0 | Y67: =IF(D67=0,0,IF(VALUE(LEFT(D67,3))=wST.Ansatz,1,0)) -> 0 | Z67: =YEAR(H67) -> 1900 | AA67: =IF(Z67>wST.Jahr-1,0,J67*Y67) -> 0 | AC67: 0 | AD67: 0 | AE67: 0 | AF67: 0 | AG67: 0 | AH67: 0
A68: =Y68>0 -> FALSE | P68: =IF(I68=0,0,IF(Z68>=wST.Jahr,0,MAX(0,MIN(J68,J68/I68*(wST.Jahr-Z68)-J68/I68*IF(MONTH(H68)>6,0.5,0))))) -> 0 | Q68: =IF(SUM(J68,K68)=0,1,1-L68/SUM(J68,K68)) -> 1 | R68: =(K68+J68-P68)*Q68 -> 0 | S68: =MAX(0,(Z68+I68-wST.Jahr+IF(AND(Z68<>wST.Jahr,MONTH(H68)>6),0.5,0))*IF(AND(Z68=wST.Jahr,MONTH(H68)>6),2,1)) -> 0 | U68: =IF(S68=0,0,IF(Z68>wST.Jahr,0,MAX(0,MIN(R68,R68/S68)))) -> 0 | V68: =(K68+J68-P68)*(1-Q68) -> 0
A69: =A8 -> FALSE | Y69: =IF(D69=0,0,IF(VALUE(LEFT(D69,3))=wST.Ansatz,1,0)) -> 0
A70: =O70>0 -> FALSE | C70: 1 | D70: GEBÄUDE UND BAUTEN | J70: =J71 -> 0 | K70: =K71 -> 0 | L70: =L71 -> 0 | O70: =O71 -> 0 | P70: =P71 -> 0 | T70: =T71 -> 0 | U70: =U71 -> 0 | W70: =W71 -> 0 | X70: =X71 -> 0
A71: =O71>0 -> FALSE | C71: 10 | D71: Gebäude und Bauten | J71: =SUMPRODUCT(J72:J76,$Y72:$Y76) -> 0 | K71: =SUMPRODUCT(K72:K76,$Y72:$Y76) -> 0 | L71: =SUMPRODUCT(L72:L76,$Y72:$Y76) -> 0 | O71: =SUMPRODUCT(O72:O76,$Y72:$Y76) -> 0 | P71: =SUMPRODUCT(P72:P76,$Y72:$Y76) -> 0 | T71: =SUMPRODUCT(T72:T76,$Y72:$Y76) -> 0 | U71: =SUMPRODUCT(U72:U76,$Y72:$Y76) -> 0 | W71: =SUMPRODUCT(W72:W76,$Y72:$Y76) -> 0 | X71: =SUMPRODUCT(X72:X76,$Y72:$Y76) -> 0 | AA71: =SUM(AA72:AA76) -> 0
A72: =Y72>0 -> FALSE | B72: + - | J72: 0 | N72: =IF(AND(M72="",D72=""),"",IF(AND(D72<>"",M72=""),"Keine Zuordnung",IF(OR(M72=$AC$7,M72=$AD$7,M72=$AE$7),"OK","Falsche Kostenstelle"))) ->  | O72: =IF(AND(Z72+I72<=wST.Jahr,K72<>0,NOT(ISBLANK(I72))),"Zugang ungültig!",IF(Z72>wST.Jahr,0,SUM(J72,K72,-L72))) -> 0 | P72: =IF(I72=0,0,IF(Z72>=wST.Jahr,0,MAX(0,MIN(J72,J72/I72*(wST.Jahr-Z72)-J72/I72*IF(MONTH(H72)>6,0.5,0))))) -> 0 | Q72: =IF(SUM(J72,K72)=0,1,1-L72/SUM(J72,K72)) -> 1 | R72: =(K72+J72-P72)*Q72 -> 0 | S72: =MAX(0,(Z72+I72-wST.Jahr+IF(AND(Z72<>wST.Jahr,MONTH(H72)>6),0.5,0))*IF(AND(Z72=wST.Jahr,MONTH(H72)>6),2,1)) -> 0 | T72: =U72+V72 -> 0 | U72: =IF(S72=0,0,IF(Z72>wST.Jahr,0,MAX(0,MIN(R72,R72/S72)))) -> 0 | V72: =(K72+J72-P72)*(1-Q72) -> 0 | W72: =MIN(J72+K72,P72+U72+V72) -> 0 | X72: =IF(Z72>wST.Jahr,0,J72+K72-W72) -> 0 | Y72: =IF(D72=0,0,IF(VALUE(LEFT(D72,3))=wST.Ansatz,1,0)) -> 0 | Z72: =YEAR(H72) -> 1900 | AA72: =IF(Z72>wST.Jahr-1,0,J72*Y72) -> 0 | AC72: =IF($M72=AC$7,$T72,) -> 0 | AD72: 0 | AE72: 0 | AF72: =IF($M72=AF$7,$X72,) -> 0 | AG72: 0 | AH72: 0
A73: FALSE | B73: + - | J73: 0 | N73: =IF(AND(M73="",D73=""),"",IF(AND(D73<>"",M73=""),"Keine Zuordnung",IF(OR(M73=$AC$7,M73=$AD$7,M73=$AE$7),"OK","Falsche Kostenstelle"))) ->  | O73: =IF(AND(Z73+I73<=wST.Jahr,K73<>0,NOT(ISBLANK(I73))),"Zugang ungültig!",IF(Z73>wST.Jahr,0,SUM(J73,K73,-L73))) -> 0 | P73: =IF(I73=0,0,IF(Z73>=wST.Jahr,0,MAX(0,MIN(J73,J73/I73*(wST.Jahr-Z73)-J73/I73*IF(MONTH(H73)>6,0.5,0))))) -> 0 | Q73: =IF(SUM(J73,K73)=0,1,1-L73/SUM(J73,K73)) -> 1 | R73: =(K73+J73-P73)*Q73 -> 0 | S73: =MAX(0,(Z73+I73-wST.Jahr+IF(AND(Z73<>wST.Jahr,MONTH(H73)>6),0.5,0))*IF(AND(Z73=wST.Jahr,MONTH(H73)>6),2,1)) -> 0 | T73: 0 | U73: =IF(S73=0,0,IF(Z73>wST.Jahr,0,MAX(0,MIN(R73,R73/S73)))) -> 0 | V73: =(K73+J73-P73)*(1-Q73) -> 0 | W73: =MIN(J73+K73,P73+U73+V73) -> 0 | X73: =IF(Z73>wST.Jahr,0,J73+K73-W73) -> 0 | Y73: =IF(D73=0,0,IF(VALUE(LEFT(D73,3))=wST.Ansatz,1,0)) -> 0 | Z73: =YEAR(H73) -> 1900 | AA73: =IF(Z73>wST.Jahr-1,0,J73*Y73) -> 0 | AC73: 0 | AD73: 0 | AE73: 0 | AF73: 0 | AG73: 0 | AH73: 0
A74: FALSE | B74: + - | J74: 0 | N74: =IF(AND(M74="",D74=""),"",IF(AND(D74<>"",M74=""),"Keine Zuordnung",IF(OR(M74=$AC$7,M74=$AD$7,M74=$AE$7),"OK","Falsche Kostenstelle"))) ->  | O74: =IF(AND(Z74+I74<=wST.Jahr,K74<>0,NOT(ISBLANK(I74))),"Zugang ungültig!",IF(Z74>wST.Jahr,0,SUM(J74,K74,-L74))) -> 0 | P74: =IF(I74=0,0,IF(Z74>=wST.Jahr,0,MAX(0,MIN(J74,J74/I74*(wST.Jahr-Z74)-J74/I74*IF(MONTH(H74)>6,0.5,0))))) -> 0 | Q74: =IF(SUM(J74,K74)=0,1,1-L74/SUM(J74,K74)) -> 1 | R74: =(K74+J74-P74)*Q74 -> 0 | S74: =MAX(0,(Z74+I74-wST.Jahr+IF(AND(Z74<>wST.Jahr,MONTH(H74)>6),0.5,0))*IF(AND(Z74=wST.Jahr,MONTH(H74)>6),2,1)) -> 0 | T74: 0 | U74: =IF(S74=0,0,IF(Z74>wST.Jahr,0,MAX(0,MIN(R74,R74/S74)))) -> 0 | V74: =(K74+J74-P74)*(1-Q74) -> 0 | W74: =MIN(J74+K74,P74+U74+V74) -> 0 | X74: =IF(Z74>wST.Jahr,0,J74+K74-W74) -> 0 | Y74: =IF(D74=0,0,IF(VALUE(LEFT(D74,3))=wST.Ansatz,1,0)) -> 0 | Z74: =YEAR(H74) -> 1900 | AA74: =IF(Z74>wST.Jahr-1,0,J74*Y74) -> 0 | AC74: 0 | AD74: 0 | AE74: 0 | AF74: 0 | AG74: 0 | AH74: 0
A75: =Y75>0 -> FALSE | B75: + - | J75: 0 | N75: =IF(AND(M75="",D75=""),"",IF(AND(D75<>"",M75=""),"Keine Zuordnung",IF(OR(M75=$AC$7,M75=$AD$7,M75=$AE$7),"OK","Falsche Kostenstelle"))) ->  | O75: =IF(AND(Z75+I75<=wST.Jahr,K75<>0,NOT(ISBLANK(I75))),"Zugang ungültig!",IF(Z75>wST.Jahr,0,SUM(J75,K75,-L75))) -> 0 | P75: =IF(I75=0,0,IF(Z75>=wST.Jahr,0,MAX(0,MIN(J75,J75/I75*(wST.Jahr-Z75)-J75/I75*IF(MONTH(H75)>6,0.5,0))))) -> 0 | Q75: =IF(SUM(J75,K75)=0,1,1-L75/SUM(J75,K75)) -> 1 | R75: =(K75+J75-P75)*Q75 -> 0 | S75: =MAX(0,(Z75+I75-wST.Jahr+IF(AND(Z75<>wST.Jahr,MONTH(H75)>6),0.5,0))*IF(AND(Z75=wST.Jahr,MONTH(H75)>6),2,1)) -> 0 | T75: =U75+V75 -> 0 | U75: =IF(S75=0,0,IF(Z75>wST.Jahr,0,MAX(0,MIN(R75,R75/S75)))) -> 0 | V75: =(K75+J75-P75)*(1-Q75) -> 0 | W75: =MIN(J75+K75,P75+U75+V75) -> 0 | X75: =IF(Z75>wST.Jahr,0,J75+K75-W75) -> 0 | Y75: =IF(D75=0,0,IF(VALUE(LEFT(D75,3))=wST.Ansatz,1,0)) -> 0 | Z75: =YEAR(H75) -> 1900 | AA75: =IF(Z75>wST.Jahr-1,0,J75*Y75) -> 0 | AC75: 0 | AD75: 0 | AE75: 0 | AF75: 0 | AG75: 0 | AH75: 0
A76: FALSE | P76: =IF(I76=0,0,IF(Z76>=wST.Jahr,0,MAX(0,MIN(J76,J76/I76*(wST.Jahr-Z76)-J76/I76*IF(MONTH(H76)>6,0.5,0))))) -> 0 | Q76: =IF(SUM(J76,K76)=0,1,1-L76/SUM(J76,K76)) -> 1 | R76: =(K76+J76-P76)*Q76 -> 0 | S76: =MAX(0,(Z76+I76-wST.Jahr+IF(AND(Z76<>wST.Jahr,MONTH(H76)>6),0.5,0))*IF(AND(Z76=wST.Jahr,MONTH(H76)>6),2,1)) -> 0 | U76: =IF(S76=0,0,IF(Z76>wST.Jahr,0,MAX(0,MIN(R76,R76/S76)))) -> 0 | V76: =(K76+J76-P76)*(1-Q76) -> 0
A77: =A70 -> FALSE | Y77: =IF(D77=0,0,IF(VALUE(LEFT(D77,3))=wST.Ansatz,1,0)) -> 0
A78: =O78>0 -> FALSE | C78: 2 | D78: MASCHINEN UND MASCHINELLE ANLAGEN | J78: =J79 -> 0 | K78: =K79 -> 0 | L78: =L79 -> 0 | O78: =O79 -> 0 | P78: =P79 -> 0 | T78: =T79 -> 0 | U78: =U79 -> 0 | W78: =W79 -> 0 | X78: =X79 -> 0
A79: =O79>0 -> FALSE | C79: 20 | D79: Maschinen und maschinelle Anlagen | J79: =SUMPRODUCT(J80:J84,$Y80:$Y84) -> 0 | K79: =SUMPRODUCT(K80:K84,$Y80:$Y84) -> 0 | L79: =SUMPRODUCT(L80:L84,$Y80:$Y84) -> 0 | O79: =SUMPRODUCT(O80:O84,$Y80:$Y84) -> 0 | P79: =SUMPRODUCT(P80:P84,$Y80:$Y84) -> 0 | T79: =SUMPRODUCT(T80:T84,$Y80:$Y84) -> 0 | U79: =SUMPRODUCT(U80:U84,$Y80:$Y84) -> 0 | W79: =SUMPRODUCT(W80:W84,$Y80:$Y84) -> 0 | X79: =SUMPRODUCT(X80:X84,$Y80:$Y84) -> 0 | AA79: =SUM(AA80:AA84) -> 0
A80: =O80>0 -> FALSE | B80: + - | J80: 0 | N80: =IF(AND(M80="",D80=""),"",IF(AND(D80<>"",M80=""),"Keine Zuordnung",IF(OR(M80=$AC$7,M80=$AD$7,M80=$AE$7),"OK","Falsche Kostenstelle"))) ->  | O80: =IF(AND(Z80+I80<=wST.Jahr,K80<>0,NOT(ISBLANK(I80))),"Zugang ungültig!",IF(Z80>wST.Jahr,0,SUM(J80,K80,-L80))) -> 0 | P80: =IF(I80=0,0,IF(Z80>=wST.Jahr,0,MAX(0,MIN(J80,J80/I80*(wST.Jahr-Z80)-J80/I80*IF(MONTH(H80)>6,0.5,0))))) -> 0 | Q80: =IF(SUM(J80,K80)=0,1,1-L80/SUM(J80,K80)) -> 1 | R80: =(K80+J80-P80)*Q80 -> 0 | S80: =MAX(0,(Z80+I80-wST.Jahr+IF(AND(Z80<>wST.Jahr,MONTH(H80)>6),0.5,0))*IF(AND(Z80=wST.Jahr,MONTH(H80)>6),2,1)) -> 0 | T80: =U80+V80 -> 0 | U80: =IF(S80=0,0,IF(Z80>wST.Jahr,0,MAX(0,MIN(R80,R80/S80)))) -> 0 | V80: =(K80+J80-P80)*(1-Q80) -> 0 | W80: =MIN(J80+K80,P80+U80+V80) -> 0 | X80: =IF(Z80>wST.Jahr,0,J80+K80-W80) -> 0 | Y80: =IF(D80=0,0,IF(VALUE(LEFT(D80,3))=wST.Ansatz,1,0)) -> 0 | Z80: =YEAR(H80) -> 1900 | AA80: =IF(Z80>wST.Jahr-1,0,J80*Y80) -> 0 | AC80: =IF($M80=AC$7,$T80,) -> 0 | AD80: 0 | AE80: 0 | AF80: =IF($M80=AF$7,$X80,) -> 0 | AG80: 0 | AH80: 0
A81: FALSE | B81: + - | J81: 0 | O81: 0 | P81: 0 | Q81: 1 | R81: 0 | S81: 0 | T81: 0 | U81: 0 | V81: 0 | W81: 0 | X81: 0 | Y81: 0 | Z81: 1900 | AA81: 0 | AC81: 0 | AD81: 0 | AE81: 0 | AF81: 0 | AG81: 0 | AH81: 0
A82: FALSE | B82: + - | J82: 0 | O82: 0 | P82: 0 | Q82: 1 | R82: 0 | S82: 0 | T82: 0 | U82: =IF(S82=0,0,IF(Z82>wST.Jahr,0,MAX(0,MIN(R82,R82/S82)))) -> 0 | V82: 0 | W82: 0 | X82: 0 | Y82: 0 | Z82: 1900 | AA82: 0 | AC82: 0 | AD82: 0 | AE82: 0 | AF82: 0 | AG82: 0 | AH82: 0
A83: =O83>0 -> FALSE | B83: + - | J83: 0 | N83: =IF(AND(M83="",D83=""),"",IF(AND(D83<>"",M83=""),"Keine Zuordnung",IF(OR(M83=$AC$7,M83=$AD$7,M83=$AE$7),"OK","Falsche Kostenstelle"))) ->  | O83: =IF(AND(Z83+I83<=wST.Jahr,K83<>0,NOT(ISBLANK(I83))),"Zugang ungültig!",IF(Z83>wST.Jahr,0,SUM(J83,K83,-L83))) -> 0 | P83: =IF(I83=0,0,IF(Z83>=wST.Jahr,0,MAX(0,MIN(J83,J83/I83*(wST.Jahr-Z83)-J83/I83*IF(MONTH(H83)>6,0.5,0))))) -> 0 | Q83: =IF(SUM(J83,K83)=0,1,1-L83/SUM(J83,K83)) -> 1 | R83: =(K83+J83-P83)*Q83 -> 0 | S83: =MAX(0,(Z83+I83-wST.Jahr+IF(AND(Z83<>wST.Jahr,MONTH(H83)>6),0.5,0))*IF(AND(Z83=wST.Jahr,MONTH(H83)>6),2,1)) -> 0 | T83: =U83+V83 -> 0 | U83: =IF(S83=0,0,IF(Z83>wST.Jahr,0,MAX(0,MIN(R83,R83/S83)))) -> 0 | V83: =(K83+J83-P83)*(1-Q83) -> 0 | W83: =MIN(J83+K83,P83+U83+V83) -> 0 | X83: =IF(Z83>wST.Jahr,0,J83+K83-W83) -> 0 | Y83: =IF(D83=0,0,IF(VALUE(LEFT(D83,3))=wST.Ansatz,1,0)) -> 0 | Z83: =YEAR(H83) -> 1900 | AA83: =IF(Z83>wST.Jahr-1,0,J83*Y83) -> 0 | AC83: 0 | AD83: 0 | AE83: 0 | AF83: 0 | AG83: 0 | AH83: 0
A84: =Y84>0 -> FALSE | P84: 0 | Q84: 1 | R84: 0 | S84: 0 | U84: 0 | V84: 0
A85: =A78 -> FALSE | Y85: =IF(D85=0,0,IF(VALUE(LEFT(D85,3))=wST.Ansatz,1,0)) -> 0
A86: =O86>0 -> FALSE | C86: 3 | D86: WERKZEUGE U. SONSTIGE ERZEUGUNGSMITTEL | J86: =J87 -> 0 | K86: =K87 -> 0 | L86: =L87 -> 0 | O86: =O87 -> 0 | P86: =P87 -> 0 | T86: =T87 -> 0 | U86: =U87 -> 0 | W86: =W87 -> 0 | X86: =X87 -> 0
A87: =O87>0 -> FALSE | C87: 30 | D87: Werkzeuge und sonstige Erzeugungsmittel | J87: =SUMPRODUCT(J88:J92,$Y88:$Y92) -> 0 | K87: =SUMPRODUCT(K88:K92,$Y88:$Y92) -> 0 | L87: =SUMPRODUCT(L88:L92,$Y88:$Y92) -> 0 | O87: =SUMPRODUCT(O88:O92,$Y88:$Y92) -> 0 | P87: =SUMPRODUCT(P88:P92,$Y88:$Y92) -> 0 | T87: =SUMPRODUCT(T88:T92,$Y88:$Y92) -> 0 | U87: =SUMPRODUCT(U88:U92,$Y88:$Y92) -> 0 | W87: =SUMPRODUCT(W88:W92,$Y88:$Y92) -> 0 | X87: =SUMPRODUCT(X88:X92,$Y88:$Y92) -> 0 | AA87: =SUM(AA88:AA92) -> 0
A88: =Y88>0 -> FALSE | B88: + - | J88: 0 | N88: =IF(AND(M88="",D88=""),"",IF(AND(D88<>"",M88=""),"Keine Zuordnung",IF(OR(M88=$AC$7,M88=$AD$7,M88=$AE$7),"OK","Falsche Kostenstelle"))) ->  | O88: =IF(AND(Z88+I88<=wST.Jahr,K88<>0,NOT(ISBLANK(I88))),"Zugang ungültig!",IF(Z88>wST.Jahr,0,SUM(J88,K88,-L88))) -> 0 | P88: =IF(I88=0,0,IF(Z88>=wST.Jahr,0,MAX(0,MIN(J88,J88/I88*(wST.Jahr-Z88)-J88/I88*IF(MONTH(H88)>6,0.5,0))))) -> 0 | Q88: =IF(SUM(J88,K88)=0,1,1-L88/SUM(J88,K88)) -> 1 | R88: =(K88+J88-P88)*Q88 -> 0 | S88: =MAX(0,(Z88+I88-wST.Jahr+IF(AND(Z88<>wST.Jahr,MONTH(H88)>6),0.5,0))*IF(AND(Z88=wST.Jahr,MONTH(H88)>6),2,1)) -> 0 | T88: =U88+V88 -> 0 | U88: =IF(S88=0,0,IF(Z88>wST.Jahr,0,MAX(0,MIN(R88,R88/S88)))) -> 0 | V88: =(K88+J88-P88)*(1-Q88) -> 0 | W88: =MIN(J88+K88,P88+U88+V88) -> 0 | X88: =IF(Z88>wST.Jahr,0,J88+K88-W88) -> 0 | Y88: =IF(D88=0,0,IF(VALUE(LEFT(D88,3))=wST.Ansatz,1,0)) -> 0 | Z88: =YEAR(H88) -> 1900 | AA88: =IF(Z88>wST.Jahr-1,0,J88*Y88) -> 0 | AC88: =IF($M88=AC$7,$T88,) -> 0 | AD88: 0 | AE88: 0 | AF88: =IF($M88=AF$7,$X88,) -> 0 | AG88: 0 | AH88: 0
A89: FALSE | B89: + - | J89: 0 | N89: =IF(AND(M89="",D89=""),"",IF(AND(D89<>"",M89=""),"Keine Zuordnung",IF(OR(M89=$AC$7,M89=$AD$7,M89=$AE$7),"OK","Falsche Kostenstelle"))) ->  | O89: =IF(AND(Z89+I89<=wST.Jahr,K89<>0,NOT(ISBLANK(I89))),"Zugang ungültig!",IF(Z89>wST.Jahr,0,SUM(J89,K89,-L89))) -> 0 | P89: =IF(I89=0,0,IF(Z89>=wST.Jahr,0,MAX(0,MIN(J89,J89/I89*(wST.Jahr-Z89)-J89/I89*IF(MONTH(H89)>6,0.5,0))))) -> 0 | Q89: =IF(SUM(J89,K89)=0,1,1-L89/SUM(J89,K89)) -> 1 | R89: =(K89+J89-P89)*Q89 -> 0 | S89: =MAX(0,(Z89+I89-wST.Jahr+IF(AND(Z89<>wST.Jahr,MONTH(H89)>6),0.5,0))*IF(AND(Z89=wST.Jahr,MONTH(H89)>6),2,1)) -> 0 | T89: 0 | U89: =IF(S89=0,0,IF(Z89>wST.Jahr,0,MAX(0,MIN(R89,R89/S89)))) -> 0 | V89: =(K89+J89-P89)*(1-Q89) -> 0 | W89: =MIN(J89+K89,P89+U89+V89) -> 0 | X89: =IF(Z89>wST.Jahr,0,J89+K89-W89) -> 0 | Y89: =IF(D89=0,0,IF(VALUE(LEFT(D89,3))=wST.Ansatz,1,0)) -> 0 | Z89: =YEAR(H89) -> 1900 | AA89: =IF(Z89>wST.Jahr-1,0,J89*Y89) -> 0 | AC89: 0 | AD89: 0 | AE89: 0 | AF89: 0 | AG89: 0 | AH89: 0
A90: FALSE | B90: + - | J90: 0 | N90: =IF(AND(M90="",D90=""),"",IF(AND(D90<>"",M90=""),"Keine Zuordnung",IF(OR(M90=$AC$7,M90=$AD$7,M90=$AE$7),"OK","Falsche Kostenstelle"))) ->  | O90: =IF(AND(Z90+I90<=wST.Jahr,K90<>0,NOT(ISBLANK(I90))),"Zugang ungültig!",IF(Z90>wST.Jahr,0,SUM(J90,K90,-L90))) -> 0 | P90: =IF(I90=0,0,IF(Z90>=wST.Jahr,0,MAX(0,MIN(J90,J90/I90*(wST.Jahr-Z90)-J90/I90*IF(MONTH(H90)>6,0.5,0))))) -> 0 | Q90: =IF(SUM(J90,K90)=0,1,1-L90/SUM(J90,K90)) -> 1 | R90: =(K90+J90-P90)*Q90 -> 0 | S90: =MAX(0,(Z90+I90-wST.Jahr+IF(AND(Z90<>wST.Jahr,MONTH(H90)>6),0.5,0))*IF(AND(Z90=wST.Jahr,MONTH(H90)>6),2,1)) -> 0 | T90: 0 | U90: =IF(S90=0,0,IF(Z90>wST.Jahr,0,MAX(0,MIN(R90,R90/S90)))) -> 0 | V90: =(K90+J90-P90)*(1-Q90) -> 0 | W90: =MIN(J90+K90,P90+U90+V90) -> 0 | X90: =IF(Z90>wST.Jahr,0,J90+K90-W90) -> 0 | Y90: =IF(D90=0,0,IF(VALUE(LEFT(D90,3))=wST.Ansatz,1,0)) -> 0 | Z90: =YEAR(H90) -> 1900 | AA90: =IF(Z90>wST.Jahr-1,0,J90*Y90) -> 0 | AC90: 0 | AD90: 0 | AE90: 0 | AF90: 0 | AG90: 0 | AH90: 0
A91: =Y91>0 -> FALSE | B91: + - | J91: 0 | N91: =IF(AND(M91="",D91=""),"",IF(AND(D91<>"",M91=""),"Keine Zuordnung",IF(OR(M91=$AC$7,M91=$AD$7,M91=$AE$7),"OK","Falsche Kostenstelle"))) ->  | O91: =IF(AND(Z91+I91<=wST.Jahr,K91<>0,NOT(ISBLANK(I91))),"Zugang ungültig!",IF(Z91>wST.Jahr,0,SUM(J91,K91,-L91))) -> 0 | P91: =IF(I91=0,0,IF(Z91>=wST.Jahr,0,MAX(0,MIN(J91,J91/I91*(wST.Jahr-Z91)-J91/I91*IF(MONTH(H91)>6,0.5,0))))) -> 0 | Q91: =IF(SUM(J91,K91)=0,1,1-L91/SUM(J91,K91)) -> 1 | R91: =(K91+J91-P91)*Q91 -> 0 | S91: =MAX(0,(Z91+I91-wST.Jahr+IF(AND(Z91<>wST.Jahr,MONTH(H91)>6),0.5,0))*IF(AND(Z91=wST.Jahr,MONTH(H91)>6),2,1)) -> 0 | T91: =U91+V91 -> 0 | U91: =IF(S91=0,0,IF(Z91>wST.Jahr,0,MAX(0,MIN(R91,R91/S91)))) -> 0 | V91: =(K91+J91-P91)*(1-Q91) -> 0 | W91: =MIN(J91+K91,P91+U91+V91) -> 0 | X91: =IF(Z91>wST.Jahr,0,J91+K91-W91) -> 0 | Y91: =IF(D91=0,0,IF(VALUE(LEFT(D91,3))=wST.Ansatz,1,0)) -> 0 | Z91: =YEAR(H91) -> 1900 | AA91: =IF(Z91>wST.Jahr-1,0,J91*Y91) -> 0 | AC91: 0 | AD91: 0 | AE91: 0 | AF91: 0 | AG91: 0 | AH91: 0
A92: FALSE | P92: =IF(I92=0,0,IF(Z92>=wST.Jahr,0,MAX(0,MIN(J92,J92/I92*(wST.Jahr-Z92)-J92/I92*IF(MONTH(H92)>6,0.5,0))))) -> 0 | Q92: =IF(SUM(J92,K92)=0,1,1-L92/SUM(J92,K92)) -> 1 | R92: =(K92+J92-P92)*Q92 -> 0 | S92: =MAX(0,(Z92+I92-wST.Jahr+IF(AND(Z92<>wST.Jahr,MONTH(H92)>6),0.5,0))*IF(AND(Z92=wST.Jahr,MONTH(H92)>6),2,1)) -> 0 | U92: =IF(S92=0,0,IF(Z92>wST.Jahr,0,MAX(0,MIN(R92,R92/S92)))) -> 0 | V92: =(K92+J92-P92)*(1-Q92) -> 0
A93: =A86 -> FALSE | Y93: =IF(D93=0,0,IF(VALUE(LEFT(D93,3))=wST.Ansatz,1,0)) -> 0
A94: =O94>0 -> FALSE | C94: 4 | D94: AMTS-, BETRIEBS- U. GESCHÄFTSAUSSTATTUNG | J94: =SUM(J95,J101) -> 0 | K94: =SUM(K95,K101) -> 0 | L94: =SUM(L95,L101) -> 0 | O94: =SUM(O95,O101) -> 0 | P94: =SUM(P95,P101) -> 0 | T94: =SUM(T95,T101) -> 0 | U94: =SUM(U95,U101) -> 0 | W94: =SUM(W95,W101) -> 0 | X94: =SUM(X95,X101) -> 0
A95: =O95>0 -> FALSE | C95: 40 | D95: Fahrzeuge | J95: =SUMPRODUCT(J96:J100,$Y96:$Y100) -> 0 | K95: =SUMPRODUCT(K96:K100,$Y96:$Y100) -> 0 | L95: =SUMPRODUCT(L96:L100,$Y96:$Y100) -> 0 | O95: =SUMPRODUCT(O96:O100,$Y96:$Y100) -> 0 | P95: =SUMPRODUCT(P96:P100,$Y96:$Y100) -> 0 | T95: =SUMPRODUCT(T96:T100,$Y96:$Y100) -> 0 | U95: =SUMPRODUCT(U96:U100,$Y96:$Y100) -> 0 | W95: =SUMPRODUCT(W96:W100,$Y96:$Y100) -> 0 | X95: =SUMPRODUCT(X96:X100,$Y96:$Y100) -> 0 | AA95: =SUM(AA96:AA100) -> 0
A96: =Y96>0 -> FALSE | B96: + - | J96: 0 | N96: =IF(AND(M96="",D96=""),"",IF(AND(D96<>"",M96=""),"Keine Zuordnung",IF(OR(M96=$AC$7,M96=$AD$7,M96=$AE$7),"OK","Falsche Kostenstelle"))) ->  | O96: =IF(AND(Z96+I96<=wST.Jahr,K96<>0,NOT(ISBLANK(I96))),"Zugang ungültig!",IF(Z96>wST.Jahr,0,SUM(J96,K96,-L96))) -> 0 | P96: =IF(I96=0,0,IF(Z96>=wST.Jahr,0,MAX(0,MIN(J96,J96/I96*(wST.Jahr-Z96)-J96/I96*IF(MONTH(H96)>6,0.5,0))))) -> 0 | Q96: =IF(SUM(J96,K96)=0,1,1-L96/SUM(J96,K96)) -> 1 | R96: =(K96+J96-P96)*Q96 -> 0 | S96: =MAX(0,(Z96+I96-wST.Jahr+IF(AND(Z96<>wST.Jahr,MONTH(H96)>6),0.5,0))*IF(AND(Z96=wST.Jahr,MONTH(H96)>6),2,1)) -> 0 | T96: =U96+V96 -> 0 | U96: =IF(S96=0,0,IF(Z96>wST.Jahr,0,MAX(0,MIN(R96,R96/S96)))) -> 0 | V96: =(K96+J96-P96)*(1-Q96) -> 0 | W96: =MIN(J96+K96,P96+U96+V96) -> 0 | X96: =IF(Z96>wST.Jahr,0,J96+K96-W96) -> 0 | Y96: =IF(D96=0,0,IF(VALUE(LEFT(D96,3))=wST.Ansatz,1,0)) -> 0 | Z96: =YEAR(H96) -> 1900 | AA96: =IF(Z96>wST.Jahr-1,0,J96*Y96) -> 0 | AC96: =IF($M96=AC$7,$T96,) -> 0 | AD96: 0 | AE96: 0 | AF96: =IF($M96=AF$7,$X96,) -> 0 | AG96: 0 | AH96: 0
A97: FALSE | B97: + - | J97: 0 | N97: =IF(AND(M97="",D97=""),"",IF(AND(D97<>"",M97=""),"Keine Zuordnung",IF(OR(M97=$AC$7,M97=$AD$7,M97=$AE$7),"OK","Falsche Kostenstelle"))) ->  | O97: =IF(AND(Z97+I97<=wST.Jahr,K97<>0,NOT(ISBLANK(I97))),"Zugang ungültig!",IF(Z97>wST.Jahr,0,SUM(J97,K97,-L97))) -> 0 | P97: =IF(I97=0,0,IF(Z97>=wST.Jahr,0,MAX(0,MIN(J97,J97/I97*(wST.Jahr-Z97)-J97/I97*IF(MONTH(H97)>6,0.5,0))))) -> 0 | Q97: =IF(SUM(J97,K97)=0,1,1-L97/SUM(J97,K97)) -> 1 | R97: =(K97+J97-P97)*Q97 -> 0 | S97: =MAX(0,(Z97+I97-wST.Jahr+IF(AND(Z97<>wST.Jahr,MONTH(H97)>6),0.5,0))*IF(AND(Z97=wST.Jahr,MONTH(H97)>6),2,1)) -> 0 | T97: 0 | U97: =IF(S97=0,0,IF(Z97>wST.Jahr,0,MAX(0,MIN(R97,R97/S97)))) -> 0 | V97: =(K97+J97-P97)*(1-Q97) -> 0 | W97: =MIN(J97+K97,P97+U97+V97) -> 0 | X97: =IF(Z97>wST.Jahr,0,J97+K97-W97) -> 0 | Y97: =IF(D97=0,0,IF(VALUE(LEFT(D97,3))=wST.Ansatz,1,0)) -> 0 | Z97: =YEAR(H97) -> 1900 | AA97: =IF(Z97>wST.Jahr-1,0,J97*Y97) -> 0 | AC97: 0 | AD97: 0 | AE97: 0 | AF97: 0 | AG97: 0 | AH97: 0
A98: FALSE | B98: + - | J98: 0 | N98: =IF(AND(M98="",D98=""),"",IF(AND(D98<>"",M98=""),"Keine Zuordnung",IF(OR(M98=$AC$7,M98=$AD$7,M98=$AE$7),"OK","Falsche Kostenstelle"))) ->  | O98: =IF(AND(Z98+I98<=wST.Jahr,K98<>0,NOT(ISBLANK(I98))),"Zugang ungültig!",IF(Z98>wST.Jahr,0,SUM(J98,K98,-L98))) -> 0 | P98: =IF(I98=0,0,IF(Z98>=wST.Jahr,0,MAX(0,MIN(J98,J98/I98*(wST.Jahr-Z98)-J98/I98*IF(MONTH(H98)>6,0.5,0))))) -> 0 | Q98: =IF(SUM(J98,K98)=0,1,1-L98/SUM(J98,K98)) -> 1 | R98: =(K98+J98-P98)*Q98 -> 0 | S98: =MAX(0,(Z98+I98-wST.Jahr+IF(AND(Z98<>wST.Jahr,MONTH(H98)>6),0.5,0))*IF(AND(Z98=wST.Jahr,MONTH(H98)>6),2,1)) -> 0 | T98: 0 | U98: =IF(S98=0,0,IF(Z98>wST.Jahr,0,MAX(0,MIN(R98,R98/S98)))) -> 0 | V98: =(K98+J98-P98)*(1-Q98) -> 0 | W98: =MIN(J98+K98,P98+U98+V98) -> 0 | X98: =IF(Z98>wST.Jahr,0,J98+K98-W98) -> 0 | Y98: =IF(D98=0,0,IF(VALUE(LEFT(D98,3))=wST.Ansatz,1,0)) -> 0 | Z98: =YEAR(H98) -> 1900 | AA98: =IF(Z98>wST.Jahr-1,0,J98*Y98) -> 0 | AC98: 0 | AD98: 0 | AE98: 0 | AF98: 0 | AG98: 0 | AH98: 0
A99: =Y99>0 -> FALSE | B99: + - | J99: 0 | N99: =IF(AND(M99="",D99=""),"",IF(AND(D99<>"",M99=""),"Keine Zuordnung",IF(OR(M99=$AC$7,M99=$AD$7,M99=$AE$7),"OK","Falsche Kostenstelle"))) ->  | O99: =IF(AND(Z99+I99<=wST.Jahr,K99<>0,NOT(ISBLANK(I99))),"Zugang ungültig!",IF(Z99>wST.Jahr,0,SUM(J99,K99,-L99))) -> 0 | P99: =IF(I99=0,0,IF(Z99>=wST.Jahr,0,MAX(0,MIN(J99,J99/I99*(wST.Jahr-Z99)-J99/I99*IF(MONTH(H99)>6,0.5,0))))) -> 0 | Q99: =IF(SUM(J99,K99)=0,1,1-L99/SUM(J99,K99)) -> 1 | R99: =(K99+J99-P99)*Q99 -> 0 | S99: =MAX(0,(Z99+I99-wST.Jahr+IF(AND(Z99<>wST.Jahr,MONTH(H99)>6),0.5,0))*IF(AND(Z99=wST.Jahr,MONTH(H99)>6),2,1)) -> 0 | T99: =U99+V99 -> 0 | U99: =IF(S99=0,0,IF(Z99>wST.Jahr,0,MAX(0,MIN(R99,R99/S99)))) -> 0 | V99: =(K99+J99-P99)*(1-Q99) -> 0 | W99: =MIN(J99+K99,P99+U99+V99) -> 0 | X99: =IF(Z99>wST.Jahr,0,J99+K99-W99) -> 0 | Y99: =IF(D99=0,0,IF(VALUE(LEFT(D99,3))=wST.Ansatz,1,0)) -> 0 | Z99: =YEAR(H99) -> 1900 | AA99: =IF(Z99>wST.Jahr-1,0,J99*Y99) -> 0 | AC99: 0 | AD99: 0 | AE99: 0 | AF99: 0 | AG99: 0 | AH99: 0
A100: FALSE | P100: =IF(I100=0,0,IF(Z100>=wST.Jahr,0,MAX(0,MIN(J100,J100/I100*(wST.Jahr-Z100)-J100/I100*IF(MONTH(H100)>6,0.5,0))))) -> 0 | Q100: =IF(SUM(J100,K100)=0,1,1-L100/SUM(J100,K100)) -> 1 | R100: =(K100+J100-P100)*Q100 -> 0 | S100: =MAX(0,(Z100+I100-wST.Jahr+IF(AND(Z100<>wST.Jahr,MONTH(H100)>6),0.5,0))*IF(AND(Z100=wST.Jahr,MONTH(H100)>6),2,1)) -> 0 | U100: =IF(S100=0,0,IF(Z100>wST.Jahr,0,MAX(0,MIN(R100,R100/S100)))) -> 0 | V100: =(K100+J100-P100)*(1-Q100) -> 0
A101: =O101>0 -> FALSE | C101: 42 | D101: Amts-, Betriebs- u. Geschäftsausstattung | J101: =SUMPRODUCT(J102:J106,$Y102:$Y106) -> 0 | K101: =SUMPRODUCT(K102:K106,$Y102:$Y106) -> 0 | L101: =SUMPRODUCT(L102:L106,$Y102:$Y106) -> 0 | O101: =SUMPRODUCT(O102:O106,$Y102:$Y106) -> 0 | P101: =SUMPRODUCT(P102:P106,$Y102:$Y106) -> 0 | T101: =SUMPRODUCT(T102:T106,$Y102:$Y106) -> 0 | U101: =SUMPRODUCT(U102:U106,$Y102:$Y106) -> 0 | W101: =SUMPRODUCT(W102:W106,$Y102:$Y106) -> 0 | X101: =SUMPRODUCT(X102:X106,$Y102:$Y106) -> 0 | AA101: =SUM(AA102:AA106) -> 0
A102: =Y102>0 -> FALSE | B102: + - | J102: 0 | N102: =IF(AND(M102="",D102=""),"",IF(AND(D102<>"",M102=""),"Keine Zuordnung",IF(OR(M102=$AC$7,M102=$AD$7,M102=$AE$7),"OK","Falsche Kostenstelle"))) ->  | O102: =IF(AND(Z102+I102<=wST.Jahr,K102<>0,NOT(ISBLANK(I102))),"Zugang ungültig!",IF(Z102>wST.Jahr,0,SUM(J102,K102,-L102))) -> 0 | P102: =IF(I102=0,0,IF(Z102>=wST.Jahr,0,MAX(0,MIN(J102,J102/I102*(wST.Jahr-Z102)-J102/I102*IF(MONTH(H102)>6,0.5,0))))) -> 0 | Q102: =IF(SUM(J102,K102)=0,1,1-L102/SUM(J102,K102)) -> 1 | R102: =(K102+J102-P102)*Q102 -> 0 | S102: =MAX(0,(Z102+I102-wST.Jahr+IF(AND(Z102<>wST.Jahr,MONTH(H102)>6),0.5,0))*IF(AND(Z102=wST.Jahr,MONTH(H102)>6),2,1)) -> 0 | T102: =U102+V102 -> 0 | U102: =IF(S102=0,0,IF(Z102>wST.Jahr,0,MAX(0,MIN(R102,R102/S102)))) -> 0 | V102: =(K102+J102-P102)*(1-Q102) -> 0 | W102: =MIN(J102+K102,P102+U102+V102) -> 0 | X102: =IF(Z102>wST.Jahr,0,J102+K102-W102) -> 0 | Y102: =IF(D102=0,0,IF(VALUE(LEFT(D102,3))=wST.Ansatz,1,0)) -> 0 | Z102: =YEAR(H102) -> 1900 | AA102: =IF(Z102>wST.Jahr-1,0,J102*Y102) -> 0 | AC102: =IF($M102=AC$7,$T102,) -> 0 | AD102: 0 | AE102: 0 | AF102: =IF($M102=AF$7,$X102,) -> 0 | AG102: 0 | AH102: 0
A103: FALSE | B103: + - | J103: 0 | N103: =IF(AND(M103="",D103=""),"",IF(AND(D103<>"",M103=""),"Keine Zuordnung",IF(OR(M103=$AC$7,M103=$AD$7,M103=$AE$7),"OK","Falsche Kostenstelle"))) ->  | O103: =IF(AND(Z103+I103<=wST.Jahr,K103<>0,NOT(ISBLANK(I103))),"Zugang ungültig!",IF(Z103>wST.Jahr,0,SUM(J103,K103,-L103))) -> 0 | P103: =IF(I103=0,0,IF(Z103>=wST.Jahr,0,MAX(0,MIN(J103,J103/I103*(wST.Jahr-Z103)-J103/I103*IF(MONTH(H103)>6,0.5,0))))) -> 0 | Q103: =IF(SUM(J103,K103)=0,1,1-L103/SUM(J103,K103)) -> 1 | R103: =(K103+J103-P103)*Q103 -> 0 | S103: =MAX(0,(Z103+I103-wST.Jahr+IF(AND(Z103<>wST.Jahr,MONTH(H103)>6),0.5,0))*IF(AND(Z103=wST.Jahr,MONTH(H103)>6),2,1)) -> 0 | T103: 0 | U103: =IF(S103=0,0,IF(Z103>wST.Jahr,0,MAX(0,MIN(R103,R103/S103)))) -> 0 | V103: =(K103+J103-P103)*(1-Q103) -> 0 | W103: =MIN(J103+K103,P103+U103+V103) -> 0 | X103: =IF(Z103>wST.Jahr,0,J103+K103-W103) -> 0 | Y103: =IF(D103=0,0,IF(VALUE(LEFT(D103,3))=wST.Ansatz,1,0)) -> 0 | Z103: =YEAR(H103) -> 1900 | AA103: =IF(Z103>wST.Jahr-1,0,J103*Y103) -> 0 | AC103: 0 | AD103: 0 | AE103: 0 | AF103: 0 | AG103: 0 | AH103: 0
A104: FALSE | B104: + - | J104: 0 | N104: =IF(AND(M104="",D104=""),"",IF(AND(D104<>"",M104=""),"Keine Zuordnung",IF(OR(M104=$AC$7,M104=$AD$7,M104=$AE$7),"OK","Falsche Kostenstelle"))) ->  | O104: =IF(AND(Z104+I104<=wST.Jahr,K104<>0,NOT(ISBLANK(I104))),"Zugang ungültig!",IF(Z104>wST.Jahr,0,SUM(J104,K104,-L104))) -> 0 | P104: =IF(I104=0,0,IF(Z104>=wST.Jahr,0,MAX(0,MIN(J104,J104/I104*(wST.Jahr-Z104)-J104/I104*IF(MONTH(H104)>6,0.5,0))))) -> 0 | Q104: =IF(SUM(J104,K104)=0,1,1-L104/SUM(J104,K104)) -> 1 | R104: =(K104+J104-P104)*Q104 -> 0 | S104: =MAX(0,(Z104+I104-wST.Jahr+IF(AND(Z104<>wST.Jahr,MONTH(H104)>6),0.5,0))*IF(AND(Z104=wST.Jahr,MONTH(H104)>6),2,1)) -> 0 | T104: 0 | U104: =IF(S104=0,0,IF(Z104>wST.Jahr,0,MAX(0,MIN(R104,R104/S104)))) -> 0 | V104: =(K104+J104-P104)*(1-Q104) -> 0 | W104: =MIN(J104+K104,P104+U104+V104) -> 0 | X104: =IF(Z104>wST.Jahr,0,J104+K104-W104) -> 0 | Y104: =IF(D104=0,0,IF(VALUE(LEFT(D104,3))=wST.Ansatz,1,0)) -> 0 | Z104: =YEAR(H104) -> 1900 | AA104: =IF(Z104>wST.Jahr-1,0,J104*Y104) -> 0 | AC104: 0 | AD104: 0 | AE104: 0 | AF104: 0 | AG104: 0 | AH104: 0
A105: =Y105>0 -> FALSE | B105: + - | J105: 0 | N105: =IF(AND(M105="",D105=""),"",IF(AND(D105<>"",M105=""),"Keine Zuordnung",IF(OR(M105=$AC$7,M105=$AD$7,M105=$AE$7),"OK","Falsche Kostenstelle"))) ->  | O105: =IF(AND(Z105+I105<=wST.Jahr,K105<>0,NOT(ISBLANK(I105))),"Zugang ungültig!",IF(Z105>wST.Jahr,0,SUM(J105,K105,-L105))) -> 0 | P105: =IF(I105=0,0,IF(Z105>=wST.Jahr,0,MAX(0,MIN(J105,J105/I105*(wST.Jahr-Z105)-J105/I105*IF(MONTH(H105)>6,0.5,0))))) -> 0 | Q105: =IF(SUM(J105,K105)=0,1,1-L105/SUM(J105,K105)) -> 1 | R105: =(K105+J105-P105)*Q105 -> 0 | S105: =MAX(0,(Z105+I105-wST.Jahr+IF(AND(Z105<>wST.Jahr,MONTH(H105)>6),0.5,0))*IF(AND(Z105=wST.Jahr,MONTH(H105)>6),2,1)) -> 0 | T105: =U105+V105 -> 0 | U105: =IF(S105=0,0,IF(Z105>wST.Jahr,0,MAX(0,MIN(R105,R105/S105)))) -> 0 | V105: =(K105+J105-P105)*(1-Q105) -> 0 | W105: =MIN(J105+K105,P105+U105+V105) -> 0 | X105: =IF(Z105>wST.Jahr,0,J105+K105-W105) -> 0 | Y105: =IF(D105=0,0,IF(VALUE(LEFT(D105,3))=wST.Ansatz,1,0)) -> 0 | Z105: =YEAR(H105) -> 1900 | AA105: =IF(Z105>wST.Jahr-1,0,J105*Y105) -> 0 | AC105: 0 | AD105: 0 | AE105: 0 | AF105: 0 | AG105: 0 | AH105: 0
A106: FALSE | P106: =IF(I106=0,0,IF(Z106>=wST.Jahr,0,MAX(0,MIN(J106,J106/I106*(wST.Jahr-Z106)-J106/I106*IF(MONTH(H106)>6,0.5,0))))) -> 0 | Q106: =IF(SUM(J106,K106)=0,1,1-L106/SUM(J106,K106)) -> 1 | R106: =(K106+J106-P106)*Q106 -> 0 | S106: =MAX(0,(Z106+I106-wST.Jahr+IF(AND(Z106<>wST.Jahr,MONTH(H106)>6),0.5,0))*IF(AND(Z106=wST.Jahr,MONTH(H106)>6),2,1)) -> 0 | U106: =IF(S106=0,0,IF(Z106>wST.Jahr,0,MAX(0,MIN(R106,R106/S106)))) -> 0 | V106: =(K106+J106-P106)*(1-Q106) -> 0
A107: =A94 -> FALSE | Y107: =IF(D107=0,0,IF(VALUE(LEFT(D107,3))=wST.Ansatz,1,0)) -> 0
A108: =O108>0 -> FALSE | C108: 7 | D108: Aktivierungsfähige Rechte (immaterielle Vermögenswerte) | J108: =J109 -> 0 | K108: =K109 -> 0 | L108: =L109 -> 0 | O108: =O109 -> 0 | P108: =P109 -> 0 | T108: =T109 -> 0 | U108: =U109 -> 0 | W108: =W109 -> 0 | X108: =X109 -> 0
A109: =O109>0 -> FALSE | C109: 70 | D109: Aktivierungsfähige Rechte (immaterielle Vermögenswerte) | J109: =SUMPRODUCT(J110:J114,$Y110:$Y114) -> 0 | K109: =SUMPRODUCT(K110:K114,$Y110:$Y114) -> 0 | L109: =SUMPRODUCT(L110:L114,$Y110:$Y114) -> 0 | O109: =SUMPRODUCT(O110:O114,$Y110:$Y114) -> 0 | P109: =SUMPRODUCT(P110:P114,$Y110:$Y114) -> 0 | T109: =SUMPRODUCT(T110:T114,$Y110:$Y114) -> 0 | U109: =SUMPRODUCT(U110:U114,$Y110:$Y114) -> 0 | W109: =SUMPRODUCT(W110:W114,$Y110:$Y114) -> 0 | X109: =SUMPRODUCT(X110:X114,$Y110:$Y114) -> 0 | AA109: =SUM(AA110:AA114) -> 0
A110: =Y110>0 -> FALSE | B110: + - | J110: 0 | N110: =IF(AND(M110="",D110=""),"",IF(AND(D110<>"",M110=""),"Keine Zuordnung",IF(OR(M110=$AC$7,M110=$AD$7,M110=$AE$7),"OK","Falsche Kostenstelle"))) ->  | O110: =IF(AND(Z110+I110<=wST.Jahr,K110<>0,NOT(ISBLANK(I110))),"Zugang ungültig!",IF(Z110>wST.Jahr,0,SUM(J110,K110,-L110))) -> 0 | P110: =IF(I110=0,0,IF(Z110>=wST.Jahr,0,MAX(0,MIN(J110,J110/I110*(wST.Jahr-Z110)-J110/I110*IF(MONTH(H110)>6,0.5,0))))) -> 0 | Q110: =IF(SUM(J110,K110)=0,1,1-L110/SUM(J110,K110)) -> 1 | R110: =(K110+J110-P110)*Q110 -> 0 | S110: =MAX(0,(Z110+I110-wST.Jahr+IF(AND(Z110<>wST.Jahr,MONTH(H110)>6),0.5,0))*IF(AND(Z110=wST.Jahr,MONTH(H110)>6),2,1)) -> 0 | T110: =U110+V110 -> 0 | U110: =IF(S110=0,0,IF(Z110>wST.Jahr,0,MAX(0,MIN(R110,R110/S110)))) -> 0 | V110: =(K110+J110-P110)*(1-Q110) -> 0 | W110: =MIN(J110+K110,P110+U110+V110) -> 0 | X110: =IF(Z110>wST.Jahr,0,J110+K110-W110) -> 0 | Y110: =IF(D110=0,0,IF(VALUE(LEFT(D110,3))=wST.Ansatz,1,0)) -> 0 | Z110: =YEAR(H110) -> 1900 | AA110: =IF(Z110>wST.Jahr-1,0,J110*Y110) -> 0 | AC110: =IF($M110=AC$7,$T110,) -> 0 | AD110: 0 | AE110: 0 | AF110: =IF($M110=AF$7,$X110,) -> 0 | AG110: 0 | AH110: 0
A111: FALSE | B111: + - | J111: 0 | N111: =IF(AND(M111="",D111=""),"",IF(AND(D111<>"",M111=""),"Keine Zuordnung",IF(OR(M111=$AC$7,M111=$AD$7,M111=$AE$7),"OK","Falsche Kostenstelle"))) ->  | O111: =IF(AND(Z111+I111<=wST.Jahr,K111<>0,NOT(ISBLANK(I111))),"Zugang ungültig!",IF(Z111>wST.Jahr,0,SUM(J111,K111,-L111))) -> 0 | P111: =IF(I111=0,0,IF(Z111>=wST.Jahr,0,MAX(0,MIN(J111,J111/I111*(wST.Jahr-Z111)-J111/I111*IF(MONTH(H111)>6,0.5,0))))) -> 0 | Q111: =IF(SUM(J111,K111)=0,1,1-L111/SUM(J111,K111)) -> 1 | R111: =(K111+J111-P111)*Q111 -> 0 | S111: =MAX(0,(Z111+I111-wST.Jahr+IF(AND(Z111<>wST.Jahr,MONTH(H111)>6),0.5,0))*IF(AND(Z111=wST.Jahr,MONTH(H111)>6),2,1)) -> 0 | T111: 0 | U111: =IF(S111=0,0,IF(Z111>wST.Jahr,0,MAX(0,MIN(R111,R111/S111)))) -> 0 | V111: =(K111+J111-P111)*(1-Q111) -> 0 | W111: =MIN(J111+K111,P111+U111+V111) -> 0 | X111: =IF(Z111>wST.Jahr,0,J111+K111-W111) -> 0 | Y111: 0 | Z111: =YEAR(H111) -> 1900 | AA111: =IF(Z111>wST.Jahr-1,0,J111*Y111) -> 0 | AC111: 0 | AD111: 0 | AE111: 0 | AF111: 0 | AG111: 0 | AH111: 0
A112: FALSE | B112: + - | J112: 0 | N112: =IF(AND(M112="",D112=""),"",IF(AND(D112<>"",M112=""),"Keine Zuordnung",IF(OR(M112=$AC$7,M112=$AD$7,M112=$AE$7),"OK","Falsche Kostenstelle"))) ->  | O112: =IF(AND(Z112+I112<=wST.Jahr,K112<>0,NOT(ISBLANK(I112))),"Zugang ungültig!",IF(Z112>wST.Jahr,0,SUM(J112,K112,-L112))) -> 0 | P112: =IF(I112=0,0,IF(Z112>=wST.Jahr,0,MAX(0,MIN(J112,J112/I112*(wST.Jahr-Z112)-J112/I112*IF(MONTH(H112)>6,0.5,0))))) -> 0 | Q112: =IF(SUM(J112,K112)=0,1,1-L112/SUM(J112,K112)) -> 1 | R112: =(K112+J112-P112)*Q112 -> 0 | S112: =MAX(0,(Z112+I112-wST.Jahr+IF(AND(Z112<>wST.Jahr,MONTH(H112)>6),0.5,0))*IF(AND(Z112=wST.Jahr,MONTH(H112)>6),2,1)) -> 0 | T112: 0 | U112: =IF(S112=0,0,IF(Z112>wST.Jahr,0,MAX(0,MIN(R112,R112/S112)))) -> 0 | V112: =(K112+J112-P112)*(1-Q112) -> 0 | W112: =MIN(J112+K112,P112+U112+V112) -> 0 | X112: =IF(Z112>wST.Jahr,0,J112+K112-W112) -> 0 | Y112: 0 | Z112: =YEAR(H112) -> 1900 | AA112: =IF(Z112>wST.Jahr-1,0,J112*Y112) -> 0 | AC112: 0 | AD112: 0 | AE112: 0 | AF112: 0 | AG112: 0 | AH112: 0
A113: =Y113>0 -> FALSE | B113: + - | J113: 0 | N113: =IF(AND(M113="",D113=""),"",IF(AND(D113<>"",M113=""),"Keine Zuordnung",IF(OR(M113=$AC$7,M113=$AD$7,M113=$AE$7),"OK","Falsche Kostenstelle"))) ->  | O113: =IF(AND(Z113+I113<=wST.Jahr,K113<>0,NOT(ISBLANK(I113))),"Zugang ungültig!",IF(Z113>wST.Jahr,0,SUM(J113,K113,-L113))) -> 0 | P113: =IF(I113=0,0,IF(Z113>=wST.Jahr,0,MAX(0,MIN(J113,J113/I113*(wST.Jahr-Z113)-J113/I113*IF(MONTH(H113)>6,0.5,0))))) -> 0 | Q113: =IF(SUM(J113,K113)=0,1,1-L113/SUM(J113,K113)) -> 1 | R113: =(K113+J113-P113)*Q113 -> 0 | S113: =MAX(0,(Z113+I113-wST.Jahr+IF(AND(Z113<>wST.Jahr,MONTH(H113)>6),0.5,0))*IF(AND(Z113=wST.Jahr,MONTH(H113)>6),2,1)) -> 0 | T113: =U113+V113 -> 0 | U113: =IF(S113=0,0,IF(Z113>wST.Jahr,0,MAX(0,MIN(R113,R113/S113)))) -> 0 | V113: =(K113+J113-P113)*(1-Q113) -> 0 | W113: =MIN(J113+K113,P113+U113+V113) -> 0 | X113: =IF(Z113>wST.Jahr,0,J113+K113-W113) -> 0 | Y113: =IF(D113=0,0,IF(VALUE(LEFT(D113,3))=wST.Ansatz,1,0)) -> 0 | Z113: =YEAR(H113) -> 1900 | AA113: =IF(Z113>wST.Jahr-1,0,J113*Y113) -> 0 | AC113: 0 | AD113: 0 | AE113: 0 | AF113: 0 | AG113: 0 | AH113: 0
A114: FALSE | P114: =IF(I114=0,0,IF(Z114>=wST.Jahr,0,MAX(0,MIN(J114,J114/I114*(wST.Jahr-Z114)-J114/I114*IF(MONTH(H114)>6,0.5,0))))) -> 0 | Q114: =IF(SUM(J114,K114)=0,1,1-L114/SUM(J114,K114)) -> 1 | R114: =(K114+J114-P114)*Q114 -> 0 | S114: =MAX(0,(Z114+I114-wST.Jahr+IF(AND(Z114<>wST.Jahr,MONTH(H114)>6),0.5,0))*IF(AND(Z114=wST.Jahr,MONTH(H114)>6),2,1)) -> 0 | U114: =IF(S114=0,0,IF(Z114>wST.Jahr,0,MAX(0,MIN(R114,R114/S114)))) -> 0 | V114: =(K114+J114-P114)*(1-Q114) -> 0
A115: =A108 -> FALSE | Y115: =IF(D115=0,0,IF(VALUE(LEFT(D115,3))=wST.Ansatz,1,0)) -> 0
A116: =O116>0 -> FALSE | C116: INVESTITIONSZUSCHÜSSE und FINANZIERUNGSZUSCHÜSSE | J116: =J117 -> 0 | K116: =K117 -> 0 | L116: =L117 -> 0 | O116: =O117 -> 0 | P116: =P117 -> 0 | T116: =T117 -> 0 | U116: =U117 -> 0 | W116: =W117 -> 0 | X116: =X117 -> 0
A117: =O117>0 -> FALSE | C117: Investitionskostenzuschüsse und Vertragsbarwerte der Finanzierungszuschüsse | J117: =SUMPRODUCT(J118:J160,$Y118:$Y160) -> 0 | K117: =SUMPRODUCT(K118:K160,$Y118:$Y160) -> 0 | L117: =SUMPRODUCT(L118:L160,$Y118:$Y160) -> 0 | O117: =SUMPRODUCT(O118:O160,$Y118:$Y160) -> 0 | P117: =SUMPRODUCT(P118:P160,$Y118:$Y160) -> 0 | T117: =SUMPRODUCT(T118:T160,$Y118:$Y160) -> 0 | U117: =SUMPRODUCT(U118:U160,$Y118:$Y160) -> 0 | W117: =SUMPRODUCT(W118:W160,$Y118:$Y160) -> 0 | X117: =SUMPRODUCT(X118:X160,$Y118:$Y160) -> 0 | AA117: =SUM(AA118:AA160) -> 0
A118: =Y118>0 -> FALSE | B118: + - | J118: 0 | N118: =IF(AND(M118="",D118=""),"",IF(AND(D118<>"",M118=""),"Keine Zuordnung",IF(OR(M118=$AC$7,M118=$AD$7,M118=$AE$7),"OK","Falsche Kostenstelle"))) ->  | O118: =IF(AND(Z118+I118<=wST.Jahr,K118<>0,NOT(ISBLANK(I118))),"Zugang ungültig!",IF(Z118>wST.Jahr,0,SUM(J118,K118,-L118))) -> 0 | P118: =IF(I118=0,0,IF(Z118>=wST.Jahr,0,MAX(0,MIN(J118,J118/I118*(wST.Jahr-Z118)-J118/I118*IF(MONTH(H118)>6,0.5,0))))) -> 0 | Q118: =IF(SUM(J118,K118)=0,1,1-L118/SUM(J118,K118)) -> 1 | R118: =(K118+J118-P118)*Q118 -> 0 | S118: =MAX(0,(Z118+I118-wST.Jahr+IF(AND(Z118<>wST.Jahr,MONTH(H118)>6),0.5,0))*IF(AND(Z118=wST.Jahr,MONTH(H118)>6),2,1)) -> 0 | T118: =U118+V118 -> 0 | U118: =IF(S118=0,0,IF(Z118>wST.Jahr,0,MAX(0,MIN(R118,R118/S118)))) -> 0 | V118: =(K118+J118-P118)*(1-Q118) -> 0 | W118: =MIN(J118+K118,P118+U118+V118) -> 0 | X118: =IF(Z118>wST.Jahr,0,J118+K118-W118) -> 0 | Y118: =IF(D118=0,0,IF(VALUE(LEFT(D118,3))=wST.Ansatz,1,0)) -> 0 | Z118: =YEAR(H118) -> 1900 | AA118: =IF(Z118>wST.Jahr-1,0,J118*Y118) -> 0 | AC118: =IF($M118=AC$7,$T118,) -> 0 | AD118: 0 | AE118: 0 | AF118: =IF($M118=AF$7,$X118,) -> 0 | AG118: 0 | AH118: 0
A119: FALSE | B119: + - | J119: 0 | O119: 0 | P119: 0 | Q119: 1 | R119: 0 | S119: 0 | T119: 0 | U119: 0 | V119: 0 | W119: 0 | X119: 0 | Y119: 0 | Z119: 1900 | AA119: 0 | AC119: 0 | AD119: 0 | AE119: 0 | AF119: 0 | AG119: 0 | AH119: 0
A120: FALSE | B120: + - | J120: 0 | O120: =IF(AND(Z120+I120<=wST.Jahr,K120<>0,NOT(ISBLANK(I120))),"Zugang ungültig!",IF(Z120>wST.Jahr,0,SUM(J120,K120,-L120))) -> 0 | P120: =IF(I120=0,0,IF(Z120>=wST.Jahr,0,MAX(0,MIN(J120,J120/I120*(wST.Jahr-Z120)-J120/I120*IF(MONTH(H120)>6,0.5,0))))) -> 0 | Q120: 1 | R120: 0 | S120: =MAX(0,(Z120+I120-wST.Jahr+IF(AND(Z120<>wST.Jahr,MONTH(H120)>6),0.5,0))*IF(AND(Z120=wST.Jahr,MONTH(H120)>6),2,1)) -> 0 | T120: 0 | U120: =IF(S120=0,0,IF(Z120>wST.Jahr,0,MAX(0,MIN(R120,R120/S120)))) -> 0 | V120: 0 | W120: 0 | X120: =IF(Z120>wST.Jahr,0,J120+K120-W120) -> 0 | Y120: =IF(D120=0,0,IF(VALUE(LEFT(D120,3))=wST.Ansatz,1,0)) -> 0 | Z120: 1900 | AA120: =IF(Z120>wST.Jahr-1,0,J120*Y120) -> 0 | AC120: =IF($M120=AC$7,$T120,) -> 0 | AD120: 0 | AE120: 0 | AF120: =IF($M120=AF$7,$X120,) -> 0 | AG120: 0 | AH120: 0
A121: =Y121>0 -> FALSE | B121: + - | J121: 0 | N121: =IF(AND(M121="",D121=""),"",IF(AND(D121<>"",M121=""),"Keine Zuordnung",IF(OR(M121=$AC$7,M121=$AD$7,M121=$AE$7),"OK","Falsche Kostenstelle"))) ->  | O121: =IF(AND(Z121+I121<=wST.Jahr,K121<>0,NOT(ISBLANK(I121))),"Zugang ungültig!",IF(Z121>wST.Jahr,0,SUM(J121,K121,-L121))) -> 0 | P121: =IF(I121=0,0,IF(Z121>=wST.Jahr,0,MAX(0,MIN(J121,J121/I121*(wST.Jahr-Z121)-J121/I121*IF(MONTH(H121)>6,0.5,0))))) -> 0 | Q121: =IF(SUM(J121,K121)=0,1,1-L121/SUM(J121,K121)) -> 1 | R121: =(K121+J121-P121)*Q121 -> 0 | S121: =MAX(0,(Z121+I121-wST.Jahr+IF(AND(Z121<>wST.Jahr,MONTH(H121)>6),0.5,0))*IF(AND(Z121=wST.Jahr,MONTH(H121)>6),2,1)) -> 0 | T121: =U121+V121 -> 0 | U121: =IF(S121=0,0,IF(Z121>wST.Jahr,0,MAX(0,MIN(R121,R121/S121)))) -> 0 | V121: =(K121+J121-P121)*(1-Q121) -> 0 | W121: =MIN(J121+K121,P121+U121+V121) -> 0 | X121: =IF(Z121>wST.Jahr,0,J121+K121-W121) -> 0 | Y121: =IF(D121=0,0,IF(VALUE(LEFT(D121,3))=wST.Ansatz,1,0)) -> 0 | Z121: =YEAR(H121) -> 1900 | AA121: =IF(Z121>wST.Jahr-1,0,J121*Y121) -> 0 | AC121: 0 | AD121: 0 | AE121: 0 | AF121: 0 | AG121: 0 | AH121: 0
A122: =Y122>0 -> FALSE | B122: + - | J122: 0 | N122: =IF(AND(M122="",D122=""),"",IF(AND(D122<>"",M122=""),"Keine Zuordnung",IF(OR(M122=$AC$7,M122=$AD$7,M122=$AE$7),"OK","Falsche Kostenstelle"))) ->  | O122: =IF(AND(Z122+I122<=wST.Jahr,K122<>0,NOT(ISBLANK(I122))),"Zugang ungültig!",IF(Z122>wST.Jahr,0,SUM(J122,K122,-L122))) -> 0 | P122: =IF(I122=0,0,IF(Z122>=wST.Jahr,0,MAX(0,MIN(J122,J122/I122*(wST.Jahr-Z122)-J122/I122*IF(MONTH(H122)>6,0.5,0))))) -> 0 | Q122: =IF(SUM(J122,K122)=0,1,1-L122/SUM(J122,K122)) -> 1 | R122: =(K122+J122-P122)*Q122 -> 0 | S122: =MAX(0,(Z122+I122-wST.Jahr+IF(AND(Z122<>wST.Jahr,MONTH(H122)>6),0.5,0))*IF(AND(Z122=wST.Jahr,MONTH(H122)>6),2,1)) -> 0 | T122: =U122+V122 -> 0 | U122: =IF(S122=0,0,IF(Z122>wST.Jahr,0,MAX(0,MIN(R122,R122/S122)))) -> 0 | V122: =(K122+J122-P122)*(1-Q122) -> 0 | W122: =MIN(J122+K122,P122+U122+V122) -> 0 | X122: =IF(Z122>wST.Jahr,0,J122+K122-W122) -> 0 | Y122: =IF(D122=0,0,IF(VALUE(LEFT(D122,3))=wST.Ansatz,1,0)) -> 0 | Z122: =YEAR(H122) -> 1900 | AA122: =IF(Z122>wST.Jahr-1,0,J122*Y122) -> 0 | AC122: 0 | AD122: 0 | AE122: 0 | AF122: 0 | AG122: 0 | AH122: 0
A123: FALSE | B123: + - | J123: 0 | O123: 0 | P123: 0 | Q123: 1 | R123: 0 | S123: 0 | T123: 0 | U123: 0 | V123: 0 | W123: 0 | X123: 0 | Y123: 0 | Z123: 1900 | AA123: 0 | AC123: 0 | AD123: 0 | AE123: 0 | AF123: 0 | AG123: 0 | AH123: 0
A124: FALSE | B124: + - | J124: 0 | O124: 0 | P124: 0 | Q124: 1 | R124: 0 | S124: 0 | T124: 0 | U124: 0 | V124: 0 | W124: 0 | X124: 0 | Y124: 0 | Z124: 1900 | AA124: 0 | AC124: 0 | AD124: 0 | AE124: 0 | AF124: 0 | AG124: 0 | AH124: 0
A125: FALSE | B125: + - | J125: 0 | O125: 0 | P125: 0 | Q125: 1 | R125: 0 | S125: 0 | T125: 0 | U125: 0 | V125: 0 | W125: 0 | X125: 0 | Y125: 0 | Z125: 1900 | AA125: 0 | AC125: 0 | AD125: 0 | AE125: 0 | AF125: 0 | AG125: 0 | AH125: 0
A126: FALSE | B126: + - | J126: 0 | O126: 0 | P126: 0 | Q126: 1 | R126: 0 | S126: 0 | T126: 0 | U126: 0 | V126: 0 | W126: 0 | X126: 0 | Y126: 0 | Z126: 1900 | AA126: 0 | AC126: 0 | AD126: 0 | AE126: 0 | AF126: 0 | AG126: 0 | AH126: 0
A127: FALSE | B127: + - | J127: 0 | O127: 0 | P127: 0 | Q127: 1 | R127: 0 | S127: 0 | T127: 0 | U127: 0 | V127: 0 | W127: 0 | X127: 0 | Y127: 0 | Z127: 1900 | AA127: 0 | AC127: 0 | AD127: 0 | AE127: 0 | AF127: 0 | AG127: 0 | AH127: 0
A128: FALSE | B128: + - | J128: 0 | O128: 0 | P128: 0 | Q128: 1 | R128: 0 | S128: 0 | T128: 0 | U128: 0 | V128: 0 | W128: 0 | X128: 0 | Y128: 0 | Z128: 1900 | AA128: 0 | AC128: 0 | AD128: 0 | AE128: 0 | AF128: 0 | AG128: 0 | AH128: 0
A129: FALSE | B129: + - | J129: 0 | O129: 0 | P129: 0 | Q129: 1 | R129: 0 | S129: 0 | T129: 0 | U129: 0 | V129: 0 | W129: 0 | X129: 0 | Y129: 0 | Z129: 1900 | AA129: 0 | AC129: 0 | AD129: 0 | AE129: 0 | AF129: 0 | AG129: 0 | AH129: 0
A130: FALSE | B130: + - | J130: 0 | O130: 0 | P130: 0 | Q130: 1 | R130: 0 | S130: 0 | T130: 0 | U130: 0 | V130: 0 | W130: 0 | X130: 0 | Y130: 0 | Z130: 1900 | AA130: 0 | AC130: 0 | AD130: 0 | AE130: 0 | AF130: 0 | AG130: 0 | AH130: 0
A131: FALSE | B131: + - | J131: 0 | O131: 0 | P131: 0 | Q131: 1 | R131: 0 | S131: 0 | T131: 0 | U131: 0 | V131: 0 | W131: 0 | X131: 0 | Y131: 0 | Z131: 1900 | AA131: 0 | AC131: 0 | AD131: 0 | AE131: 0 | AF131: 0 | AG131: 0 | AH131: 0
A132: FALSE | B132: + - | J132: 0 | O132: 0 | P132: 0 | Q132: 1 | R132: 0 | S132: 0 | T132: 0 | U132: 0 | V132: 0 | W132: 0 | X132: 0 | Y132: 0 | Z132: 1900 | AA132: 0 | AC132: 0 | AD132: 0 | AE132: 0 | AF132: 0 | AG132: 0 | AH132: 0
A133: FALSE | B133: + - | J133: 0 | O133: 0 | P133: 0 | Q133: 1 | R133: 0 | S133: 0 | T133: 0 | U133: 0 | V133: 0 | W133: 0 | X133: 0 | Y133: 0 | Z133: 1900 | AA133: 0 | AC133: 0 | AD133: 0 | AE133: 0 | AF133: 0 | AG133: 0 | AH133: 0
A134: FALSE | B134: + - | J134: 0 | O134: 0 | P134: 0 | Q134: 1 | R134: 0 | S134: 0 | T134: 0 | U134: 0 | V134: 0 | W134: 0 | X134: 0 | Y134: 0 | Z134: 1900 | AA134: 0 | AC134: 0 | AD134: 0 | AE134: 0 | AF134: 0 | AG134: 0 | AH134: 0
A135: FALSE | B135: + - | J135: 0 | O135: 0 | P135: 0 | Q135: 1 | R135: 0 | S135: 0 | T135: 0 | U135: 0 | V135: 0 | W135: 0 | X135: 0 | Y135: 0 | Z135: 1900 | AA135: 0 | AC135: 0 | AD135: 0 | AE135: 0 | AF135: 0 | AG135: 0 | AH135: 0
A136: FALSE | B136: + - | J136: 0 | O136: 0 | P136: 0 | Q136: 1 | R136: 0 | S136: 0 | T136: 0 | U136: 0 | V136: 0 | W136: 0 | X136: 0 | Y136: 0 | Z136: 1900 | AA136: 0 | AC136: 0 | AD136: 0 | AE136: 0 | AF136: 0 | AG136: 0 | AH136: 0
A137: FALSE | B137: + - | J137: 0 | O137: 0 | P137: 0 | Q137: 1 | R137: 0 | S137: 0 | T137: 0 | U137: 0 | V137: 0 | W137: 0 | X137: 0 | Y137: 0 | Z137: 1900 | AA137: 0 | AC137: 0 | AD137: 0 | AE137: 0 | AF137: 0 | AG137: 0 | AH137: 0
A138: FALSE | B138: + - | J138: 0 | O138: 0 | P138: 0 | Q138: 1 | R138: 0 | S138: 0 | T138: 0 | U138: 0 | V138: 0 | W138: 0 | X138: 0 | Y138: 0 | Z138: 1900 | AA138: 0 | AC138: 0 | AD138: 0 | AE138: 0 | AF138: 0 | AG138: 0 | AH138: 0
A139: FALSE | B139: + - | J139: 0 | O139: 0 | P139: 0 | Q139: 1 | R139: 0 | S139: 0 | T139: 0 | U139: 0 | V139: 0 | W139: 0 | X139: 0 | Y139: 0 | Z139: 1900 | AA139: 0 | AC139: 0 | AD139: 0 | AE139: 0 | AF139: 0 | AG139: 0 | AH139: 0
A140: FALSE | B140: + - | J140: 0 | O140: 0 | P140: 0 | Q140: 1 | R140: 0 | S140: 0 | T140: 0 | U140: 0 | V140: 0 | W140: 0 | X140: 0 | Y140: 0 | Z140: 1900 | AA140: 0 | AC140: 0 | AD140: 0 | AE140: 0 | AF140: 0 | AG140: 0 | AH140: 0
A141: =Y141>0 -> FALSE | B141: + - | J141: 0 | N141: =IF(AND(M141="",D141=""),"",IF(AND(D141<>"",M141=""),"Keine Zuordnung",IF(OR(M141=$AC$7,M141=$AD$7,M141=$AE$7),"OK","Falsche Kostenstelle"))) ->  | O141: =IF(AND(Z141+I141<=wST.Jahr,K141<>0,NOT(ISBLANK(I141))),"Zugang ungültig!",IF(Z141>wST.Jahr,0,SUM(J141,K141,-L141))) -> 0 | P141: =IF(I141=0,0,IF(Z141>=wST.Jahr,0,MAX(0,MIN(J141,J141/I141*(wST.Jahr-Z141)-J141/I141*IF(MONTH(H141)>6,0.5,0))))) -> 0 | Q141: =IF(SUM(J141,K141)=0,1,1-L141/SUM(J141,K141)) -> 1 | R141: =(K141+J141-P141)*Q141 -> 0 | S141: =MAX(0,(Z141+I141-wST.Jahr+IF(AND(Z141<>wST.Jahr,MONTH(H141)>6),0.5,0))*IF(AND(Z141=wST.Jahr,MONTH(H141)>6),2,1)) -> 0 | T141: =U141+V141 -> 0 | U141: =IF(S141=0,0,IF(Z141>wST.Jahr,0,MAX(0,MIN(R141,R141/S141)))) -> 0 | V141: =(K141+J141-P141)*(1-Q141) -> 0 | W141: =MIN(J141+K141,P141+U141+V141) -> 0 | X141: =IF(Z141>wST.Jahr,0,J141+K141-W141) -> 0 | Y141: =IF(D141=0,0,IF(VALUE(LEFT(D141,3))=wST.Ansatz,1,0)) -> 0 | Z141: =YEAR(H141) -> 1900 | AA141: =IF(Z141>wST.Jahr-1,0,J141*Y141) -> 0 | AC141: 0 | AD141: 0 | AE141: 0 | AF141: 0 | AG141: 0 | AH141: 0
A142: FALSE | B142: + - | J142: 0 | O142: 0 | P142: 0 | Q142: 1 | R142: 0 | S142: 0 | T142: 0 | U142: 0 | V142: 0 | W142: 0 | X142: 0 | Y142: 0 | Z142: 1900 | AA142: 0 | AC142: 0 | AD142: 0 | AE142: 0 | AF142: 0 | AG142: 0 | AH142: 0
A143: FALSE | B143: + - | J143: 0 | O143: 0 | P143: 0 | Q143: 1 | R143: 0 | S143: 0 | T143: 0 | U143: 0 | V143: 0 | W143: 0 | X143: 0 | Y143: 0 | Z143: 1900 | AA143: 0 | AC143: 0 | AD143: 0 | AE143: 0 | AF143: 0 | AG143: 0 | AH143: 0
A144: FALSE | B144: + - | J144: 0 | O144: 0 | P144: 0 | Q144: 1 | R144: 0 | S144: 0 | T144: 0 | U144: 0 | V144: 0 | W144: 0 | X144: 0 | Y144: 0 | Z144: 1900 | AA144: 0 | AC144: 0 | AD144: 0 | AE144: 0 | AF144: 0 | AG144: 0 | AH144: 0
A145: FALSE | B145: + - | J145: 0 | O145: 0 | P145: 0 | Q145: 1 | R145: 0 | S145: 0 | T145: 0 | U145: 0 | V145: 0 | W145: 0 | X145: 0 | Y145: 0 | Z145: 1900 | AA145: 0 | AC145: 0 | AD145: 0 | AE145: 0 | AF145: 0 | AG145: 0 | AH145: 0
A146: FALSE | B146: + - | J146: 0 | O146: 0 | P146: 0 | Q146: 1 | R146: 0 | S146: 0 | T146: 0 | U146: 0 | V146: 0 | W146: 0 | X146: 0 | Y146: 0 | Z146: 1900 | AA146: 0 | AC146: 0 | AD146: 0 | AE146: 0 | AF146: 0 | AG146: 0 | AH146: 0
A147: FALSE | B147: + - | J147: 0 | O147: 0 | P147: 0 | Q147: 1 | R147: 0 | S147: 0 | T147: 0 | U147: 0 | V147: 0 | W147: 0 | X147: 0 | Y147: 0 | Z147: 1900 | AA147: 0 | AC147: 0 | AD147: 0 | AE147: 0 | AF147: 0 | AG147: 0 | AH147: 0
A148: FALSE | B148: + - | J148: 0 | O148: 0 | P148: 0 | Q148: 1 | R148: 0 | S148: 0 | T148: 0 | U148: 0 | V148: 0 | W148: 0 | X148: 0 | Y148: 0 | Z148: 1900 | AA148: 0 | AC148: 0 | AD148: 0 | AE148: 0 | AF148: 0 | AG148: 0 | AH148: 0
A149: FALSE | B149: + - | J149: 0 | O149: 0 | P149: 0 | Q149: 1 | R149: 0 | S149: 0 | T149: 0 | U149: 0 | V149: 0 | W149: 0 | X149: 0 | Y149: 0 | Z149: 1900 | AA149: 0 | AC149: 0 | AD149: 0 | AE149: 0 | AF149: 0 | AG149: 0 | AH149: 0
A150: FALSE | B150: + - | J150: 0 | O150: 0 | P150: 0 | Q150: 1 | R150: 0 | S150: 0 | T150: 0 | U150: 0 | V150: 0 | W150: 0 | X150: 0 | Y150: 0 | Z150: 1900 | AA150: 0 | AC150: 0 | AD150: 0 | AE150: 0 | AF150: 0 | AG150: 0 | AH150: 0
A151: FALSE | B151: + - | J151: 0 | O151: 0 | P151: 0 | Q151: 1 | R151: 0 | S151: 0 | T151: 0 | U151: 0 | V151: 0 | W151: 0 | X151: 0 | Y151: 0 | Z151: 1900 | AA151: 0 | AC151: 0 | AD151: 0 | AE151: 0 | AF151: 0 | AG151: 0 | AH151: 0
A152: FALSE | B152: + - | J152: 0 | O152: 0 | P152: 0 | Q152: 1 | R152: 0 | S152: 0 | T152: 0 | U152: 0 | V152: 0 | W152: 0 | X152: 0 | Y152: 0 | Z152: 1900 | AA152: 0 | AC152: 0 | AD152: 0 | AE152: 0 | AF152: 0 | AG152: 0 | AH152: 0
A153: FALSE | B153: + - | J153: 0 | O153: 0 | P153: 0 | Q153: 1 | R153: 0 | S153: 0 | T153: 0 | U153: 0 | V153: 0 | W153: 0 | X153: 0 | Y153: 0 | Z153: 1900 | AA153: 0 | AC153: 0 | AD153: 0 | AE153: 0 | AF153: 0 | AG153: 0 | AH153: 0
A154: FALSE | B154: + - | J154: 0 | O154: 0 | P154: 0 | Q154: 1 | R154: 0 | S154: 0 | T154: 0 | U154: 0 | V154: 0 | W154: 0 | X154: 0 | Y154: 0 | Z154: 1900 | AA154: 0 | AC154: 0 | AD154: 0 | AE154: 0 | AF154: 0 | AG154: 0 | AH154: 0
A155: FALSE | B155: + - | J155: 0 | O155: 0 | P155: 0 | Q155: 1 | R155: 0 | S155: 0 | T155: 0 | U155: 0 | V155: 0 | W155: 0 | X155: 0 | Y155: 0 | Z155: 1900 | AA155: 0 | AC155: 0 | AD155: 0 | AE155: 0 | AF155: 0 | AG155: 0 | AH155: 0
A156: FALSE | B156: + - | J156: 0 | O156: 0 | P156: 0 | Q156: 1 | R156: 0 | S156: 0 | T156: 0 | U156: 0 | V156: 0 | W156: 0 | X156: 0 | Y156: 0 | Z156: 1900 | AA156: 0 | AC156: 0 | AD156: 0 | AE156: 0 | AF156: 0 | AG156: 0 | AH156: 0
A157: FALSE | B157: + - | J157: 0 | O157: 0 | P157: 0 | Q157: 1 | R157: 0 | S157: 0 | T157: 0 | U157: 0 | V157: 0 | W157: 0 | X157: 0 | Y157: 0 | Z157: 1900 | AA157: 0 | AC157: 0 | AD157: 0 | AE157: 0 | AF157: 0 | AG157: 0 | AH157: 0
A158: FALSE | B158: + - | J158: 0 | O158: 0 | P158: 0 | Q158: 1 | R158: 0 | S158: 0 | T158: 0 | U158: 0 | V158: 0 | W158: 0 | X158: 0 | Y158: 0 | Z158: 1900 | AA158: 0 | AC158: 0 | AD158: 0 | AE158: 0 | AF158: 0 | AG158: 0 | AH158: 0
A159: FALSE | B159: + - | J159: 0 | O159: 0 | P159: 0 | Q159: 1 | R159: 0 | S159: 0 | T159: 0 | U159: 0 | V159: 0 | W159: 0 | X159: 0 | Y159: 0 | Z159: 1900 | AA159: 0 | AC159: 0 | AD159: 0 | AE159: 0 | AF159: 0 | AG159: 0 | AH159: 0
A160: FALSE | P160: 0 | Q160: 1 | R160: 0 | S160: 0 | U160: 0 | V160: 0
A161: =A116 -> FALSE | Y161: =IF(D161=0,0,IF(VALUE(LEFT(D161,3))=wST.Ansatz,1,0)) -> 0
A162: =O162>0 -> FALSE | C162: INTERESSENTENBEITRÄGE | J162: =J163 -> 0 | K162: =K163 -> 0 | L162: =L163 -> 0 | O162: =O163 -> 0 | P162: =P163 -> 0 | T162: =T163 -> 0 | U162: =U163 -> 0 | W162: =W163 -> 0 | X162: =X163 -> 0
A163: =O163>0 -> FALSE | C163: Interessentenbeiträge | J163: =SUMPRODUCT(J164:J200,$Y164:$Y200) -> 0 | K163: =SUMPRODUCT(K164:K200,$Y164:$Y200) -> 0 | L163: =SUMPRODUCT(L164:L200,$Y164:$Y200) -> 0 | O163: =SUMPRODUCT(O164:O200,$Y164:$Y200) -> 0 | P163: =SUMPRODUCT(P164:P200,$Y164:$Y200) -> 0 | T163: =SUMPRODUCT(T164:T200,$Y164:$Y200) -> 0 | U163: =SUMPRODUCT(U164:U200,$Y164:$Y200) -> 0 | W163: =SUMPRODUCT(W164:W200,$Y164:$Y200) -> 0 | X163: =SUMPRODUCT(X164:X200,$Y164:$Y200) -> 0 | Y163: =IF(D163=0,0,IF(VALUE(LEFT(D163,3))=wST.Ansatz,1,0)) -> 0 | AA163: =SUM(AA164:AA200) -> 0
A164: =Y164>0 -> FALSE | B164: + - | J164: 0 | N164: =IF(AND(M164="",D164=""),"",IF(AND(D164<>"",M164=""),"Keine Zuordnung",IF(OR(M164=$AC$7,M164=$AD$7,M164=$AE$7),"OK","Falsche Kostenstelle"))) ->  | O164: =IF(AND(Z164+I164<=wST.Jahr,K164<>0,NOT(ISBLANK(I164))),"Zugang ungültig!",IF(Z164>wST.Jahr,0,SUM(J164,K164,-L164))) -> 0 | P164: =IF(I164=0,0,IF(Z164>=wST.Jahr,0,MAX(0,MIN(J164,J164/I164*(wST.Jahr-Z164)-J164/I164*IF(MONTH(H164)>6,0.5,0))))) -> 0 | Q164: =IF(SUM(J164,K164)=0,1,1-L164/SUM(J164,K164)) -> 1 | R164: =(K164+J164-P164)*Q164 -> 0 | S164: =MAX(0,(Z164+I164-wST.Jahr+IF(AND(Z164<>wST.Jahr,MONTH(H164)>6),0.5,0))*IF(AND(Z164=wST.Jahr,MONTH(H164)>6),2,1)) -> 0 | T164: =U164+V164 -> 0 | U164: =IF(S164=0,0,IF(Z164>wST.Jahr,0,MAX(0,MIN(R164,R164/S164)))) -> 0 | V164: =(K164+J164-P164)*(1-Q164) -> 0 | W164: =MIN(J164+K164,P164+U164+V164) -> 0 | X164: =IF(Z164>wST.Jahr,0,J164+K164-W164) -> 0 | Y164: 0 | Z164: =YEAR(H164) -> 1900 | AA164: =IF(Z164>wST.Jahr-1,0,J164*Y164) -> 0 | AC164: =IF($M164=AC$7,$T164,) -> 0 | AD164: 0 | AE164: 0 | AF164: =IF($M164=AF$7,$X164,) -> 0 | AG164: 0 | AH164: 0
A165: FALSE | B165: + - | J165: 0 | O165: 0 | P165: 0 | Q165: 1 | R165: 0 | S165: 0 | T165: 0 | U165: 0 | V165: 0 | W165: 0 | X165: 0 | Y165: 0 | Z165: 1900 | AA165: 0 | AC165: 0 | AD165: 0 | AE165: 0 | AF165: 0 | AG165: 0 | AH165: 0
A166: FALSE | B166: + - | J166: 0 | O166: 0 | P166: 0 | Q166: 1 | R166: 0 | S166: 0 | T166: 0 | U166: =IF(S166=0,0,IF(Z166>wST.Jahr,0,MAX(0,MIN(R166,R166/S166)))) -> 0 | V166: 0 | W166: 0 | X166: 0 | Y166: 0 | Z166: 1900 | AA166: 0 | AC166: =IF($M166=AC$7,$T166,) -> 0 | AD166: 0 | AE166: 0 | AF166: =IF($M166=AF$7,$X166,) -> 0 | AG166: 0 | AH166: 0
A167: =Y167>0 -> FALSE | B167: + - | J167: 0 | N167: =IF(AND(M167="",D167=""),"",IF(AND(D167<>"",M167=""),"Keine Zuordnung",IF(OR(M167=$AC$7,M167=$AD$7,M167=$AE$7),"OK","Falsche Kostenstelle"))) ->  | O167: =IF(AND(Z167+I167<=wST.Jahr,K167<>0,NOT(ISBLANK(I167))),"Zugang ungültig!",IF(Z167>wST.Jahr,0,SUM(J167,K167,-L167))) -> 0 | P167: =IF(I167=0,0,IF(Z167>=wST.Jahr,0,MAX(0,MIN(J167,J167/I167*(wST.Jahr-Z167)-J167/I167*IF(MONTH(H167)>6,0.5,0))))) -> 0 | Q167: =IF(SUM(J167,K167)=0,1,1-L167/SUM(J167,K167)) -> 1 | R167: =(K167+J167-P167)*Q167 -> 0 | S167: =MAX(0,(Z167+I167-wST.Jahr+IF(AND(Z167<>wST.Jahr,MONTH(H167)>6),0.5,0))*IF(AND(Z167=wST.Jahr,MONTH(H167)>6),2,1)) -> 0 | T167: =U167+V167 -> 0 | U167: =IF(S167=0,0,IF(Z167>wST.Jahr,0,MAX(0,MIN(R167,R167/S167)))) -> 0 | V167: =(K167+J167-P167)*(1-Q167) -> 0 | W167: =MIN(J167+K167,P167+U167+V167) -> 0 | X167: =IF(Z167>wST.Jahr,0,J167+K167-W167) -> 0 | Y167: =IF(D167=0,0,IF(VALUE(LEFT(D167,3))=wST.Ansatz,1,0)) -> 0 | Z167: =YEAR(H167) -> 1900 | AA167: =IF(Z167>wST.Jahr-1,0,J167*Y167) -> 0 | AC167: 0 | AD167: 0 | AE167: 0 | AF167: 0 | AG167: 0 | AH167: 0
A168: =Y168>0 -> FALSE | B168: + - | J168: 0 | N168: =IF(AND(M168="",D168=""),"",IF(AND(D168<>"",M168=""),"Keine Zuordnung",IF(OR(M168=$AC$7,M168=$AD$7,M168=$AE$7),"OK","Falsche Kostenstelle"))) ->  | O168: =IF(AND(Z168+I168<=wST.Jahr,K168<>0,NOT(ISBLANK(I168))),"Zugang ungültig!",IF(Z168>wST.Jahr,0,SUM(J168,K168,-L168))) -> 0 | P168: =IF(I168=0,0,IF(Z168>=wST.Jahr,0,MAX(0,MIN(J168,J168/I168*(wST.Jahr-Z168)-J168/I168*IF(MONTH(H168)>6,0.5,0))))) -> 0 | Q168: =IF(SUM(J168,K168)=0,1,1-L168/SUM(J168,K168)) -> 1 | R168: =(K168+J168-P168)*Q168 -> 0 | S168: =MAX(0,(Z168+I168-wST.Jahr+IF(AND(Z168<>wST.Jahr,MONTH(H168)>6),0.5,0))*IF(AND(Z168=wST.Jahr,MONTH(H168)>6),2,1)) -> 0 | T168: =U168+V168 -> 0 | U168: =IF(S168=0,0,IF(Z168>wST.Jahr,0,MAX(0,MIN(R168,R168/S168)))) -> 0 | V168: =(K168+J168-P168)*(1-Q168) -> 0 | W168: =MIN(J168+K168,P168+U168+V168) -> 0 | X168: =IF(Z168>wST.Jahr,0,J168+K168-W168) -> 0 | Y168: =IF(D168=0,0,IF(VALUE(LEFT(D168,3))=wST.Ansatz,1,0)) -> 0 | Z168: =YEAR(H168) -> 1900 | AA168: =IF(Z168>wST.Jahr-1,0,J168*Y168) -> 0 | AC168: 0 | AD168: 0 | AE168: 0 | AF168: 0 | AG168: 0 | AH168: 0
A169: FALSE | B169: + - | J169: 0 | O169: 0 | P169: 0 | Q169: 1 | R169: 0 | S169: 0 | T169: 0 | U169: 0 | V169: 0 | W169: 0 | X169: 0 | Y169: 0 | Z169: 1900 | AA169: 0 | AC169: 0 | AD169: 0 | AE169: 0 | AF169: 0 | AG169: 0 | AH169: 0
A170: FALSE | B170: + - | J170: 0 | O170: 0 | P170: 0 | Q170: 1 | R170: 0 | S170: 0 | T170: 0 | U170: 0 | V170: 0 | W170: 0 | X170: 0 | Y170: 0 | Z170: 1900 | AA170: 0 | AC170: 0 | AD170: 0 | AE170: 0 | AF170: 0 | AG170: 0 | AH170: 0
A171: FALSE | B171: + - | J171: 0 | O171: 0 | P171: 0 | Q171: 1 | R171: 0 | S171: 0 | T171: 0 | U171: 0 | V171: 0 | W171: 0 | X171: 0 | Y171: 0 | Z171: 1900 | AA171: 0 | AC171: 0 | AD171: 0 | AE171: 0 | AF171: 0 | AG171: 0 | AH171: 0
A172: FALSE | B172: + - | J172: 0 | O172: 0 | P172: 0 | Q172: 1 | R172: 0 | S172: 0 | T172: 0 | U172: 0 | V172: 0 | W172: 0 | X172: 0 | Y172: 0 | Z172: 1900 | AA172: 0 | AC172: 0 | AD172: 0 | AE172: 0 | AF172: 0 | AG172: 0 | AH172: 0
A173: FALSE | B173: + - | J173: 0 | O173: 0 | P173: 0 | Q173: 1 | R173: 0 | S173: 0 | T173: 0 | U173: 0 | V173: 0 | W173: 0 | X173: 0 | Y173: 0 | Z173: 1900 | AA173: 0 | AC173: 0 | AD173: 0 | AE173: 0 | AF173: 0 | AG173: 0 | AH173: 0
A174: FALSE | B174: + - | J174: 0 | O174: 0 | P174: 0 | Q174: 1 | R174: 0 | S174: 0 | T174: 0 | U174: 0 | V174: 0 | W174: 0 | X174: 0 | Y174: 0 | Z174: 1900 | AA174: 0 | AC174: 0 | AD174: 0 | AE174: 0 | AF174: 0 | AG174: 0 | AH174: 0
A175: FALSE | B175: + - | J175: 0 | O175: 0 | P175: 0 | Q175: 1 | R175: 0 | S175: 0 | T175: 0 | U175: 0 | V175: 0 | W175: 0 | X175: 0 | Y175: 0 | Z175: 1900 | AA175: 0 | AC175: 0 | AD175: 0 | AE175: 0 | AF175: 0 | AG175: 0 | AH175: 0
A176: FALSE | B176: + - | J176: 0 | O176: 0 | P176: 0 | Q176: 1 | R176: 0 | S176: 0 | T176: 0 | U176: 0 | V176: 0 | W176: 0 | X176: 0 | Y176: 0 | Z176: 1900 | AA176: 0 | AC176: 0 | AD176: 0 | AE176: 0 | AF176: 0 | AG176: 0 | AH176: 0
A177: FALSE | B177: + - | J177: 0 | O177: 0 | P177: 0 | Q177: 1 | R177: 0 | S177: 0 | T177: 0 | U177: 0 | V177: 0 | W177: 0 | X177: 0 | Y177: 0 | Z177: 1900 | AA177: 0 | AC177: 0 | AD177: 0 | AE177: 0 | AF177: 0 | AG177: 0 | AH177: 0
A178: FALSE | B178: + - | J178: 0 | O178: 0 | P178: 0 | Q178: 1 | R178: 0 | S178: 0 | T178: 0 | U178: 0 | V178: 0 | W178: 0 | X178: 0 | Y178: 0 | Z178: 1900 | AA178: 0 | AC178: 0 | AD178: 0 | AE178: 0 | AF178: 0 | AG178: 0 | AH178: 0
A179: FALSE | B179: + - | J179: 0 | O179: 0 | P179: 0 | Q179: 1 | R179: 0 | S179: 0 | T179: 0 | U179: 0 | V179: 0 | W179: 0 | X179: 0 | Y179: 0 | Z179: 1900 | AA179: 0 | AC179: 0 | AD179: 0 | AE179: 0 | AF179: 0 | AG179: 0 | AH179: 0
A180: FALSE | B180: + - | J180: 0 | O180: 0 | P180: 0 | Q180: 1 | R180: 0 | S180: 0 | T180: 0 | U180: 0 | V180: 0 | W180: 0 | X180: 0 | Y180: 0 | Z180: 1900 | AA180: 0 | AC180: 0 | AD180: 0 | AE180: 0 | AF180: 0 | AG180: 0 | AH180: 0
A181: FALSE | B181: + - | J181: 0 | O181: 0 | P181: 0 | Q181: 1 | R181: 0 | S181: 0 | T181: 0 | U181: 0 | V181: 0 | W181: 0 | X181: 0 | Y181: 0 | Z181: 1900 | AA181: 0 | AC181: 0 | AD181: 0 | AE181: 0 | AF181: 0 | AG181: 0 | AH181: 0
A182: FALSE | B182: + - | J182: 0 | O182: 0 | P182: 0 | Q182: 1 | R182: 0 | S182: 0 | T182: 0 | U182: 0 | V182: 0 | W182: 0 | X182: 0 | Y182: 0 | Z182: 1900 | AA182: 0 | AC182: 0 | AD182: 0 | AE182: 0 | AF182: 0 | AG182: 0 | AH182: 0
A183: FALSE | B183: + - | J183: 0 | O183: 0 | P183: 0 | Q183: 1 | R183: 0 | S183: 0 | T183: 0 | U183: 0 | V183: 0 | W183: 0 | X183: 0 | Y183: 0 | Z183: 1900 | AA183: 0 | AC183: 0 | AD183: 0 | AE183: 0 | AF183: 0 | AG183: 0 | AH183: 0
A184: FALSE | B184: + - | J184: 0 | O184: 0 | P184: 0 | Q184: 1 | R184: 0 | S184: 0 | T184: 0 | U184: 0 | V184: 0 | W184: 0 | X184: 0 | Y184: 0 | Z184: 1900 | AA184: 0 | AC184: 0 | AD184: 0 | AE184: 0 | AF184: 0 | AG184: 0 | AH184: 0
A185: FALSE | B185: + - | J185: 0 | O185: 0 | P185: 0 | Q185: 1 | R185: 0 | S185: 0 | T185: 0 | U185: 0 | V185: 0 | W185: 0 | X185: 0 | Y185: 0 | Z185: 1900 | AA185: 0 | AC185: 0 | AD185: 0 | AE185: 0 | AF185: 0 | AG185: 0 | AH185: 0
A186: FALSE | B186: + - | J186: 0 | O186: 0 | P186: 0 | Q186: 1 | R186: 0 | S186: 0 | T186: 0 | U186: 0 | V186: 0 | W186: 0 | X186: 0 | Y186: 0 | Z186: 1900 | AA186: 0 | AC186: 0 | AD186: 0 | AE186: 0 | AF186: 0 | AG186: 0 | AH186: 0
A187: FALSE | B187: + - | J187: 0 | O187: 0 | P187: 0 | Q187: 1 | R187: 0 | S187: 0 | T187: 0 | U187: 0 | V187: 0 | W187: 0 | X187: 0 | Y187: 0 | Z187: 1900 | AA187: 0 | AC187: 0 | AD187: 0 | AE187: 0 | AF187: 0 | AG187: 0 | AH187: 0
A188: FALSE | B188: + - | J188: 0 | O188: 0 | P188: 0 | Q188: 1 | R188: 0 | S188: 0 | T188: 0 | U188: 0 | V188: 0 | W188: 0 | X188: 0 | Y188: 0 | Z188: 1900 | AA188: 0 | AC188: 0 | AD188: 0 | AE188: 0 | AF188: 0 | AG188: 0 | AH188: 0
A189: =Y189>0 -> FALSE | B189: + - | J189: 0 | N189: =IF(AND(M189="",D189=""),"",IF(AND(D189<>"",M189=""),"Keine Zuordnung",IF(OR(M189=$AC$7,M189=$AD$7,M189=$AE$7),"OK","Falsche Kostenstelle"))) ->  | O189: =IF(AND(Z189+I189<=wST.Jahr,K189<>0,NOT(ISBLANK(I189))),"Zugang ungültig!",IF(Z189>wST.Jahr,0,SUM(J189,K189,-L189))) -> 0 | P189: =IF(I189=0,0,IF(Z189>=wST.Jahr,0,MAX(0,MIN(J189,J189/I189*(wST.Jahr-Z189)-J189/I189*IF(MONTH(H189)>6,0.5,0))))) -> 0 | Q189: =IF(SUM(J189,K189)=0,1,1-L189/SUM(J189,K189)) -> 1 | R189: =(K189+J189-P189)*Q189 -> 0 | S189: =MAX(0,(Z189+I189-wST.Jahr+IF(AND(Z189<>wST.Jahr,MONTH(H189)>6),0.5,0))*IF(AND(Z189=wST.Jahr,MONTH(H189)>6),2,1)) -> 0 | T189: =U189+V189 -> 0 | U189: =IF(S189=0,0,IF(Z189>wST.Jahr,0,MAX(0,MIN(R189,R189/S189)))) -> 0 | V189: =(K189+J189-P189)*(1-Q189) -> 0 | W189: =MIN(J189+K189,P189+U189+V189) -> 0 | X189: =IF(Z189>wST.Jahr,0,J189+K189-W189) -> 0 | Y189: =IF(D189=0,0,IF(VALUE(LEFT(D189,3))=wST.Ansatz,1,0)) -> 0 | Z189: =YEAR(H189) -> 1900 | AA189: =IF(Z189>wST.Jahr-1,0,J189*Y189) -> 0 | AC189: 0 | AD189: 0 | AE189: 0 | AF189: 0 | AG189: 0 | AH189: 0
A190: FALSE | B190: + - | J190: 0 | O190: 0 | P190: 0 | Q190: 1 | R190: 0 | S190: 0 | T190: 0 | U190: 0 | V190: 0 | W190: 0 | X190: 0 | Y190: 0 | Z190: 1900 | AA190: 0 | AC190: 0 | AD190: 0 | AE190: 0 | AF190: 0 | AG190: 0 | AH190: 0
A191: FALSE | B191: + - | J191: 0 | O191: 0 | P191: 0 | Q191: 1 | R191: 0 | S191: 0 | T191: 0 | U191: 0 | V191: 0 | W191: 0 | X191: 0 | Y191: 0 | Z191: 1900 | AA191: 0 | AC191: 0 | AD191: 0 | AE191: 0 | AF191: 0 | AG191: 0 | AH191: 0
A192: FALSE | B192: + - | J192: 0 | O192: 0 | P192: 0 | Q192: 1 | R192: 0 | S192: 0 | T192: 0 | U192: 0 | V192: 0 | W192: 0 | X192: 0 | Y192: 0 | Z192: 1900 | AA192: 0 | AC192: 0 | AD192: 0 | AE192: 0 | AF192: 0 | AG192: 0 | AH192: 0
A193: FALSE | B193: + - | J193: 0 | O193: 0 | P193: 0 | Q193: 1 | R193: 0 | S193: 0 | T193: 0 | U193: 0 | V193: 0 | W193: 0 | X193: 0 | Y193: 0 | Z193: 1900 | AA193: 0 | AC193: 0 | AD193: 0 | AE193: 0 | AF193: 0 | AG193: 0 | AH193: 0
A194: FALSE | B194: + - | J194: 0 | O194: 0 | P194: 0 | Q194: 1 | R194: 0 | S194: 0 | T194: 0 | U194: 0 | V194: 0 | W194: 0 | X194: 0 | Y194: 0 | Z194: 1900 | AA194: 0 | AC194: 0 | AD194: 0 | AE194: 0 | AF194: 0 | AG194: 0 | AH194: 0
A195: FALSE | B195: + - | J195: 0 | O195: 0 | P195: 0 | Q195: 1 | R195: 0 | S195: 0 | T195: 0 | U195: 0 | V195: 0 | W195: 0 | X195: 0 | Y195: 0 | Z195: 1900 | AA195: 0 | AC195: 0 | AD195: 0 | AE195: 0 | AF195: 0 | AG195: 0 | AH195: 0
A196: FALSE | B196: + - | J196: 0 | O196: 0 | P196: 0 | Q196: 1 | R196: 0 | S196: 0 | T196: 0 | U196: 0 | V196: 0 | W196: 0 | X196: 0 | Y196: 0 | Z196: 1900 | AA196: 0 | AC196: 0 | AD196: 0 | AE196: 0 | AF196: 0 | AG196: 0 | AH196: 0
A197: FALSE | B197: + - | J197: 0 | O197: 0 | P197: 0 | Q197: 1 | R197: 0 | S197: 0 | T197: 0 | U197: 0 | V197: 0 | W197: 0 | X197: 0 | Y197: 0 | Z197: 1900 | AA197: 0 | AC197: 0 | AD197: 0 | AE197: 0 | AF197: 0 | AG197: 0 | AH197: 0
A198: FALSE | B198: + - | J198: 0 | O198: 0 | P198: 0 | Q198: 1 | R198: 0 | S198: 0 | T198: 0 | U198: 0 | V198: 0 | W198: 0 | X198: 0 | Y198: 0 | Z198: 1900 | AA198: 0 | AC198: 0 | AD198: 0 | AE198: 0 | AF198: 0 | AG198: 0 | AH198: 0
A199: FALSE | B199: + - | J199: 0 | O199: 0 | P199: 0 | Q199: 1 | R199: 0 | S199: 0 | T199: 0 | U199: 0 | V199: 0 | W199: 0 | X199: 0 | Y199: 0 | Z199: 1900 | AA199: 0 | AC199: 0 | AD199: 0 | AE199: 0 | AF199: 0 | AG199: 0 | AH199: 0
A200: FALSE | P200: 0 | Q200: 1 | R200: 0 | S200: 0 | U200: 0 | V200: 0
... 8 more rows

Sheet Schulden
A1: FALSE | B1: Ende
A2: FALSE | B2: Schulden
A3: FALSE | B3: Ende
A4: TRUE
A5: TRUE | C5: =CONCATENATE("Nachweis über den Schuldenstand Abwasserentsorgung per "&TEXT(wST.PeriodeEnde,"T. MMMM JJJJ")&" KLR-Ebene: "&wST.KLR_Ebene) -> Nachweis über den Schuldenstand Abwasserentsorgung per 31. Dezember 2024 KLR-Ebene:
A6: TRUE
A7: TRUE | C7: Konto | D7: Ansatz | E7: Bezeichnung / Zweck / Darlehensgeber / Darlehensnummer | F7: Laufzeitende (TT.MM.JJJJ) | G7: Darlehensbetrag bei Aufnahme | H7: ="Schuldenstand per "&TEXT(wST.PeriodeAnfang-1,"T.M.JJJJ") -> Schuldenstand per 31.12.2023 | I7: ="Zugänge im Jahr "&TEXT(wST.PeriodeAnfang,"JJJJ") -> Zugänge im Jahr 2024 | J7: ="Abgänge im Jahr "&TEXT(wST.PeriodeAnfang,"JJJJ") -> Abgänge im Jahr 2024 | K7: Kostenstelle für KLR | L7: Kontrolle Kosten-stelle | M7: ="Schuldenstand per "&TEXT(wST.PeriodeEnde,"T.M.JJJJ") -> Schuldenstand per 31.12.2024 | Q7: Zuordnung Anlagen-zusammenfassung | R7: Veränderung Tilgung (+) / Aufnahme (-) | U7: Schuldenstand
A8: TRUE | R8: Kanal | S8: Kläranlage | T8: Verwaltung | U8: Kanal | V8: Kläranlage | W8: Verwaltung
A9: =OR(A10,A15,A20,A25,A30,A35,A40,A58,A62,A68) -> FALSE | C9: 31 | D9: LEASING | G9: =SUM(G10,G15) -> 0 | H9: =SUM(H10,H15) -> 0 | I9: =SUM(I10,I15) -> 0 | J9: =SUM(J10,J15) -> 0 | M9: =SUM(M10,M15) -> 0
A10: =OR(A11:A14) -> FALSE | C10: 310 | D10: Verbindlichkeiten aus Finanzierungsleasing | G10: =SUMPRODUCT(G11:G14,$N11:$N14) -> 0 | H10: =SUMPRODUCT(H11:H14,$N11:$N14) -> 0 | I10: =SUMPRODUCT(I11:I14,$N11:$N14) -> 0 | J10: =SUMPRODUCT(J11:J14,$N11:$N14) -> 0 | M10: =SUM(H10,I10,-J10) -> 0
A11: =N11>0 -> FALSE | B11: + - | H11: 0 | L11: =IF(AND(K11="",D11=""),"",IF(AND(D11<>"",K11=""),"Keine Zuordnung",IF(OR(K11=$R$8,K11=$S$8,K11=$T$8),"OK","Falsche Kostenstelle"))) ->  | M11: 0 | N11: =IF(D11=0,0,IF(VALUE(LEFT(D11,3))=wST.Ansatz,1,0)) -> 0 | O11: =IF(D11=0,0,VALUE(LEFT(D11,3))) -> 0 | R11: =IF($K11=R$8,$J11-$I11,) -> 0 | S11: 0 | T11: 0 | U11: =IF($K11=U$8,$M11,) -> 0 | V11: 0 | W11: 0
A12: =N12>0 -> FALSE | B12: + - | H12: 0 | L12: =IF(AND(K12="",D12=""),"",IF(AND(D12<>"",K12=""),"Keine Zuordnung",IF(OR(K12=$R$8,K12=$S$8,K12=$T$8),"OK","Falsche Kostenstelle"))) ->  | M12: =SUM(H12,I12,-J12) -> 0 | N12: =IF(D12=0,0,IF(VALUE(LEFT(D12,3))=wST.Ansatz,1,0)) -> 0 | O12: =IF(D12=0,0,VALUE(LEFT(D12,3))) -> 0 | R12: =IF($K12=R$8,$J12-$I12,) -> 0 | S12: =IF($K12=S$8,$J12-$I12,) -> 0 | T12: =IF($K12=T$8,$J12-$I12,) -> 0 | U12: =IF($K12=U$8,$M12,) -> 0 | V12: =IF($K12=V$8,$M12,) -> 0 | W12: =IF($K12=W$8,$M12,) -> 0
A13: =N13>0 -> FALSE | B13: + - | H13: 0 | L13: =IF(AND(K13="",D13=""),"",IF(AND(D13<>"",K13=""),"Keine Zuordnung",IF(OR(K13=$R$8,K13=$S$8,K13=$T$8),"OK","Falsche Kostenstelle"))) ->  | M13: =SUM(H13,I13,-J13) -> 0 | N13: =IF(D13=0,0,IF(VALUE(LEFT(D13,3))=wST.Ansatz,1,0)) -> 0 | O13: =IF(D13=0,0,VALUE(LEFT(D13,3))) -> 0 | R13: 0 | S13: 0 | T13: 0 | U13: 0 | V13: 0 | W13: 0
A14: =N14>0 -> FALSE
A15: =OR(A16:A19) -> FALSE | C15: 311 | D15: Forderungskauf (Schuldeinlösung) | G15: =SUMPRODUCT(G16:G19,$N16:$N19) -> 0 | H15: =SUMPRODUCT(H16:H19,$N16:$N19) -> 0 | I15: =SUMPRODUCT(I16:I19,$N16:$N19) -> 0 | J15: =SUMPRODUCT(J16:J19,$N16:$N19) -> 0 | M15: 0
A16: =N16>0 -> FALSE | B16: + - | H16: 0 | L16: =IF(AND(K16="",D16=""),"",IF(AND(D16<>"",K16=""),"Keine Zuordnung",IF(OR(K16=$R$8,K16=$S$8,K16=$T$8),"OK","Falsche Kostenstelle"))) ->  | M16: 0 | N16: =IF(D16=0,0,IF(VALUE(LEFT(D16,3))=wST.Ansatz,1,0)) -> 0 | O16: =IF(D16=0,0,VALUE(LEFT(D16,3))) -> 0 | R16: =IF($K16=R$8,$J16-$I16,) -> 0 | S16: 0 | T16: 0 | U16: =IF($K16=U$8,$M16,) -> 0 | V16: 0 | W16: 0
A17: =N17>0 -> FALSE | B17: + - | H17: 0 | L17: =IF(AND(K17="",D17=""),"",IF(AND(D17<>"",K17=""),"Keine Zuordnung",IF(OR(K17=$R$8,K17=$S$8,K17=$T$8),"OK","Falsche Kostenstelle"))) ->  | M17: =SUM(H17,I17,-J17) -> 0 | N17: =IF(D17=0,0,IF(VALUE(LEFT(D17,3))=wST.Ansatz,1,0)) -> 0 | O17: =IF(D17=0,0,VALUE(LEFT(D17,3))) -> 0 | R17: 0 | S17: 0 | T17: 0 | U17: 0 | V17: 0 | W17: 0
A18: FALSE | B18: + - | H18: 0 | L18: =IF(AND(K18="",D18=""),"",IF(AND(D18<>"",K18=""),"Keine Zuordnung",IF(OR(K18=$R$8,K18=$S$8,K18=$T$8),"OK","Falsche Kostenstelle"))) ->  | M18: 0 | N18: 0 | O18: 0 | R18: 0 | S18: 0 | T18: 0 | U18: 0 | V18: 0 | W18: 0
A19: =N19>0 -> FALSE
A20: =OR(A21,A26,A31,A36,A41,A46,A51,A69,A74,A79) -> FALSE | C20: 34 | D20: INVESTITIONSDARLEHEN | G20: =SUM(G21,G26,G31,G36,G41,G46,G51,G69,G74,G79) -> 0 | H20: =SUM(H21,H26,H31,H36,H41,H46,H51,H69,H74,H79) -> 0 | I20: =SUM(I21,I26,I31,I36,I41,I46,I51,I69,I74,I79) -> 0 | J20: =SUM(J21,J26,J31,J36,J41,J46,J51,J69,J74,J79) -> 0 | M20: =SUM(M21,M26,M31,M36,M41,M46,M51,M69,M74,M79) -> 0
A21: =OR(A22:A25) -> FALSE | C21: 340 | D21: Investitionsdarlehen von Bund, Bundesfonds und Bundeskammern | G21: =SUMPRODUCT(G22:G25,$N22:$N25) -> 0 | H21: =SUMPRODUCT(H22:H25,$N22:$N25) -> 0 | I21: =SUMPRODUCT(I22:I25,$N22:$N25) -> 0 | J21: =SUMPRODUCT(J22:J25,$N22:$N25) -> 0 | M21: =SUM(H21,I21,-J21) -> 0
A22: =N22>0 -> FALSE | B22: + - | H22: 0 | L22: =IF(AND(K22="",D22=""),"",IF(AND(D22<>"",K22=""),"Keine Zuordnung",IF(OR(K22=$R$8,K22=$S$8,K22=$T$8),"OK","Falsche Kostenstelle"))) ->  | M22: 0 | N22: =IF(D22=0,0,IF(VALUE(LEFT(D22,3))=wST.Ansatz,1,0)) -> 0 | O22: =IF(D22=0,0,VALUE(LEFT(D22,3))) -> 0 | R22: =IF($K22=R$8,$J22-$I22,) -> 0 | S22: 0 | T22: 0 | U22: =IF($K22=U$8,$M22,) -> 0 | V22: 0 | W22: 0
A23: =N23>0 -> FALSE | B23: + - | H23: 0 | L23: =IF(AND(K23="",D23=""),"",IF(AND(D23<>"",K23=""),"Keine Zuordnung",IF(OR(K23=$R$8,K23=$S$8,K23=$T$8),"OK","Falsche Kostenstelle"))) ->  | M23: 0 | N23: =IF(D23=0,0,IF(VALUE(LEFT(D23,3))=wST.Ansatz,1,0)) -> 0 | O23: =IF(D23=0,0,VALUE(LEFT(D23,3))) -> 0 | R23: 0 | S23: 0 | T23: 0 | U23: 0 | V23: 0 | W23: 0
A24: =N24>0 -> FALSE | B24: + - | H24: 0 | L24: =IF(AND(K24="",D24=""),"",IF(AND(D24<>"",K24=""),"Keine Zuordnung",IF(OR(K24=$R$8,K24=$S$8,K24=$T$8),"OK","Falsche Kostenstelle"))) ->  | M24: =SUM(H24,I24,-J24) -> 0 | N24: =IF(D24=0,0,IF(VALUE(LEFT(D24,3))=wST.Ansatz,1,0)) -> 0 | O24: =IF(D24=0,0,VALUE(LEFT(D24,3))) -> 0 | R24: 0 | S24: 0 | T24: 0 | U24: 0 | V24: 0 | W24: 0
A25: =N25>0 -> FALSE
A26: =OR(A27:A30) -> FALSE | C26: 341 | D26: Investitionsdarlehen von Ländern, Landesfonds und Landeskammern | G26: =SUMPRODUCT(G27:G30,$N27:$N30) -> 0 | H26: =SUMPRODUCT(H27:H30,$N27:$N30) -> 0 | I26: =SUMPRODUCT(I27:I30,$N27:$N30) -> 0 | J26: =SUMPRODUCT(J27:J30,$N27:$N30) -> 0 | M26: 0
A27: =N27>0 -> FALSE | B27: + - | H27: 0 | L27: =IF(AND(K27="",D27=""),"",IF(AND(D27<>"",K27=""),"Keine Zuordnung",IF(OR(K27=$R$8,K27=$S$8,K27=$T$8),"OK","Falsche Kostenstelle"))) ->  | M27: 0 | N27: =IF(D27=0,0,IF(VALUE(LEFT(D27,3))=wST.Ansatz,1,0)) -> 0 | O27: =IF(D27=0,0,VALUE(LEFT(D27,3))) -> 0 | R27: =IF($K27=R$8,$J27-$I27,) -> 0 | S27: 0 | T27: 0 | U27: =IF($K27=U$8,$M27,) -> 0 | V27: 0 | W27: 0
A28: FALSE | B28: + - | H28: 0 | L28: =IF(AND(K28="",D28=""),"",IF(AND(D28<>"",K28=""),"Keine Zuordnung",IF(OR(K28=$R$8,K28=$S$8,K28=$T$8),"OK","Falsche Kostenstelle"))) ->  | M28: 0 | N28: 0 | O28: 0 | R28: 0 | S28: 0 | T28: 0 | U28: 0 | V28: 0 | W28: 0
A29: =N29>0 -> FALSE | B29: + - | H29: 0 | L29: =IF(AND(K29="",D29=""),"",IF(AND(D29<>"",K29=""),"Keine Zuordnung",IF(OR(K29=$R$8,K29=$S$8,K29=$T$8),"OK","Falsche Kostenstelle"))) ->  | M29: =SUM(H29,I29,-J29) -> 0 | N29: =IF(D29=0,0,IF(VALUE(LEFT(D29,3))=wST.Ansatz,1,0)) -> 0 | O29: =IF(D29=0,0,VALUE(LEFT(D29,3))) -> 0 | R29: 0 | S29: 0 | T29: 0 | U29: 0 | V29: 0 | W29: 0
A30: =N30>0 -> FALSE
A31: =OR(A32:A35) -> FALSE | C31: 342 | D31: Investitionsdarlehen v. Gemeinden, Gdeverb. (o. marktb. Tätigk.) und Gdefonds | G31: =SUMPRODUCT(G32:G35,$N32:$N35) -> 0 | H31: =SUMPRODUCT(H32:H35,$N32:$N35) -> 0 | I31: =SUMPRODUCT(I32:I35,$N32:$N35) -> 0 | J31: =SUMPRODUCT(J32:J35,$N32:$N35) -> 0 | M31: 0
A32: =N32>0 -> FALSE | B32: + - | H32: 0 | L32: =IF(AND(K32="",D32=""),"",IF(AND(D32<>"",K32=""),"Keine Zuordnung",IF(OR(K32=$R$8,K32=$S$8,K32=$T$8),"OK","Falsche Kostenstelle"))) ->  | M32: 0 | N32: =IF(D32=0,0,IF(VALUE(LEFT(D32,3))=wST.Ansatz,1,0)) -> 0 | O32: =IF(D32=0,0,VALUE(LEFT(D32,3))) -> 0 | R32: =IF($K32=R$8,$J32-$I32,) -> 0 | S32: 0 | T32: 0 | U32: =IF($K32=U$8,$M32,) -> 0 | V32: 0 | W32: 0
A33: =N33>0 -> FALSE | B33: + - | H33: 0 | L33: =IF(AND(K33="",D33=""),"",IF(AND(D33<>"",K33=""),"Keine Zuordnung",IF(OR(K33=$R$8,K33=$S$8,K33=$T$8),"OK","Falsche Kostenstelle"))) ->  | M33: 0 | N33: =IF(D33=0,0,IF(VALUE(LEFT(D33,3))=wST.Ansatz,1,0)) -> 0 | O33: =IF(D33=0,0,VALUE(LEFT(D33,3))) -> 0 | R33: 0 | S33: 0 | T33: 0 | U33: 0 | V33: 0 | W33: 0
A34: =N34>0 -> FALSE | B34: + - | H34: 0 | L34: =IF(AND(K34="",D34=""),"",IF(AND(D34<>"",K34=""),"Keine Zuordnung",IF(OR(K34=$R$8,K34=$S$8,K34=$T$8),"OK","Falsche Kostenstelle"))) ->  | M34: =SUM(H34,I34,-J34) -> 0 | N34: =IF(D34=0,0,IF(VALUE(LEFT(D34,3))=wST.Ansatz,1,0)) -> 0 | O34: =IF(D34=0,0,VALUE(LEFT(D34,3))) -> 0 | R34: 0 | S34: 0 | T34: 0 | U34: 0 | V34: 0 | W34: 0
A35: =N35>0 -> FALSE
A36: =OR(A37:A40) -> FALSE | C36: 343 | D36: Investitionsdarlehen von Sozialversicherungsträgern | G36: =SUMPRODUCT(G37:G40,$N37:$N40) -> 0 | H36: =SUMPRODUCT(H37:H40,$N37:$N40) -> 0 | I36: =SUMPRODUCT(I37:I40,$N37:$N40) -> 0 | J36: =SUMPRODUCT(J37:J40,$N37:$N40) -> 0 | M36: 0
A37: =N37>0 -> FALSE | B37: + - | H37: 0 | L37: =IF(AND(K37="",D37=""),"",IF(AND(D37<>"",K37=""),"Keine Zuordnung",IF(OR(K37=$R$8,K37=$S$8,K37=$T$8),"OK","Falsche Kostenstelle"))) ->  | M37: 0 | N37: =IF(D37=0,0,IF(VALUE(LEFT(D37,3))=wST.Ansatz,1,0)) -> 0 | O37: =IF(D37=0,0,VALUE(LEFT(D37,3))) -> 0 | R37: =IF($K37=R$8,$J37-$I37,) -> 0 | S37: 0 | T37: 0 | U37: =IF($K37=U$8,$M37,) -> 0 | V37: 0 | W37: 0
A38: =N38>0 -> FALSE | B38: + - | H38: 0 | L38: =IF(AND(K38="",D38=""),"",IF(AND(D38<>"",K38=""),"Keine Zuordnung",IF(OR(K38=$R$8,K38=$S$8,K38=$T$8),"OK","Falsche Kostenstelle"))) ->  | M38: 0 | N38: =IF(D38=0,0,IF(VALUE(LEFT(D38,3))=wST.Ansatz,1,0)) -> 0 | O38: =IF(D38=0,0,VALUE(LEFT(D38,3))) -> 0 | R38: 0 | S38: 0 | T38: 0 | U38: 0 | V38: 0 | W38: 0
A39: =N39>0 -> FALSE | B39: + - | H39: 0 | L39: =IF(AND(K39="",D39=""),"",IF(AND(D39<>"",K39=""),"Keine Zuordnung",IF(OR(K39=$R$8,K39=$S$8,K39=$T$8),"OK","Falsche Kostenstelle"))) ->  | M39: =SUM(H39,I39,-J39) -> 0 | N39: =IF(D39=0,0,IF(VALUE(LEFT(D39,3))=wST.Ansatz,1,0)) -> 0 | O39: =IF(D39=0,0,VALUE(LEFT(D39,3))) -> 0 | R39: 0 | S39: 0 | T39: 0 | U39: 0 | V39: 0 | W39: 0
A40: =N40>0 -> FALSE
A41: =OR(A42:A45) -> FALSE | C41: 344 | D41: Investitionsdarlehen von sonstigen Trägern des öffentlichen Rechtes | G41: =SUMPRODUCT(G42:G45,$N42:$N45) -> 0 | H41: =SUMPRODUCT(H42:H45,$N42:$N45) -> 0 | I41: =SUMPRODUCT(I42:I45,$N42:$N45) -> 0 | J41: =SUMPRODUCT(J42:J45,$N42:$N45) -> 0 | M41: 0
A42: =N42>0 -> FALSE | B42: + - | H42: 0 | L42: =IF(AND(K42="",D42=""),"",IF(AND(D42<>"",K42=""),"Keine Zuordnung",IF(OR(K42=$R$8,K42=$S$8,K42=$T$8),"OK","Falsche Kostenstelle"))) ->  | M42: 0 | N42: =IF(D42=0,0,IF(VALUE(LEFT(D42,3))=wST.Ansatz,1,0)) -> 0 | O42: =IF(D42=0,0,VALUE(LEFT(D42,3))) -> 0 | R42: =IF($K42=R$8,$J42-$I42,) -> 0 | S42: 0 | T42: 0 | U42: =IF($K42=U$8,$M42,) -> 0 | V42: 0 | W42: 0
A43: =N43>0 -> FALSE | B43: + - | H43: 0 | L43: =IF(AND(K43="",D43=""),"",IF(AND(D43<>"",K43=""),"Keine Zuordnung",IF(OR(K43=$R$8,K43=$S$8,K43=$T$8),"OK","Falsche Kostenstelle"))) ->  | M43: 0 | N43: =IF(D43=0,0,IF(VALUE(LEFT(D43,3))=wST.Ansatz,1,0)) -> 0 | O43: =IF(D43=0,0,VALUE(LEFT(D43,3))) -> 0 | R43: 0 | S43: 0 | T43: 0 | U43: 0 | V43: 0 | W43: 0
A44: =N44>0 -> FALSE | B44: + - | H44: 0 | L44: =IF(AND(K44="",D44=""),"",IF(AND(D44<>"",K44=""),"Keine Zuordnung",IF(OR(K44=$R$8,K44=$S$8,K44=$T$8),"OK","Falsche Kostenstelle"))) ->  | M44: =SUM(H44,I44,-J44) -> 0 | N44: =IF(D44=0,0,IF(VALUE(LEFT(D44,3))=wST.Ansatz,1,0)) -> 0 | O44: =IF(D44=0,0,VALUE(LEFT(D44,3))) -> 0 | R44: 0 | S44: 0 | T44: 0 | U44: 0 | V44: 0 | W44: 0
A45: =N45>0 -> FALSE
A46: =OR(A47:A50) -> FALSE | C46: 345 | D46: Investitionsdarlehen von Beteiligungen | G46: =SUMPRODUCT(G47:G50,$N47:$N50) -> 0 | H46: =SUMPRODUCT(H47:H50,$N47:$N50) -> 0 | I46: =SUMPRODUCT(I47:I50,$N47:$N50) -> 0 | J46: =SUMPRODUCT(J47:J50,$N47:$N50) -> 0 | M46: 0
A47: =N47>0 -> FALSE | B47: + - | H47: 0 | L47: =IF(AND(K47="",D47=""),"",IF(AND(D47<>"",K47=""),"Keine Zuordnung",IF(OR(K47=$R$8,K47=$S$8,K47=$T$8),"OK","Falsche Kostenstelle"))) ->  | M47: 0 | N47: =IF(D47=0,0,IF(VALUE(LEFT(D47,3))=wST.Ansatz,1,0)) -> 0 | O47: =IF(D47=0,0,VALUE(LEFT(D47,3))) -> 0 | R47: =IF($K47=R$8,$J47-$I47,) -> 0 | S47: 0 | T47: 0 | U47: =IF($K47=U$8,$M47,) -> 0 | V47: 0 | W47: 0
A48: =N48>0 -> FALSE | B48: + - | H48: 0 | L48: =IF(AND(K48="",D48=""),"",IF(AND(D48<>"",K48=""),"Keine Zuordnung",IF(OR(K48=$R$8,K48=$S$8,K48=$T$8),"OK","Falsche Kostenstelle"))) ->  | M48: 0 | N48: =IF(D48=0,0,IF(VALUE(LEFT(D48,3))=wST.Ansatz,1,0)) -> 0 | O48: =IF(D48=0,0,VALUE(LEFT(D48,3))) -> 0 | R48: 0 | S48: 0 | T48: 0 | U48: 0 | V48: 0 | W48: 0
A49: =N49>0 -> FALSE | B49: + - | H49: 0 | L49: =IF(AND(K49="",D49=""),"",IF(AND(D49<>"",K49=""),"Keine Zuordnung",IF(OR(K49=$R$8,K49=$S$8,K49=$T$8),"OK","Falsche Kostenstelle"))) ->  | M49: =SUM(H49,I49,-J49) -> 0 | N49: =IF(D49=0,0,IF(VALUE(LEFT(D49,3))=wST.Ansatz,1,0)) -> 0 | O49: =IF(D49=0,0,VALUE(LEFT(D49,3))) -> 0 | R49: 0 | S49: 0 | T49: 0 | U49: 0 | V49: 0 | W49: 0
A50: =N50>0 -> FALSE
A51: =OR(A52:A68) -> FALSE | C51: 346 | D51: Investitionsdarlehen von Finanzunternehmen | G51: =SUMPRODUCT(G52:G68,$N52:$N68) -> 0 | H51: =SUMPRODUCT(H52:H68,$N52:$N68) -> 0 | I51: =SUMPRODUCT(I52:I68,$N52:$N68) -> 0 | J51: =SUMPRODUCT(J52:J68,$N52:$N68) -> 0 | M51: 0
A52: =N52>0 -> FALSE | B52: + - | H52: 0 | L52: =IF(AND(K52="",D52=""),"",IF(AND(D52<>"",K52=""),"Keine Zuordnung",IF(OR(K52=$R$8,K52=$S$8,K52=$T$8),"OK","Falsche Kostenstelle"))) ->  | M52: 0 | N52: =IF(D52=0,0,IF(VALUE(LEFT(D52,3))=wST.Ansatz,1,0)) -> 0 | O52: =IF(D52=0,0,VALUE(LEFT(D52,3))) -> 0 | R52: =IF($K52=R$8,$J52-$I52,) -> 0 | S52: 0 | T52: 0 | U52: =IF($K52=U$8,$M52,) -> 0 | V52: 0 | W52: 0
A53: FALSE | B53: + - | H53: 0 | M53: 0 | N53: 0 | O53: 0 | R53: 0 | S53: 0 | T53: 0 | U53: 0 | V53: 0 | W53: 0
A54: FALSE | B54: + - | H54: 0 | M54: 0 | N54: 0 | O54: 0 | R54: 0 | S54: 0 | T54: 0 | U54: 0 | V54: 0 | W54: 0
A55: FALSE | B55: + - | H55: 0 | M55: 0 | N55: 0 | O55: 0 | R55: 0 | S55: 0 | T55: 0 | U55: 0 | V55: 0 | W55: 0
A56: FALSE | B56: + - | H56: 0 | M56: 0 | N56: 0 | O56: 0 | R56: 0 | S56: 0 | T56: 0 | U56: 0 | V56: 0 | W56: 0
A57: FALSE | B57: + - | H57: 0 | M57: 0 | N57: 0 | O57: 0 | R57: 0 | S57: 0 | T57: 0 | U57: 0 | V57: 0 | W57: 0
A58: FALSE | B58: + - | H58: 0 | M58: 0 | N58: 0 | O58: 0 | R58: 0 | S58: 0 | T58: 0 | U58: 0 | V58: 0 | W58: 0
A59: FALSE | B59: + - | H59: 0 | M59: 0 | N59: 0 | O59: 0 | R59: 0 | S59: 0 | T59: 0 | U59: 0 | V59: 0 | W59: 0
A60: FALSE | B60: + - | H60: 0 | M60: 0 | N60: =IF(D60=0,0,IF(VALUE(LEFT(D60,3))=wST.Ansatz,1,0)) -> 0 | O60: 0 | R60: 0 | S60: 0 | T60: 0 | U60: 0 | V60: 0 | W60: 0
A61: FALSE | B61: + - | H61: 0 | M61: 0 | N61: 0 | O61: 0 | R61: 0 | S61: 0 | T61: 0 | U61: 0 | V61: 0 | W61: 0
A62: FALSE | B62: + - | H62: 0 | M62: 0 | N62: =IF(D62=0,0,IF(VALUE(LEFT(D62,3))=wST.Ansatz,1,0)) -> 0 | O62: 0 | R62: 0 | S62: 0 | T62: 0 | U62: 0 | V62: 0 | W62: 0
A63: FALSE | B63: + - | H63: 0 | M63: 0 | N63: =IF(D63=0,0,IF(VALUE(LEFT(D63,3))=wST.Ansatz,1,0)) -> 0 | O63: 0 | R63: 0 | S63: 0 | T63: 0 | U63: 0 | V63: 0 | W63: 0
A64: FALSE | B64: + - | H64: 0 | M64: 0 | N64: =IF(D64=0,0,IF(VALUE(LEFT(D64,3))=wST.Ansatz,1,0)) -> 0 | O64: 0 | R64: 0 | S64: 0 | T64: 0 | U64: 0 | V64: 0 | W64: 0
A65: FALSE | B65: + - | H65: 0 | M65: 0 | N65: =IF(D65=0,0,IF(VALUE(LEFT(D65,3))=wST.Ansatz,1,0)) -> 0 | O65: 0 | R65: 0 | S65: 0 | T65: 0 | U65: 0 | V65: 0 | W65: 0
A66: FALSE | B66: + - | H66: 0 | M66: 0 | N66: =IF(D66=0,0,IF(VALUE(LEFT(D66,3))=wST.Ansatz,1,0)) -> 0 | O66: 0 | R66: 0 | S66: 0 | T66: 0 | U66: 0 | V66: 0 | W66: 0
A67: =N67>0 -> FALSE | B67: + - | H67: 0 | L67: =IF(AND(K67="",D67=""),"",IF(AND(D67<>"",K67=""),"Keine Zuordnung",IF(OR(K67=$R$8,K67=$S$8,K67=$T$8),"OK","Falsche Kostenstelle"))) ->  | M67: =SUM(H67,I67,-J67) -> 0 | N67: =IF(D67=0,0,IF(VALUE(LEFT(D67,3))=wST.Ansatz,1,0)) -> 0 | O67: =IF(D67=0,0,VALUE(LEFT(D67,3))) -> 0 | R67: 0 | S67: 0 | T67: 0 | U67: 0 | V67: 0 | W67: 0
A68: =N68>0 -> FALSE
A69: =OR(A70:A73) -> FALSE | C69: 347 | D69: Investitionsdarlehen von Unternehmen (ohne Finanzunternehmen) und anderen | G69: =SUMPRODUCT(G70:G73,$N70:$N73) -> 0 | H69: =SUMPRODUCT(H70:H73,$N70:$N73) -> 0 | I69: =SUMPRODUCT(I70:I73,$N70:$N73) -> 0 | J69: =SUMPRODUCT(J70:J73,$N70:$N73) -> 0 | M69: 0
A70: =N70>0 -> FALSE | B70: + - | G70: 0 | H70: 0 | L70: =IF(AND(K70="",D70=""),"",IF(AND(D70<>"",K70=""),"Keine Zuordnung",IF(OR(K70=$R$8,K70=$S$8,K70=$T$8),"OK","Falsche Kostenstelle"))) ->  | M70: 0 | N70: =IF(D70=0,0,IF(VALUE(LEFT(D70,3))=wST.Ansatz,1,0)) -> 0 | O70: =IF(D70=0,0,VALUE(LEFT(D70,3))) -> 0 | R70: =IF($K70=R$8,$J70-$I70,) -> 0 | S70: 0 | T70: 0 | U70: =IF($K70=U$8,$M70,) -> 0 | V70: 0 | W70: 0
A71: =N71>0 -> FALSE | B71: + - | G71: 0 | H71: 0 | L71: =IF(AND(K71="",D71=""),"",IF(AND(D71<>"",K71=""),"Keine Zuordnung",IF(OR(K71=$R$8,K71=$S$8,K71=$T$8),"OK","Falsche Kostenstelle"))) ->  | M71: =SUM(H71,I71,-J71) -> 0 | N71: =IF(D71=0,0,IF(VALUE(LEFT(D71,3))=wST.Ansatz,1,0)) -> 0 | O71: =IF(D71=0,0,VALUE(LEFT(D71,3))) -> 0 | R71: 0 | S71: 0 | T71: 0 | U71: 0 | V71: 0 | W71: 0
A72: =N72>0 -> FALSE | B72: + - | G72: 0 | H72: 0 | L72: =IF(AND(K72="",D72=""),"",IF(AND(D72<>"",K72=""),"Keine Zuordnung",IF(OR(K72=$R$8,K72=$S$8,K72=$T$8),"OK","Falsche Kostenstelle"))) ->  | M72: =SUM(H72,I72,-J72) -> 0 | N72: =IF(D72=0,0,IF(VALUE(LEFT(D72,3))=wST.Ansatz,1,0)) -> 0 | O72: =IF(D72=0,0,VALUE(LEFT(D72,3))) -> 0 | R72: 0 | S72: 0 | T72: 0 | U72: 0 | V72: 0 | W72: 0
A73: =N73>0 -> FALSE
A74: =OR(A75:A78) -> FALSE | C74: 348 | D74: Auslandsanleihen für Investitionszwecke | G74: =SUMPRODUCT(G75:G78,$N75:$N78) -> 0 | H74: =SUMPRODUCT(H75:H78,$N75:$N78) -> 0 | I74: =SUMPRODUCT(I75:I78,$N75:$N78) -> 0 | J74: =SUMPRODUCT(J75:J78,$N75:$N78) -> 0 | M74: 0
A75: =N75>0 -> FALSE | B75: + - | G75: 0 | H75: 0 | L75: =IF(AND(K75="",D75=""),"",IF(AND(D75<>"",K75=""),"Keine Zuordnung",IF(OR(K75=$R$8,K75=$S$8,K75=$T$8),"OK","Falsche Kostenstelle"))) ->  | M75: 0 | N75: =IF(D75=0,0,IF(VALUE(LEFT(D75,3))=wST.Ansatz,1,0)) -> 0 | O75: =IF(D75=0,0,VALUE(LEFT(D75,3))) -> 0 | R75: =IF($K75=R$8,$J75-$I75,) -> 0 | S75: 0 | T75: 0 | U75: =IF($K75=U$8,$M75,) -> 0 | V75: 0 | W75: 0
A76: =N76>0 -> FALSE | B76: + - | G76: 0 | H76: 0 | L76: =IF(AND(K76="",D76=""),"",IF(AND(D76<>"",K76=""),"Keine Zuordnung",IF(OR(K76=$R$8,K76=$S$8,K76=$T$8),"OK","Falsche Kostenstelle"))) ->  | M76: 0 | N76: =IF(D76=0,0,IF(VALUE(LEFT(D76,3))=wST.Ansatz,1,0)) -> 0 | O76: =IF(D76=0,0,VALUE(LEFT(D76,3))) -> 0 | R76: 0 | S76: 0 | T76: 0 | U76: 0 | V76: 0 | W76: 0
A77: =N77>0 -> FALSE | B77: + - | G77: 0 | H77: 0 | L77: =IF(AND(K77="",D77=""),"",IF(AND(D77<>"",K77=""),"Keine Zuordnung",IF(OR(K77=$R$8,K77=$S$8,K77=$T$8),"OK","Falsche Kostenstelle"))) ->  | M77: =SUM(H77,I77,-J77) -> 0 | N77: =IF(D77=0,0,IF(VALUE(LEFT(D77,3))=wST.Ansatz,1,0)) -> 0 | O77: =IF(D77=0,0,VALUE(LEFT(D77,3))) -> 0 | R77: 0 | S77: 0 | T77: 0 | U77: 0 | V77: 0 | W77: 0
A78: =N78>0 -> FALSE
A79: =OR(A80:A83) -> FALSE | C79: 349 | D79: Inlandsanleihen für Investitionszwecke | G79: =SUMPRODUCT(G80:G83,$N80:$N83) -> 0 | H79: =SUMPRODUCT(H80:H83,$N80:$N83) -> 0 | I79: =SUMPRODUCT(I80:I83,$N80:$N83) -> 0 | J79: =SUMPRODUCT(J80:J83,$N80:$N83) -> 0 | M79: 0
A80: =N80>0 -> FALSE | B80: + - | G80: 0 | H80: 0 | L80: =IF(AND(K80="",D80=""),"",IF(AND(D80<>"",K80=""),"Keine Zuordnung",IF(OR(K80=$R$8,K80=$S$8,K80=$T$8),"OK","Falsche Kostenstelle"))) ->  | M80: 0 | N80: =IF(D80=0,0,IF(VALUE(LEFT(D80,3))=wST.Ansatz,1,0)) -> 0 | O80: =IF(D80=0,0,VALUE(LEFT(D80,3))) -> 0 | R80: =IF($K80=R$8,$J80-$I80,) -> 0 | S80: 0 | T80: 0 | U80: =IF($K80=U$8,$M80,) -> 0 | V80: 0 | W80: 0
A81: =N81>0 -> FALSE | B81: + - | G81: 0 | H81: 0 | L81: =IF(AND(K81="",D81=""),"",IF(AND(D81<>"",K81=""),"Keine Zuordnung",IF(OR(K81=$R$8,K81=$S$8,K81=$T$8),"OK","Falsche Kostenstelle"))) ->  | M81: 0 | N81: =IF(D81=0,0,IF(VALUE(LEFT(D81,3))=wST.Ansatz,1,0)) -> 0 | O81: =IF(D81=0,0,VALUE(LEFT(D81,3))) -> 0 | R81: 0 | S81: 0 | T81: 0 | U81: 0 | V81: 0 | W81: 0
A82: =N82>0 -> FALSE | B82: + - | G82: 0 | H82: 0 | L82: =IF(AND(K82="",D82=""),"",IF(AND(D82<>"",K82=""),"Keine Zuordnung",IF(OR(K82=$R$8,K82=$S$8,K82=$T$8),"OK","Falsche Kostenstelle"))) ->  | M82: =SUM(H82,I82,-J82) -> 0 | N82: =IF(D82=0,0,IF(VALUE(LEFT(D82,3))=wST.Ansatz,1,0)) -> 0 | O82: =IF(D82=0,0,VALUE(LEFT(D82,3))) -> 0 | R82: 0 | S82: 0 | T82: 0 | U82: 0 | V82: 0 | W82: 0
A83: =N83>0 -> FALSE
A84: =OR(A85,A90,A95,A100,A105,A110,A115,A120,A125,A130,) -> FALSE | C84: 35 | D84: AUFNAHME LANGFRISTIGER UND KURZFRISTIGER FINANZSCHULDEN | G84: =SUM(G85,G90,G95,G100,G105,G110,G115,G120,G125,G130) -> 0 | H84: =SUM(H85,H90,H95,H100,H105,H110,H115,H120,H125,H130) -> 0 | I84: =SUM(I85,I90,I95,I100,I105,I110,I115,I120,I125,I130) -> 0 | J84: =SUM(J85,J90,J95,J100,J105,J110,J115,J120,J125,J130) -> 0 | M84: =SUM(M85,M90,M95,M100,M105,M110,M115,M120,M125,M130) -> 0
A85: =OR(A86:A89) -> FALSE | C85: 350 | D85: Finanzschulden in Euro gegenüber Bund, Bundesfonds und Bundeskammern | G85: =SUMPRODUCT(G86:G89,$N86:$N89) -> 0 | H85: =SUMPRODUCT(H86:H89,$N86:$N89) -> 0 | I85: =SUMPRODUCT(I86:I89,$N86:$N89) -> 0 | J85: =SUMPRODUCT(J86:J89,$N86:$N89) -> 0 | M85: =SUM(H85,I85,-J85) -> 0
A86: =N86>0 -> FALSE | B86: + - | G86: 0 | H86: 0 | M86: 0 | N86: =IF(D86=0,0,IF(VALUE(LEFT(D86,3))=wST.Ansatz,1,0)) -> 0 | O86: =IF(D86=0,0,VALUE(LEFT(D86,3))) -> 0
A87: =N87>0 -> FALSE | B87: + - | G87: 0 | H87: 0 | M87: 0 | N87: =IF(D87=0,0,IF(VALUE(LEFT(D87,3))=wST.Ansatz,1,0)) -> 0 | O87: =IF(D87=0,0,VALUE(LEFT(D87,3))) -> 0
A88: =N88>0 -> FALSE | B88: + - | G88: 0 | H88: 0 | M88: =SUM(H88,I88,-J88) -> 0 | N88: =IF(D88=0,0,IF(VALUE(LEFT(D88,3))=wST.Ansatz,1,0)) -> 0 | O88: =IF(D88=0,0,VALUE(LEFT(D88,3))) -> 0
A89: =N89>0 -> FALSE
A90: =OR(A91:A94) -> FALSE | C90: 351 | D90: Finanzschulden in Euro gegenüber Ländern, Landesfonds und Landeskammern | G90: =SUMPRODUCT(G91:G94,$N91:$N94) -> 0 | H90: =SUMPRODUCT(H91:H94,$N91:$N94) -> 0 | I90: =SUMPRODUCT(I91:I94,$N91:$N94) -> 0 | J90: =SUMPRODUCT(J91:J94,$N91:$N94) -> 0 | M90: 0
A91: =N91>0 -> FALSE | B91: + - | G91: 0 | H91: 0 | M91: 0 | N91: =IF(D91=0,0,IF(VALUE(LEFT(D91,3))=wST.Ansatz,1,0)) -> 0 | O91: =IF(D91=0,0,VALUE(LEFT(D91,3))) -> 0
A92: =N92>0 -> FALSE | B92: + - | G92: 0 | H92: 0 | M92: 0 | N92: =IF(D92=0,0,IF(VALUE(LEFT(D92,3))=wST.Ansatz,1,0)) -> 0 | O92: =IF(D92=0,0,VALUE(LEFT(D92,3))) -> 0
A93: =N93>0 -> FALSE | B93: + - | G93: 0 | H93: 0 | M93: =SUM(H93,I93,-J93) -> 0 | N93: =IF(D93=0,0,IF(VALUE(LEFT(D93,3))=wST.Ansatz,1,0)) -> 0 | O93: =IF(D93=0,0,VALUE(LEFT(D93,3))) -> 0
A94: =N94>0 -> FALSE
A95: =OR(A96:A99) -> FALSE | C95: 352 | D95: Finanzschulden in Euro geg. Gde, Gdeverb. (o. marktb. Tät.) u. Gdefonds inkl. innerer Darlehen | G95: =SUMPRODUCT(G96:G99,$N96:$N99) -> 0 | H95: =SUMPRODUCT(H96:H99,$N96:$N99) -> 0 | I95: =SUMPRODUCT(I96:I99,$N96:$N99) -> 0 | J95: =SUMPRODUCT(J96:J99,$N96:$N99) -> 0 | M95: 0
A96: =N96>0 -> FALSE | B96: + - | G96: 0 | H96: 0 | M96: 0 | N96: =IF(D96=0,0,IF(VALUE(LEFT(D96,3))=wST.Ansatz,1,0)) -> 0 | O96: =IF(D96=0,0,VALUE(LEFT(D96,3))) -> 0
A97: =N97>0 -> FALSE | B97: + - | G97: 0 | H97: 0 | M97: 0 | N97: =IF(D97=0,0,IF(VALUE(LEFT(D97,3))=wST.Ansatz,1,0)) -> 0 | O97: =IF(D97=0,0,VALUE(LEFT(D97,3))) -> 0
A98: =N98>0 -> FALSE | B98: + - | G98: 0 | H98: 0 | M98: =SUM(H98,I98,-J98) -> 0 | N98: =IF(D98=0,0,IF(VALUE(LEFT(D98,3))=wST.Ansatz,1,0)) -> 0 | O98: =IF(D98=0,0,VALUE(LEFT(D98,3))) -> 0
A99: =N99>0 -> FALSE
A100: =OR(A101:A104) -> FALSE | C100: 353 | D100: Finanzschulden in Euro gegenüber Sozialversicherungsträgern | G100: =SUMPRODUCT(G101:G104,$N101:$N104) -> 0 | H100: =SUMPRODUCT(H101:H104,$N101:$N104) -> 0 | I100: =SUMPRODUCT(I101:I104,$N101:$N104) -> 0 | J100: =SUMPRODUCT(J101:J104,$N101:$N104) -> 0 | M100: 0
A101: =N101>0 -> FALSE | B101: + - | G101: 0 | H101: 0 | M101: 0 | N101: =IF(D101=0,0,IF(VALUE(LEFT(D101,3))=wST.Ansatz,1,0)) -> 0 | O101: =IF(D101=0,0,VALUE(LEFT(D101,3))) -> 0
A102: =N102>0 -> FALSE | B102: + - | G102: 0 | H102: 0 | M102: 0 | N102: =IF(D102=0,0,IF(VALUE(LEFT(D102,3))=wST.Ansatz,1,0)) -> 0 | O102: =IF(D102=0,0,VALUE(LEFT(D102,3))) -> 0
A103: =N103>0 -> FALSE | B103: + - | G103: 0 | H103: 0 | M103: =SUM(H103,I103,-J103) -> 0 | N103: =IF(D103=0,0,IF(VALUE(LEFT(D103,3))=wST.Ansatz,1,0)) -> 0 | O103: =IF(D103=0,0,VALUE(LEFT(D103,3))) -> 0
A104: =N104>0 -> FALSE
A105: =OR(A106:A109) -> FALSE | C105: 354 | D105: Finanzschulden in Euro gegenüber sonst. Trägern des öffentlichen Rechtes | G105: =SUMPRODUCT(G106:G109,$N106:$N109) -> 0 | H105: =SUMPRODUCT(H106:H109,$N106:$N109) -> 0 | I105: =SUMPRODUCT(I106:I109,$N106:$N109) -> 0 | J105: =SUMPRODUCT(J106:J109,$N106:$N109) -> 0 | M105: 0
A106: =N106>0 -> FALSE | B106: + - | G106: 0 | H106: 0 | M106: 0 | N106: =IF(D106=0,0,IF(VALUE(LEFT(D106,3))=wST.Ansatz,1,0)) -> 0 | O106: =IF(D106=0,0,VALUE(LEFT(D106,3))) -> 0
A107: =N107>0 -> FALSE | B107: + - | G107: 0 | H107: 0 | M107: 0 | N107: =IF(D107=0,0,IF(VALUE(LEFT(D107,3))=wST.Ansatz,1,0)) -> 0 | O107: =IF(D107=0,0,VALUE(LEFT(D107,3))) -> 0
A108: =N108>0 -> FALSE | B108: + - | G108: 0 | H108: 0 | M108: =SUM(H108,I108,-J108) -> 0 | N108: =IF(D108=0,0,IF(VALUE(LEFT(D108,3))=wST.Ansatz,1,0)) -> 0 | O108: =IF(D108=0,0,VALUE(LEFT(D108,3))) -> 0
A109: =N109>0 -> FALSE
A110: =OR(A111:A114) -> FALSE | C110: 355 | D110: Finanzschulden in Euro gegenüber Beteiligungen | G110: =SUMPRODUCT(G111:G114,$N111:$N114) -> 0 | H110: =SUMPRODUCT(H111:H114,$N111:$N114) -> 0 | I110: =SUMPRODUCT(I111:I114,$N111:$N114) -> 0 | J110: =SUMPRODUCT(J111:J114,$N111:$N114) -> 0 | M110: 0
A111: =N111>0 -> FALSE | B111: + - | G111: 0 | H111: 0 | M111: 0 | N111: =IF(D111=0,0,IF(VALUE(LEFT(D111,3))=wST.Ansatz,1,0)) -> 0 | O111: =IF(D111=0,0,VALUE(LEFT(D111,3))) -> 0
A112: =N112>0 -> FALSE | B112: + - | G112: 0 | H112: 0 | M112: 0 | N112: =IF(D112=0,0,IF(VALUE(LEFT(D112,3))=wST.Ansatz,1,0)) -> 0 | O112: =IF(D112=0,0,VALUE(LEFT(D112,3))) -> 0
A113: =N113>0 -> FALSE | B113: + - | G113: 0 | H113: 0 | M113: =SUM(H113,I113,-J113) -> 0 | N113: =IF(D113=0,0,IF(VALUE(LEFT(D113,3))=wST.Ansatz,1,0)) -> 0 | O113: =IF(D113=0,0,VALUE(LEFT(D113,3))) -> 0
A114: =N114>0 -> FALSE
A115: =OR(A116:A119) -> FALSE | C115: 356 | D115: Finanzschulden in Euro gegenüber Finanzunternehmen | G115: =SUMPRODUCT(G116:G119,$N116:$N119) -> 0 | H115: =SUMPRODUCT(H116:H119,$N116:$N119) -> 0 | I115: =SUMPRODUCT(I116:I119,$N116:$N119) -> 0 | J115: =SUMPRODUCT(J116:J119,$N116:$N119) -> 0 | M115: 0
A116: =N116>0 -> FALSE | B116: + - | G116: 0 | H116: 0 | M116: 0 | N116: =IF(D116=0,0,IF(VALUE(LEFT(D116,3))=wST.Ansatz,1,0)) -> 0 | O116: =IF(D116=0,0,VALUE(LEFT(D116,3))) -> 0
A117: =N117>0 -> FALSE | B117: + - | G117: 0 | H117: 0 | M117: 0 | N117: =IF(D117=0,0,IF(VALUE(LEFT(D117,3))=wST.Ansatz,1,0)) -> 0 | O117: =IF(D117=0,0,VALUE(LEFT(D117,3))) -> 0
A118: =N118>0 -> FALSE | B118: + - | G118: 0 | H118: 0 | M118: =SUM(H118,I118,-J118) -> 0 | N118: =IF(D118=0,0,IF(VALUE(LEFT(D118,3))=wST.Ansatz,1,0)) -> 0 | O118: =IF(D118=0,0,VALUE(LEFT(D118,3))) -> 0
A119: =N119>0 -> FALSE
A120: =OR(A121:A124) -> FALSE | C120: 357 | D120: Finanzschulden in Euro gegenüber Unternehmen (ohne Finanzunternehmen) und anderen | G120: =SUMPRODUCT(G121:G124,$N121:$N124) -> 0 | H120: =SUMPRODUCT(H121:H124,$N121:$N124) -> 0 | I120: =SUMPRODUCT(I121:I124,$N121:$N124) -> 0 | J120: =SUMPRODUCT(J121:J124,$N121:$N124) -> 0 | M120: 0
A121: =N121>0 -> FALSE | B121: + - | G121: 0 | H121: 0 | M121: 0 | N121: =IF(D121=0,0,IF(VALUE(LEFT(D121,3))=wST.Ansatz,1,0)) -> 0 | O121: =IF(D121=0,0,VALUE(LEFT(D121,3))) -> 0
A122: =N122>0 -> FALSE | B122: + - | G122: 0 | H122: 0 | M122: 0 | N122: =IF(D122=0,0,IF(VALUE(LEFT(D122,3))=wST.Ansatz,1,0)) -> 0 | O122: =IF(D122=0,0,VALUE(LEFT(D122,3))) -> 0
A123: =N123>0 -> FALSE | B123: + - | G123: 0 | H123: 0 | M123: =SUM(H123,I123,-J123) -> 0 | N123: =IF(D123=0,0,IF(VALUE(LEFT(D123,3))=wST.Ansatz,1,0)) -> 0 | O123: =IF(D123=0,0,VALUE(LEFT(D123,3))) -> 0
A124: =N124>0 -> FALSE
A125: =OR(A126:A129) -> FALSE | C125: 358 | D125: Kurzfristige Finanzschulden aus Barvorlagen | G125: =SUMPRODUCT(G126:G129,$N126:$N129) -> 0 | H125: =SUMPRODUCT(H126:H129,$N126:$N129) -> 0 | I125: =SUMPRODUCT(I126:I129,$N126:$N129) -> 0 | J125: =SUMPRODUCT(J126:J129,$N126:$N129) -> 0 | M125: 0
A126: =N126>0 -> FALSE | B126: + - | G126: 0 | H126: 0 | M126: 0 | N126: =IF(D126=0,0,IF(VALUE(LEFT(D126,3))=wST.Ansatz,1,0)) -> 0 | O126: =IF(D126=0,0,VALUE(LEFT(D126,3))) -> 0
A127: =N127>0 -> FALSE | B127: + - | G127: 0 | H127: 0 | M127: =SUM(H127,I127,-J127) -> 0 | N127: =IF(D127=0,0,IF(VALUE(LEFT(D127,3))=wST.Ansatz,1,0)) -> 0 | O127: =IF(D127=0,0,VALUE(LEFT(D127,3))) -> 0
A128: =N128>0 -> FALSE | B128: + - | G128: 0 | H128: 0 | M128: 0 | N128: =IF(D128=0,0,IF(VALUE(LEFT(D128,3))=wST.Ansatz,1,0)) -> 0 | O128: =IF(D128=0,0,VALUE(LEFT(D128,3))) -> 0
A129: =N129>0 -> FALSE
A130: =OR(A131:A134) -> FALSE | C130: 359 | D130: Sonstige kurzfristige Finanzschulden | G130: =SUMPRODUCT(G131:G134,$N131:$N134) -> 0 | H130: =SUMPRODUCT(H131:H134,$N131:$N134) -> 0 | I130: =SUMPRODUCT(I131:I134,$N131:$N134) -> 0 | J130: =SUMPRODUCT(J131:J134,$N131:$N134) -> 0 | M130: 0
A131: =N131>0 -> FALSE | B131: + - | G131: 0 | H131: 0 | M131: 0 | N131: =IF(D131=0,0,IF(VALUE(LEFT(D131,3))=wST.Ansatz,1,0)) -> 0 | O131: =IF(D131=0,0,VALUE(LEFT(D131,3))) -> 0
A132: =N132>0 -> FALSE | B132: + - | G132: 0 | H132: 0 | M132: 0 | N132: =IF(D132=0,0,IF(VALUE(LEFT(D132,3))=wST.Ansatz,1,0)) -> 0 | O132: =IF(D132=0,0,VALUE(LEFT(D132,3))) -> 0
A133: =N133>0 -> FALSE | B133: + - | G133: 0 | H133: 0 | M133: =SUM(H133,I133,-J133) -> 0 | N133: =IF(D133=0,0,IF(VALUE(LEFT(D133,3))=wST.Ansatz,1,0)) -> 0 | O133: =IF(D133=0,0,VALUE(LEFT(D133,3))) -> 0
A134: =N134>0 -> FALSE
A135: TRUE
A136: TRUE
A137: TRUE
A138: Ende | D138: ERGEBNIS | G138: =SUM(G11:G14,G16:G19,G22:G25,G27:G30,G32:G35,G37:G40,G42:G45,G47:G50,G52:G68,G70:G73,G75:G78,G80:G83,G86:G89,G91:G94,G96:G99,G101:G104,G106:G109,G111:G114,G116:G119,G121:G124,G126:G129,G131:G134) -> 0 | H138: =SUM(H11:H14,H16:H19,H22:H25,H27:H30,H32:H35,H37:H40,H42:H45,H47:H50,H52:H68,H70:H73,H75:H78,H80:H83,H86:H89,H91:H94,H96:H99,H101:H104,H106:H109,H111:H114,H116:H119,H121:H124,H126:H129,H131:H134) -> 0 | I138: =SUM(I11:I14,I16:I19,I22:I25,I27:I30,I32:I35,I37:I40,I42:I45,I47:I50,I52:I68,I70:I73,I75:I78,I80:I83,I86:I89,I91:I94,I96:I99,I101:I104,I106:I109,I111:I114,I116:I119,I121:I124,I126:I129,I131:I134) -> 0 | J138: =SUM(J9,J20,J84) -> 0 | M138: =SUM(M9,M20,M84) -> 0

Sheet Eigenkapitalzinsen
A1: FALSE | C1: Ende
A2: FALSE | C2: Eigenkapitalzinsen
A3: FALSE | C3: Ende
A4: TRUE
A5: TRUE | C5: =CONCATENATE("Eigenkapitalzinsen Abwasserentsorgung Rechnungsabschluss "&BAB!J13," KLR-Ebene: "&Info!C17) -> Eigenkapitalzinsen Abwasserentsorgung Rechnungsabschluss 2024 KLR-Ebene:
A6: TRUE
A7: TRUE | C7: Bestände (Aktiva, Passiva) | E7: =CONCATENATE("Bestände aus Vermögensrechnung per 31.12."&YEAR(wST.PeriodeEnde)&" exklusive Werte aus Registerblatt Anlagen *") -> Bestände aus Vermögensrechnung per 31.12.2024 exklusive Werte aus Registerblatt Anlagen * | F7: =CONCATENATE("Werte aus Registerblatt Anlagen / Schulden per 31.12."&YEAR(wST.PeriodeEnde)) -> Werte aus Registerblatt Anlagen / Schulden per 31.12.2024 | G7: Summe Bestände für Eigenkapitalverzinsung | I7: Zuordnung KLR *** | M7: Kontrolle Zuordnung
A8: TRUE | I8: Kanal | J8: Kläranlage | K8: Verwaltung
A9: TRUE
A10: TRUE | C10: ="+ Buchwert Immaterielle Vermögenswerte und Sachanlagen " -> + Buchwert Immaterielle Vermögenswerte und Sachanlagen | F10: =Anlagen!X8+Anlagen!X70+Anlagen!X78+Anlagen!X86+Anlagen!X94+Anlagen!X108 -> 0 | G10: =+E10+F10 -> 0 | I10: =IF($F$10=0,0,$G$10*SUM(Anlagen!AF10:AF114)/$F$10) -> 0 | J10: =IF($F$10=0,0,$G$10*SUM(Anlagen!AG10:AG114)/$F$10) -> 0 | K10: =IF($F$10=0,0,$G$10*SUM(Anlagen!AH10:AH114)/$F$10) -> 0 | M10: =G10-I10-J10-K10 -> 0 | O10: =Anlagen!X94+Anlagen!X86+Anlagen!X78+Anlagen!X70+Anlagen!X8 -> 0 | P10: =Anlagen!T94+Anlagen!T86+Anlagen!T78+Anlagen!T70+Anlagen!T8 -> 0 | Q10: =+P10/2+O10 -> 0
A11: TRUE | C11: ="+ Stand Forderungen Barwerte Finanzierungszuschüsse" -> + Stand Forderungen Barwerte Finanzierungszuschüsse | G11: =+E11+F11 -> 0 | I11: =IF(SUM($I$10:$K$10)=0,0,$G$11*I10/SUM($I$10:$K$10)) -> 0 | J11: =IF(SUM($I$10:$K$10)=0,0,$G$11*J10/SUM($I$10:$K$10)) -> 0 | K11: 0 | M11: =G11-I11-J11-K11 -> 0
A12: TRUE | C12: =" - Buchwert IZ / FZ (Vertragsbarwerte)" -> - Buchwert IZ / FZ (Vertragsbarwerte) | F12: =-SUM(Anlagen!X118:X160) -> 0 | G12: =+E12+F12 -> 0 | I12: =IF($F$12=0,0,-$G$12*(SUM(Anlagen!AF118:AF160))/$F$12) -> 0 | J12: =IF($F$12=0,0,-$G$12*(SUM(Anlagen!AG118:AG160))/$F$12) -> 0 | K12: =IF($F$12=0,0,-$G$12*(SUM(Anlagen!AH118:AH160))/$F$12) -> 0 | M12: =G12-I12-J12-K12 -> 0 | Q12: =+P12/2+O12 -> 0
A13: TRUE | C13: =" - Buchwert Interessentenbeiträge" -> - Buchwert Interessentenbeiträge | F13: =-SUM(Anlagen!X164:X200) -> 0 | G13: =+E13+F13 -> 0 | I13: =IF($F$13=0,0,-$G$13*(SUM(Anlagen!AF164:AF200))/$F$13) -> 0 | J13: =IF($F$13=0,0,-$G$13*(SUM(Anlagen!AG164:AG200))/$F$13) -> 0 | K13: =IF($F$13=0,0,-$G$13*(SUM(Anlagen!AH164:AH200))/$F$13) -> 0 | M13: =G13-I13-J13-K13 -> 0 | O13: =SUM(Anlagen!X110:X111) -> 0 | P13: =SUM(Anlagen!T110:T111) -> 0 | Q13: =+P13/2+O13 -> 0
A14: TRUE | C14: =" - Schuldenstand Investitionsdarlehen und Leasing" -> - Schuldenstand Investitionsdarlehen und Leasing | F14: =-Schulden!M20-Schulden!M9 -> 0 | G14: =+E14+F14 -> 0 | I14: =IF($F$14=0,0,-$G$14*(SUM(Schulden!U11:U83))/$F$14) -> 0 | J14: =IF($F$14=0,0,-$G$14*(SUM(Schulden!V11:V83))/$F$14) -> 0 | K14: =IF($F$14=0,0,-$G$14*(SUM(Schulden!W11:W83))/$F$14) -> 0 | M14: =G14-I14-J14-K14 -> 0 | O14: =Schulden!M20 -> 0 | P14: =Schulden!J20-Schulden!I20 -> 0 | Q14: =+P14/2+O14 -> 0
A15: TRUE
A16: TRUE | C16: Basis für Eigenkapitalzinsen | E16: =SUM(E10:E14) -> 0 | F16: =SUM(F10:F14) -> 0 | G16: =SUM(G10:G14) -> 0 | I16: =SUM(I10:I14) -> 0 | J16: =SUM(J10:J14) -> 0 | K16: =SUM(K10:K14) -> 0
A17: TRUE
A18: TRUE | C18: Manuelle Aufteilung des Eigenkapitals nach Kostenstellen in EURO
A19: TRUE | C19: Eigenkapitalzinssatz ** und Eigenkapitalzinsen | E19: 0.0255 | G19: =MAX(0,$G$16*$E$19) -> 0 | I19: =IF(AND(I18="",ISERROR(I16)),0,IF(I18="",I16*$E$19,$E$19*I18)) -> 0 | J19: =IF(AND(J18="",ISERROR(J16)),0,IF(J18="",J16*$E$19,$E$19*J18)) -> 0 | K19: 0
A20: TRUE
A21: TRUE | C21: * Im Bereich der geförderten Siedlungswasserwirtschaft in der Steiermark sind die Immateriellen Vermögenswerte und die Sachanlagen sowie die | I21: *** Kostenstellenzuordnung für Werteübernahme aus
A22: TRUE | C22: Subventionen und Interessentenbeiträge verpflichtend vollständig im Registerblatt Anlagen zu erfassen. Im Bereich der geförderten Siedlungswasser- | I22: Registerblatt Anlagen / Schulden erfolgt automatisiert;
A23: TRUE | C23: wirtschaft in der Steiermark sind die Investitionsdarlehen und Leasing im Registerblatt Schulden ebenfalls verpflichtend vollständig zu erfassen. Unter | I23: sonst manuelle Zuteilung in EURO erforderlich
A24: TRUE | C24: diesen Voraussetzungen ist nur der Stand der Forderungen Barwerte Finanzierungszuschüsse aus der Vermögensrechnung in diese Spalte zu übertragen.
A25: TRUE
A26: TRUE | C26: ** Durchschnitt der Emissionsrenditen von österreichischen Bundesanleihen (jährlicher Periodendurchschnitt) der letzten 25 Jahre (ÖWAV-Arbeitsbehelf 64).
A27: TRUE | C27: Ab 2024 werden die Emissionsrenditen durch den Nachfolgeindex "Renditen langfristiger staatlicher Schuldverschreibungen" ersetzt
A28: TRUE | C28: (siehe Addendum zum ÖWAV-Arbeitsbehelf 64).
A29: Ende

Sheet Erläuterungen
A1: FALSE | B1: Ende
A2: FALSE | B2: Erläuterungen
A3: FALSE | B3: Ende
A4: TRUE
A5: TRUE | C5: =CONCATENATE("Erläuterungen Abwasserentsorgung Rechnungsabschluss "&wST.Jahr," KLR-Ebene: "&wST.KLR_Ebene) -> Erläuterungen Abwasserentsorgung Rechnungsabschluss 2024 KLR-Ebene:
A6: TRUE
A7: TRUE
A8: TRUE | B8: + -
A9: TRUE | B9: + -
A10: TRUE | B10: + -
A11: TRUE | B11: + -
A12: TRUE | B12: + -
A13: TRUE | B13: + -
A14: TRUE | B14: + -
A15: TRUE | B15: + -
A16: TRUE | B16: + -
A17: TRUE | B17: + -
A18: TRUE | B18: + -
A19: TRUE | B19: + -
A20: TRUE | B20: + -
A21: TRUE | B21: + -
A22: TRUE | B22: + -
A23: TRUE | B23: + -
A24: TRUE | B24: + -
A25: TRUE | B25: + -
A26: TRUE | B26: + -
A27: TRUE | B27: + -
A28: TRUE | B28: + -
A29: TRUE | B29: + -
A30: TRUE | B30: + -
A31: TRUE | B31: + -
A32: TRUE | B32: + -
A33: TRUE | B33: + -
A34: TRUE | B34: + -
A35: TRUE | B35: + -
A36: TRUE | B36: + -
A37: TRUE | B37: + -
A38: TRUE | B38: + -
A39: TRUE | B39: + -
A40: TRUE | B40: + -
A41: TRUE
A42: Ende

Sheet Liquiditätsplan
A1: FALSE | B1: Ende
A2: FALSE | B2: Liquiditätsplan
A3: FALSE | B3: Ende
A4: TRUE | B4: TRUE
A5: TRUE | D5: =CONCATENATE("Liquiditätsplan Abwasserentsorgung Rechnungsabschluss "&wST.Jahr," "&wST.KLR_Ebene) -> Liquiditätsplan Abwasserentsorgung Rechnungsabschluss 2024
A6: TRUE
A7: TRUE
A8: TRUE | E8: =IF(wLI.InvIncl,"inklusive zukünftiger Investitonen","exklusive zukünftiger Investitonen") -> inklusive zukünftiger Investitonen | G8: ="Summe "&BAB!J13 -> Summe 2024 | K8: =BAB!J13+1 -> 2025 | L8: =K8+1 -> 2026 | M8: 2027 | N8: 2028 | O8: 2029 | P8: 2030 | Q8: 2031 | R8: 2032 | S8: 2033 | T8: 2034
A9: TRUE | D9: SU 31 | E9: Summe Einzahlungen operative Gebarung (SU 31) | G9: =+G10+G12+G15+G17+G18+G19 -> 0 | K9: =+K10+K12+K15+K17+K18+K19 -> 0 | L9: 0 | M9: 0 | N9: 0 | O9: 0 | P9: 0 | Q9: 0 | R9: 0 | S9: 0 | T9: 0
A10: TRUE | D10: 4.1 | E10: Einzahlungen aus Gebühren / Entgelten ohne zukünftige Investitionen | G10: =SUMIF(BÜB!$V$13:$V$28,D10,BÜB!$U$13:$U$28) -> 0 | K10: =G10*(1+K11) -> 0 | L10: =K14*(1+L11) -> 0 | M10: =L14*(1+M11) -> 0 | N10: =M14*(1+N11) -> 0 | O10: 0 | P10: 0 | Q10: 0 | R10: 0 | S10: 0 | T10: =S14*(1+T11) -> 0
A11: TRUE | B11: ="%" -> % | E11: jährliche Veränderung Einnahmen aus Gebühren geg. VJ % (ohne zukünftige Investitionen)
A12: TRUE | B12: Plan absolut | E12: Erforderliche Gebührenveränderung - nach Umsetzung der geplanten Investitionen - absolut | K12: =IF(B4,(G10*(1+K13))-G10,0) -> 0 | L12: =IF($B$4,(K$14*(1+L$13))-K$14,0) -> 0 | M12: 0 | N12: 0 | O12: 0 | P12: 0 | Q12: 0 | R12: 0 | S12: 0 | T12: 0
A13: TRUE | B13: Plan relativ | E13: Erforderliche Gebühreveränderung - nach Umsetzung der geplanten Investitionen - relativ
A14: TRUE | E14: Summe Einzahlungen aus Gebühren/Entgelten | K14: =+K12+K10 -> 0 | L14: =+L12+L10 -> 0 | M14: 0 | N14: 0 | O14: 0 | P14: 0 | Q14: 0 | R14: 0 | S14: 0 | T14: 0
A15: TRUE | D15: 4.2 | E15: Sonstige Einzahlungen | G15: =SUMIF(BÜB!$V$13:$V$28,D15,BÜB!$U$13:$U$28) -> 0 | K15: =G15*(1+K16) -> 0 | L15: =K15*(1+L16) -> 0 | M15: 0 | N15: 0 | O15: 0 | P15: 0 | Q15: 0 | R15: 0 | S15: 0 | T15: 0
A16: TRUE | B16: ="%" -> % | E16: jährliche Veränderung sonstige Einzahlungen / Einnahmen geg. VJ %
A17: TRUE | B17: Eintrag | D17: 4.3 | E17: Einzahlungen von Beiträgen in operativer Gebarung (zB Konto 850) | G17: =SUMIF(BÜB!$V$13:$V$28,D17,BÜB!$U$13:$U$28) -> 0
A18: TRUE | B18: Eintrag | D18: 4.4 | E18: Einzahlungen aus Zinsenzuschüssen FZ (Konto 860, 861) - Bestand | G18: =SUMIF(BÜB!$V$13:$V$28,D18,BÜB!$U$13:$U$28) -> 0
A19: TRUE | B19: Plan | E19: Geplante Zinsenzuschüsse FZ (Konto 860, 861 - noch nicht zugesichert) | K19: =IF(B4,'Investition-Finanzierung'!$L$23,0) -> 0 | L19: =IF(B4,'Investition-Finanzierung'!$M$23+'Investition-Finanzierung'!$L$48,0) -> 0 | M19: =IF(B4,'Investition-Finanzierung'!$N$23+'Investition-Finanzierung'!$M$48+'Investition-Finanzierung'!$L$73,0) -> 0 | N19: =IF(B4,'Investition-Finanzierung'!$O$23+'Investition-Finanzierung'!$N$48+'Investition-Finanzierung'!$M$73+'Investition-Finanzierung'!$L$98,0) -> 0 | O19: =IF(B4,'Investition-Finanzierung'!$P$23+'Investition-Finanzierung'!$O$48+'Investition-Finanzierung'!$N$73+'Investition-Finanzierung'!$M$98+'Investition-Finanzierung'!$L$123,0) -> 0 | P19: =IF(B4,'Investition-Finanzierung'!$Q$23+'Investition-Finanzierung'!$P$48+'Investition-Finanzierung'!$O$73+'Investition-Finanzierung'!$N$98+'Investition-Finanzierung'!$M$123+'Investition-Finanzierung'!$L$148,0) -> 0 | Q19: =IF(B4,'Investition-Finanzierung'!$R$23+'Investition-Finanzierung'!$Q$48+'Investition-Finanzierung'!$P$73+'Investition-Finanzierung'!$O$98+'Investition-Finanzierung'!$N$123+'Investition-Finanzierung'!$M$148+'Investition-Finanzierung'!$L$173,0) -> 0 | R19: =IF(B4,'Investition-Finanzierung'!$S$23+'Investition-Finanzierung'!$R$48+'Investition-Finanzierung'!$Q$73+'Investition-Finanzierung'!$P$98+'Investition-Finanzierung'!$O$123+'Investition-Finanzierung'!$N$148+'Investition-Finanzierung'!$M$173+'Investition-Finanzierung'!$L$198,0) -> 0 | S19: =IF(B4,'Investition-Finanzierung'!$T$23+'Investition-Finanzierung'!$S$48+'Investition-Finanzierung'!$R$73+'Investition-Finanzierung'!$Q$98+'Investition-Finanzierung'!$P$123+'Investition-Finanzierung'!$O$148+'Investition-Finanzierung'!$N$173+'Investition-Finanzierung'!$M$198+'Investition-Finanzierung'!$L$223,0) -> 0 | T19: =IF(B4,'Investition-Finanzierung'!$U$23+'Investition-Finanzierung'!$T$48+'Investition-Finanzierung'!$S$73+'Investition-Finanzierung'!$R$98+'Investition-Finanzierung'!$Q$123+'Investition-Finanzierung'!$P$148+'Investition-Finanzierung'!$O$173+'Investition-Finanzierung'!$N$198+'Investition-Finanzierung'!$M$223+'Investition-Finanzierung'!$L$248,0) -> 0
A20: TRUE
A21: TRUE | D21: SU 32 | E21: Summe Auszahlungen operative Gebarung (SU 32) | G21: =SUM(G22:G38) -> 0 | H21: =SUM(H22:H61) -> 0 | K21: =SUM(K22,K24,K26,K28,K30,K32,K34,K35,K37,K38) -> 0 | L21: 0 | M21: 0 | N21: 0 | O21: 0 | P21: 0 | Q21: 0 | R21: 0 | S21: 0 | T21: 0
A22: TRUE | D22: 1.1 | E22: Material und Stoffe (einschließlich Vorräte) | G22: =SUMIF(BÜB!$V$31:$V$72,D22,BÜB!$U$31:$U$72) -> 0 | K22: =G22*(1+K23) -> 0 | L22: =K22*(1+L23) -> 0 | M22: =L22*(1+M23) -> 0 | N22: =M22*(1+N23) -> 0 | O22: 0 | P22: 0 | Q22: 0 | R22: 0 | S22: 0 | T22: 0
A23: TRUE | B23: ="%" -> % | E23: jährliche Veränderung Material und Stoffe geg. VJ %
A24: TRUE | D24: 1.2 | E24: Personal | G24: =SUMIF(BÜB!$V$31:$V$72,D24,BÜB!$U$31:$U$72) -> 0 | K24: =G24*(1+K25) -> 0 | L24: =K24*(1+L25) -> 0 | M24: 0 | N24: 0 | O24: 0 | P24: 0 | Q24: 0 | R24: 0 | S24: 0 | T24: 0
A25: TRUE | B25: ="%" -> % | E25: jährliche Veränderung Personal geg. VJ %
A26: TRUE | D26: 1.3 | E26: Leistungen durch Dritte | G26: =SUMIF(BÜB!$V$31:$V$72,D26,BÜB!$U$31:$U$72) -> 0 | K26: =G26*(1+K27) -> 0 | L26: =K26*(1+L27) -> 0 | M26: 0 | N26: 0 | O26: 0 | P26: 0 | Q26: 0 | R26: 0 | S26: 0 | T26: 0
A27: TRUE | B27: ="%" -> % | E27: jährliche Veränderung Leistungen durch Dritte geg. VJ %
A28: TRUE | D28: 1.4 | E28: Energie | G28: =SUMIF(BÜB!$V$31:$V$72,D28,BÜB!$U$31:$U$72) -> 0 | K28: =G28*(1+K29) -> 0 | L28: =K28*(1+L29) -> 0 | M28: 0 | N28: 0 | O28: 0 | P28: 0 | Q28: 0 | R28: 0 | S28: 0 | T28: 0
A29: TRUE | B29: ="%" -> % | E29: jährliche Veränderung Energie geg. VJ %
A30: TRUE | D30: 1.5 | E30: Entsorgung | G30: =SUMIF(BÜB!$V$31:$V$72,D30,BÜB!$U$31:$U$72) -> 0 | K30: =G30*(1+K31) -> 0 | L30: =K30*(1+L31) -> 0 | M30: 0 | N30: 0 | O30: 0 | P30: 0 | Q30: 0 | R30: 0 | S30: 0 | T30: 0
A31: TRUE | B31: ="%" -> % | E31: jährliche Veränderung Entsorgung geg. VJ %
A32: TRUE | D32: 1.6 | E32: Sonstiges für den Betrieb | G32: =SUMIF(BÜB!$V$31:$V$72,D32,BÜB!$U$31:$U$72) -> 0 | K32: =G32*(1+K33) -> 0 | L32: =K32*(1+L33) -> 0 | M32: 0 | N32: 0 | O32: 0 | P32: 0 | Q32: 0 | R32: 0 | S32: 0 | T32: 0
A33: TRUE | B33: ="%" -> % | E33: jährliche Veränderung sonstiges für den Betrieb geg. VJ %
A34: TRUE | E34: Veränderung Betriebskosten durch geplante Investitionen | K34: =IF(B4,'Investition-Finanzierung'!L28,0) -> 0 | L34: =IF(B4,'Investition-Finanzierung'!M28+'Investition-Finanzierung'!L53,) -> 0 | M34: =IF(B4,'Investition-Finanzierung'!N28+'Investition-Finanzierung'!M53+'Investition-Finanzierung'!L78,) -> 0 | N34: =IF(B4,'Investition-Finanzierung'!O28+'Investition-Finanzierung'!N53+'Investition-Finanzierung'!M78+'Investition-Finanzierung'!L103,0) -> 0 | O34: =IF(B4,'Investition-Finanzierung'!P28+'Investition-Finanzierung'!O53+'Investition-Finanzierung'!N78+'Investition-Finanzierung'!M103+'Investition-Finanzierung'!L128,0) -> 0 | P34: =IF(B4,'Investition-Finanzierung'!Q28+'Investition-Finanzierung'!P53+'Investition-Finanzierung'!O78+'Investition-Finanzierung'!N103+'Investition-Finanzierung'!M128+'Investition-Finanzierung'!L153,0) -> 0 | Q34: =IF(B4,'Investition-Finanzierung'!R28+'Investition-Finanzierung'!Q53+'Investition-Finanzierung'!P78+'Investition-Finanzierung'!O103+'Investition-Finanzierung'!N128+'Investition-Finanzierung'!M153+'Investition-Finanzierung'!L178,0) -> 0 | R34: =IF(B4,'Investition-Finanzierung'!S28+'Investition-Finanzierung'!R53+'Investition-Finanzierung'!Q78+'Investition-Finanzierung'!P103+'Investition-Finanzierung'!O128+'Investition-Finanzierung'!N153+'Investition-Finanzierung'!M178+'Investition-Finanzierung'!L203,0) -> 0 | S34: =IF(B4,'Investition-Finanzierung'!T28+'Investition-Finanzierung'!S53+'Investition-Finanzierung'!R78+'Investition-Finanzierung'!Q103+'Investition-Finanzierung'!P128+'Investition-Finanzierung'!O153+'Investition-Finanzierung'!N178+'Investition-Finanzierung'!M203+'Investition-Finanzierung'!L228,0) -> 0 | T34: =IF(B4,'Investition-Finanzierung'!U28+'Investition-Finanzierung'!T53+'Investition-Finanzierung'!S78+'Investition-Finanzierung'!R103+'Investition-Finanzierung'!Q128+'Investition-Finanzierung'!P153+'Investition-Finanzierung'!O178+'Investition-Finanzierung'!N203+'Investition-Finanzierung'!M228+'Investition-Finanzierung'!L253,0) -> 0
A35: TRUE | D35: 1.7 | E35: Transfers (Verbandsumlagen, Umlage an Eigenbetrieb etc.) | G35: =SUMIF(BÜB!$V$31:$V$72,D35,BÜB!$U$31:$U$72) -> 0 | K35: =G35*(1+K36) -> 0 | L35: =K35*(1+L36) -> 0 | M35: 0 | N35: 0 | O35: 0 | P35: 0 | Q35: 0 | R35: 0 | S35: 0 | T35: 0
A36: TRUE | B36: ="%" -> % | E36: jährliche Veränderung Transfers geg. VJ %
A37: TRUE | B37: Eintrag | D37: 2.2.2 | E37: Zinsen (Fremdmittel Bestand) | G37: =SUMIF(BÜB!$V$31:$V$72,D37,BÜB!$U$31:$U$72) -> 0
A38: TRUE | B38: Plan | E38: Zinsen (Darlehensaufnahme neu aus Investitionsplanung) | G38: 0 | K38: =IF(B4,'Investition-Finanzierung'!L14+'Investition-Finanzierung'!L27,0) -> 0 | L38: =IF(B4,'Investition-Finanzierung'!M14+'Investition-Finanzierung'!M27+'Investition-Finanzierung'!L39+'Investition-Finanzierung'!L52,0) -> 0 | M38: =IF(B4,'Investition-Finanzierung'!N14+'Investition-Finanzierung'!N27+'Investition-Finanzierung'!M39+'Investition-Finanzierung'!M52+'Investition-Finanzierung'!L64+'Investition-Finanzierung'!L77,0) -> 0 | N38: =IF(B4,'Investition-Finanzierung'!O14+'Investition-Finanzierung'!O27+'Investition-Finanzierung'!N39+'Investition-Finanzierung'!N52+'Investition-Finanzierung'!M64+'Investition-Finanzierung'!M77+'Investition-Finanzierung'!L89+'Investition-Finanzierung'!L102,0) -> 0 | O38: =IF(B4,'Investition-Finanzierung'!P14+'Investition-Finanzierung'!P27+'Investition-Finanzierung'!O39+'Investition-Finanzierung'!O52+'Investition-Finanzierung'!N64+'Investition-Finanzierung'!N77+'Investition-Finanzierung'!M89+'Investition-Finanzierung'!M102+'Investition-Finanzierung'!L114+'Investition-Finanzierung'!L127,0) -> 0 | P38: =IF(B4,'Investition-Finanzierung'!Q14+'Investition-Finanzierung'!Q27+'Investition-Finanzierung'!P39+'Investition-Finanzierung'!P52+'Investition-Finanzierung'!O64+'Investition-Finanzierung'!O77+'Investition-Finanzierung'!N89+'Investition-Finanzierung'!N102+'Investition-Finanzierung'!M114+'Investition-Finanzierung'!M127+'Investition-Finanzierung'!L139+'Investition-Finanzierung'!L152,0) -> 0 | Q38: =IF(B4,'Investition-Finanzierung'!R14+'Investition-Finanzierung'!R27+'Investition-Finanzierung'!Q39+'Investition-Finanzierung'!Q52+'Investition-Finanzierung'!P64+'Investition-Finanzierung'!P77+'Investition-Finanzierung'!O89+'Investition-Finanzierung'!O102+'Investition-Finanzierung'!N114+'Investition-Finanzierung'!N127+'Investition-Finanzierung'!M139+'Investition-Finanzierung'!M152+'Investition-Finanzierung'!L164+'Investition-Finanzierung'!L177,0) -> 0 | R38: =IF(B4,'Investition-Finanzierung'!S14+'Investition-Finanzierung'!S27+'Investition-Finanzierung'!R39+'Investition-Finanzierung'!R52+'Investition-Finanzierung'!Q64+'Investition-Finanzierung'!Q77+'Investition-Finanzierung'!P89+'Investition-Finanzierung'!P102+'Investition-Finanzierung'!O114+'Investition-Finanzierung'!O127+'Investition-Finanzierung'!N139+'Investition-Finanzierung'!N152+'Investition-Finanzierung'!M164+'Investition-Finanzierung'!M177+'Investition-Finanzierung'!L189+'Investition-Finanzierung'!L202,0) -> 0 | S38: =IF(B4,'Investition-Finanzierung'!T14+'Investition-Finanzierung'!T27+'Investition-Finanzierung'!S39+'Investition-Finanzierung'!S52+'Investition-Finanzierung'!R64+'Investition-Finanzierung'!R77+'Investition-Finanzierung'!Q89+'Investition-Finanzierung'!Q102+'Investition-Finanzierung'!P114+'Investition-Finanzierung'!P127+'Investition-Finanzierung'!O139+'Investition-Finanzierung'!O152+'Investition-Finanzierung'!N164+'Investition-Finanzierung'!N177+'Investition-Finanzierung'!M189+'Investition-Finanzierung'!M202+'Investition-Finanzierung'!L214+'Investition-Finanzierung'!L227,0) -> 0 | T38: =IF(B4,'Investition-Finanzierung'!U14+'Investition-Finanzierung'!U27+'Investition-Finanzierung'!T39+'Investition-Finanzierung'!T52+'Investition-Finanzierung'!S64+'Investition-Finanzierung'!S77+'Investition-Finanzierung'!R89+'Investition-Finanzierung'!R102+'Investition-Finanzierung'!Q114+'Investition-Finanzierung'!Q127+'Investition-Finanzierung'!P139+'Investition-Finanzierung'!P152+'Investition-Finanzierung'!O164+'Investition-Finanzierung'!O177+'Investition-Finanzierung'!N189+'Investition-Finanzierung'!N202+'Investition-Finanzierung'!M214+'Investition-Finanzierung'!M227+'Investition-Finanzierung'!L239+'Investition-Finanzierung'!L252,0) -> 0
A39: TRUE
A40: TRUE | D40: SA 1 | E40: Saldo (1) Geldfluss aus der operativen Gebarung (31 - 32) | G40: =+G9-G21 -> 0 | H40: =SUM(H41:H85) -> 0 | K40: =+K9-K21 -> 0 | L40: 0 | M40: 0 | N40: 0 | O40: 0 | P40: 0 | Q40: 0 | R40: 0 | S40: 0 | T40: 0
A41: TRUE | D41: MVAG 361 | E41: Auszahlung aus der Tilgung von Finanzschulden | G41: =BÜB!U79 -> 0 | K41: =K59 -> 0 | L41: =L59 -> 0 | M41: 0 | N41: 0 | O41: 0 | P41: 0 | Q41: 0 | R41: 0 | S41: 0 | T41: 0
A42: TRUE | E42: Freie Finanzspitze (SA 1 - MVAG 361) | G42: =+G40-G41 -> 0 | K42: =+K40-K41 -> 0 | L42: =+L40-L41 -> 0 | M42: 0 | N42: 0 | O42: 0 | P42: 0 | Q42: 0 | R42: 0 | S42: 0 | T42: 0
A43: TRUE
A44: TRUE | D44: SU 33 | E44: Summe Einzahlungen investive Gebarung (SU 33) | G44: =BÜB!U75 -> 0 | H44: =SUM(H50:H85) -> 0 | K44: =SUM(K45:K49) -> 0 | L44: 0 | M44: 0 | N44: 0 | O44: 0 | P44: 0 | Q44: 0 | R44: 0 | S44: 0 | T44: 0
A45: TRUE | B45: Plan | E45: Einzahlungen aus der Investitionstätigkeit (Veräußerung) | K45: =IF(B4,'Investition-Finanzierung'!E14,0) -> 0 | L45: =IF(B4,'Investition-Finanzierung'!E39,0) -> 0 | M45: =IF(B4,'Investition-Finanzierung'!E64,0) -> 0 | N45: =IF(B4,'Investition-Finanzierung'!E89,0) -> 0 | O45: =IF(B4,'Investition-Finanzierung'!E114,0) -> 0 | P45: =IF(B4,'Investition-Finanzierung'!E139,0) -> 0 | Q45: =IF(B4,'Investition-Finanzierung'!E164,0) -> 0 | R45: =IF(B4,'Investition-Finanzierung'!E189,0) -> 0 | S45: =IF(B4,'Investition-Finanzierung'!E214,0) -> 0 | T45: =IF(B4,'Investition-Finanzierung'!E239,0) -> 0
A46: TRUE | B46: Eintrag | E46: Laufende Einzahlungen aus Rückzahlung von gewährten Darlehen (extern)
A47: TRUE | B47: Plan | E47: Einzahlung Kapitaltransfers (Investitionszuschüsse, Interessentenbeiträge, Sonstiges) | K47: =IF(B4,'Investition-Finanzierung'!E15+'Investition-Finanzierung'!E16+'Investition-Finanzierung'!E17,0) -> 0 | L47: =IF(B4,'Investition-Finanzierung'!E40+'Investition-Finanzierung'!E41+'Investition-Finanzierung'!E42,0) -> 0 | M47: =IF(B4,'Investition-Finanzierung'!E65+'Investition-Finanzierung'!E66+'Investition-Finanzierung'!E67,0) -> 0 | N47: =IF(B4,'Investition-Finanzierung'!E90+'Investition-Finanzierung'!E91+'Investition-Finanzierung'!E92,0) -> 0 | O47: =IF(B4,'Investition-Finanzierung'!E115+'Investition-Finanzierung'!E116+'Investition-Finanzierung'!E117,0) -> 0 | P47: =IF(B4,'Investition-Finanzierung'!E140+'Investition-Finanzierung'!E141+'Investition-Finanzierung'!E142,0) -> 0 | Q47: =IF(B4,'Investition-Finanzierung'!E165+'Investition-Finanzierung'!E166+'Investition-Finanzierung'!E167,0) -> 0 | R47: =IF(B4,'Investition-Finanzierung'!E190+'Investition-Finanzierung'!E191+'Investition-Finanzierung'!E192,0) -> 0 | S47: =IF(B4,'Investition-Finanzierung'!E215+'Investition-Finanzierung'!E216+'Investition-Finanzierung'!E217,0) -> 0 | T47: =IF(B4,'Investition-Finanzierung'!E240+'Investition-Finanzierung'!E241+'Investition-Finanzierung'!E242,0) -> 0
A48: TRUE | B48: Eintrag | E48: Barwertzuschüsse FZ Bestand
A49: TRUE | B49: Plan | E49: Barwertzuschüsse FZ Planung | K49: =IF(B4,'Investition-Finanzierung'!L24,0) -> 0 | L49: =IF(B4,'Investition-Finanzierung'!M24+'Investition-Finanzierung'!L49,0) -> 0 | M49: =IF(B4,'Investition-Finanzierung'!N24+'Investition-Finanzierung'!M49+'Investition-Finanzierung'!L74,0) -> 0 | N49: =IF(B4,'Investition-Finanzierung'!O24+'Investition-Finanzierung'!N49+'Investition-Finanzierung'!M74+'Investition-Finanzierung'!L99,0) -> 0 | O49: =IF(B4,'Investition-Finanzierung'!P24+'Investition-Finanzierung'!O49+'Investition-Finanzierung'!N74+'Investition-Finanzierung'!M99+'Investition-Finanzierung'!L124,0) -> 0 | P49: =IF(B4,'Investition-Finanzierung'!Q24+'Investition-Finanzierung'!P49+'Investition-Finanzierung'!O74+'Investition-Finanzierung'!N99+'Investition-Finanzierung'!M124+'Investition-Finanzierung'!L149,0) -> 0 | Q49: =IF(B4,'Investition-Finanzierung'!R24+'Investition-Finanzierung'!Q49+'Investition-Finanzierung'!P74+'Investition-Finanzierung'!O99+'Investition-Finanzierung'!N124+'Investition-Finanzierung'!M149+'Investition-Finanzierung'!L174,0) -> 0 | R49: =IF(B4,'Investition-Finanzierung'!S24+'Investition-Finanzierung'!R49+'Investition-Finanzierung'!Q74+'Investition-Finanzierung'!P99+'Investition-Finanzierung'!O124+'Investition-Finanzierung'!N149+'Investition-Finanzierung'!M174+'Investition-Finanzierung'!L199,0) -> 0 | S49: =IF(B4,'Investition-Finanzierung'!T24+'Investition-Finanzierung'!S49+'Investition-Finanzierung'!R74+'Investition-Finanzierung'!Q99+'Investition-Finanzierung'!P124+'Investition-Finanzierung'!O149+'Investition-Finanzierung'!N174+'Investition-Finanzierung'!M199+'Investition-Finanzierung'!L224,0) -> 0 | T49: =IF(B4,'Investition-Finanzierung'!U24+'Investition-Finanzierung'!T49+'Investition-Finanzierung'!S74+'Investition-Finanzierung'!R99+'Investition-Finanzierung'!Q124+'Investition-Finanzierung'!P149+'Investition-Finanzierung'!O174+'Investition-Finanzierung'!N199+'Investition-Finanzierung'!M224+'Investition-Finanzierung'!L249,0) -> 0
A50: TRUE | D50: SU 34 | E50: Summe Auszahlungen investive Gebarung (SU 34) | G50: =BÜB!U76 -> 0 | K50: =SUM(K51:K53) -> 0 | L50: =SUM(L51:L53) -> 0 | M50: 0 | N50: 0 | O50: 0 | P50: 0 | Q50: 0 | R50: 0 | S50: 0 | T50: 0
A51: TRUE | B51: Plan | E51: Auszahlungen aus der Investitionstätigkeit | K51: =IF(B4,'Investition-Finanzierung'!$E$12,0) -> 0 | L51: =IF(B4,'Investition-Finanzierung'!E37,0) -> 0 | M51: =IF(B4,'Investition-Finanzierung'!E62,0) -> 0 | N51: =IF(B4,'Investition-Finanzierung'!E87,0) -> 0 | O51: =IF(B4,'Investition-Finanzierung'!E112,0) -> 0 | P51: =IF(B4,'Investition-Finanzierung'!E137,0) -> 0 | Q51: =IF(B4,'Investition-Finanzierung'!E162,0) -> 0 | R51: =IF(B4,'Investition-Finanzierung'!E187,0) -> 0 | S51: =IF(B4,'Investition-Finanzierung'!E212,0) -> 0 | T51: =IF(B4,'Investition-Finanzierung'!E237,0) -> 0
A52: TRUE | B52: Eintrag | E52: Auszahlungen von gewährten Darlehen / Vorschüssen (extern)
A53: TRUE | B53: Plan | E53: Auszahlungen von Kapitaltransfers (kooperative Vorhaben) | K53: =IF(B4,'Investition-Finanzierung'!$E$13,0) -> 0 | L53: =IF(B4,'Investition-Finanzierung'!E38,0) -> 0 | M53: =IF(B4,'Investition-Finanzierung'!E63,0) -> 0 | N53: =IF(B4,'Investition-Finanzierung'!E88,0) -> 0 | O53: =IF(B4,'Investition-Finanzierung'!E113,0) -> 0 | P53: =IF(B4,'Investition-Finanzierung'!E138,0) -> 0 | Q53: =IF(B4,'Investition-Finanzierung'!E163,0) -> 0 | R53: =IF(B4,'Investition-Finanzierung'!E188,0) -> 0 | S53: =IF(B4,'Investition-Finanzierung'!E213,0) -> 0 | T53: =IF(B4,'Investition-Finanzierung'!E238,0) -> 0
A54: TRUE | D54: SA 2 | E54: Saldo (2) Geldfluss aus der Investiven Gebarung (33 - 34) | G54: =+G44-G50 -> 0 | H54: =SUM(H55:H85) -> 0 | K54: =+K44-K50 -> 0 | L54: =+L44-L50 -> 0 | M54: 0 | N54: 0 | O54: 0 | P54: 0 | Q54: 0 | R54: 0 | S54: 0 | T54: 0
A55: TRUE
A56: TRUE | D56: SA 3 | E56: Saldo (3) Nettofinanzierungssaldo (SA1 + SA2) | G56: =+G40+G54 -> 0 | H56: =SUM(H57:H85) -> 0 | K56: =+K40+K54 -> 0 | L56: 0 | M56: 0 | N56: 0 | O56: 0 | P56: 0 | Q56: 0 | R56: 0 | S56: 0 | T56: 0
A57: TRUE
A58: TRUE | D58: SU 35 | E58: Summe Einzahlungen aus der Finanzierungstätigkeit (SU 35) | G58: =BÜB!U77 -> 0 | H58: =SUM(H61:H85) -> 0 | K58: =IF(B4,'Investition-Finanzierung'!$E$22+'Investition-Finanzierung'!$E$23,0) -> 0 | L58: =IF(B4,'Investition-Finanzierung'!E47+'Investition-Finanzierung'!E48,0) -> 0 | M58: =IF(B4,'Investition-Finanzierung'!E72+'Investition-Finanzierung'!E73,0) -> 0 | N58: =IF(B4,'Investition-Finanzierung'!E97+'Investition-Finanzierung'!E98,0) -> 0 | O58: =IF(B4,'Investition-Finanzierung'!E122+'Investition-Finanzierung'!E123,0) -> 0 | P58: =IF(B4,'Investition-Finanzierung'!E147+'Investition-Finanzierung'!E148,0) -> 0 | Q58: =IF(B4,'Investition-Finanzierung'!E172+'Investition-Finanzierung'!E173,0) -> 0 | R58: =IF(B4,'Investition-Finanzierung'!E197+'Investition-Finanzierung'!E198,0) -> 0 | S58: =IF(B4,'Investition-Finanzierung'!E222+'Investition-Finanzierung'!E223,0) -> 0 | T58: =IF(B4,'Investition-Finanzierung'!E247+'Investition-Finanzierung'!E248,0) -> 0
A59: TRUE | D59: SU 36 | E59: Summe Auszahlungen aus der Finanzierungstätigkeit (SU 36) | G59: =BÜB!U78 -> 0 | K59: =+K60+K61 -> 0 | L59: =+L60+L61 -> 0 | M59: =+M60+M61 -> 0 | N59: 0 | O59: 0 | P59: 0 | Q59: 0 | R59: 0 | S59: 0 | T59: 0
A60: TRUE | B60: Eintrag | E60: davon Auszahlungen aus bestehenden Darlehen (Tilgung Bestand)
A61: TRUE | B61: Plan | E61: davon Auszahlungen aus Darlehen NEU (Tilgung geplante Darlehen) | K61: =IF(B4,'Investition-Finanzierung'!$L$15,0) -> 0 | L61: =IF(B4,'Investition-Finanzierung'!$M$15+'Investition-Finanzierung'!$L$40,0) -> 0 | M61: =IF(B4,'Investition-Finanzierung'!$N$15+'Investition-Finanzierung'!$M$40+'Investition-Finanzierung'!$L$65,0) -> 0 | N61: =IF(B4,'Investition-Finanzierung'!$O$15+'Investition-Finanzierung'!$N$40+'Investition-Finanzierung'!$M$65+'Investition-Finanzierung'!$L$90,0) -> 0 | O61: =IF(B4,'Investition-Finanzierung'!$P$15+'Investition-Finanzierung'!$O$40+'Investition-Finanzierung'!$N$65+'Investition-Finanzierung'!$M$90+'Investition-Finanzierung'!$L$115,0) -> 0 | P61: =IF(B4,'Investition-Finanzierung'!$Q$15+'Investition-Finanzierung'!$P$40+'Investition-Finanzierung'!$O$65+'Investition-Finanzierung'!$N$90+'Investition-Finanzierung'!$M$115+'Investition-Finanzierung'!$L$140,0) -> 0 | Q61: =IF(B4,'Investition-Finanzierung'!$R$15+'Investition-Finanzierung'!$Q$40+'Investition-Finanzierung'!$P$65+'Investition-Finanzierung'!$O$90+'Investition-Finanzierung'!$N$115+'Investition-Finanzierung'!$M$140+'Investition-Finanzierung'!$L$165,0) -> 0 | R61: =IF(B4,'Investition-Finanzierung'!$S$15+'Investition-Finanzierung'!$R$40+'Investition-Finanzierung'!$Q$65+'Investition-Finanzierung'!$P$90+'Investition-Finanzierung'!$O$115+'Investition-Finanzierung'!$N$140+'Investition-Finanzierung'!$M$165+'Investition-Finanzierung'!$L$190,0) -> 0 | S61: =IF(B4,'Investition-Finanzierung'!$T$15+'Investition-Finanzierung'!$S$40+'Investition-Finanzierung'!$R$65+'Investition-Finanzierung'!$Q$90+'Investition-Finanzierung'!$P$115+'Investition-Finanzierung'!$O$140+'Investition-Finanzierung'!$N$165+'Investition-Finanzierung'!$M$190+'Investition-Finanzierung'!$L$215,0) -> 0 | T61: =IF(B4,'Investition-Finanzierung'!$U$15+'Investition-Finanzierung'!$T$40+'Investition-Finanzierung'!$S$65+'Investition-Finanzierung'!$R$90+'Investition-Finanzierung'!$Q$115+'Investition-Finanzierung'!$P$140+'Investition-Finanzierung'!$O$165+'Investition-Finanzierung'!$N$190+'Investition-Finanzierung'!$M$215+'Investition-Finanzierung'!$L$240,0) -> 0
A62: TRUE | D62: SA 4 | E62: Saldo (4) Geldfluss aus der Finanzierungstätigkeit (35 - 36) | G62: =+G58-G59 -> 0 | H62: =SUM(H63:H85) -> 0 | K62: =+K58-K59 -> 0 | L62: =+L58-L59 -> 0 | M62: =+M58-M59 -> 0 | N62: 0 | O62: 0 | P62: 0 | Q62: 0 | R62: 0 | S62: 0 | T62: 0
A63: TRUE
A64: TRUE | D64: SA 5 | E64: Saldo (5) Geldfluss aus der voranschlagswirksamen Geb. (SA3 + SA4) | G64: =+G56+G62 -> 0 | H64: =SUM(H65:H85) -> 0 | K64: =+K62+K56 -> 0 | L64: =+L62+L56 -> 0 | M64: 0 | N64: 0 | O64: 0 | P64: 0 | Q64: 0 | R64: 0 | S64: 0 | T64: 0
A65: TRUE
A66: TRUE | B66: RL Bewegung | D66: Entnahmen von zweckgebundenen HH-Rücklagen (ZMR) für Investition | G66: =BÜB!J75+BÜB!J76 -> 0 | K66: =IF(B4,'Investition-Finanzierung'!$E$19,0) -> 0 | L66: =IF(B4,'Investition-Finanzierung'!E44,0) -> 0 | M66: =IF(B4,'Investition-Finanzierung'!E69,0) -> 0 | N66: =IF(B4,'Investition-Finanzierung'!E94,0) -> 0 | O66: =IF(B4,'Investition-Finanzierung'!E119,0) -> 0 | P66: =IF(B4,'Investition-Finanzierung'!E144,0) -> 0 | Q66: =IF(B4,'Investition-Finanzierung'!E169,0) -> 0 | R66: =IF(B4,'Investition-Finanzierung'!E194,0) -> 0 | S66: =IF(B4,'Investition-Finanzierung'!E219,0) -> 0 | T66: =IF(B4,'Investition-Finanzierung'!E244,0) -> 0
A67: TRUE | B67: Eintrag | D67: Zuweisung an HH-Rücklagen (ZMR) | G67: =(BÜB!J77+BÜB!J78)*-1 -> 0
A68: TRUE | D68: SA 5 +/- Rücklagen | G68: =+G64+G66-G67 -> 0 | K68: =+K64+K66-K67 -> 0 | L68: 0 | M68: 0 | N68: 0 | O68: 0 | P68: 0 | Q68: 0 | R68: 0 | S68: 0 | T68: 0
A69: TRUE
A70: TRUE | B70: Stand RL | D70: Stand HH Rücklagen per 31.12 | G70: =BÜB!U80 -> 0 | K70: =G70-K66+K67 -> 0 | L70: =K70-L66+L67 -> 0 | M70: =L70-M66+M67 -> 0 | N70: 0 | O70: 0 | P70: 0 | Q70: 0 | R70: 0 | S70: 0 | T70: 0
A71: TRUE | B71: Stand ZMR | D71: davon Stand ZMR (Sparbuch, Sparkonto) per 31.12. | G71: =BÜB!U81 -> 0 | K71: =G71-K66+K67-K73+K74 -> 0 | L71: =K71-L66+L67-L73+L74 -> 0 | M71: =L71-M66+M67-M73+M74 -> 0 | N71: 0 | O71: 0 | P71: 0 | Q71: 0 | R71: 0 | S71: 0 | T71: 0
A72: TRUE | B72: Stand IDL | D72: davon Stand vergebene Innere Darlehen per 31.12. | G72: =G70-G71 -> 0 | K72: =G72+K73-K74 -> 0 | L72: =K72+L73-L74 -> 0 | M72: =L72+M73-M74 -> 0 | N72: 0 | O72: 0 | P72: 0 | Q72: 0 | R72: 0 | S72: 0 | T72: 0
A73: TRUE | B73: Eintrag | D73: Neue Vergabe / Gewährung von Inneren Darlehen
A74: TRUE | B74: Eintrag | D74: Einzahlung aus der Rückzahlung vergebener / gewährter Innerer Darlehen an ZMR
A75: TRUE
A76: TRUE | B76: Aufnahme IDL | D76: Stand aufgenommenes / erhaltenes Inneres Darlehen | K76: =G76+K77-K78 -> 0 | L76: =K76+L77-L78 -> 0 | M76: =L76+M77-M78 -> 0 | N76: 0 | O76: 0 | P76: =O76+P77-P78 -> 0 | Q76: 0 | R76: 0 | S76: 0 | T76: 0
A77: TRUE | B77: Plan | D77: Neuaufnahme Innere Darlehen (von anderen Ansätzen) | K77: =IF(B4,'Investition-Finanzierung'!$E$24,0) -> 0 | L77: =IF(B4,'Investition-Finanzierung'!E49,0) -> 0 | M77: =IF(B4,'Investition-Finanzierung'!E74,0) -> 0 | N77: =IF(B4,'Investition-Finanzierung'!E99,0) -> 0 | O77: =IF(B4,'Investition-Finanzierung'!E124,0) -> 0 | P77: =IF(B4,'Investition-Finanzierung'!E149,0) -> 0 | Q77: =IF(B4,'Investition-Finanzierung'!E174,0) -> 0 | R77: =IF(B4,'Investition-Finanzierung'!E199,0) -> 0 | S77: =IF(B4,'Investition-Finanzierung'!E224,0) -> 0 | T77: =IF(B4,'Investition-Finanzierung'!E249,0) -> 0
A78: TRUE | B78: Plan | D78: Tilgung Innere Darlehen (Rückzahlung an andere Ansätze) | K78: =IF(B4,'Investition-Finanzierung'!$L$19,0) -> 0 | L78: =IF(B4,'Investition-Finanzierung'!$M$19+'Investition-Finanzierung'!$L$44,0) -> 0 | M78: =IF(B4,'Investition-Finanzierung'!$N$19+'Investition-Finanzierung'!$M$44+'Investition-Finanzierung'!$L$69,0) -> 0 | N78: =IF(B4,'Investition-Finanzierung'!$O$19+'Investition-Finanzierung'!$N$44+'Investition-Finanzierung'!$M$69+'Investition-Finanzierung'!$L$94,0) -> 0 | O78: =IF(B4,'Investition-Finanzierung'!$P$19+'Investition-Finanzierung'!$O$44+'Investition-Finanzierung'!$N$69+'Investition-Finanzierung'!$M$94+'Investition-Finanzierung'!$L$119,0) -> 0 | P78: =IF(B4,'Investition-Finanzierung'!$Q$19+'Investition-Finanzierung'!$P$44+'Investition-Finanzierung'!$O$69+'Investition-Finanzierung'!$N$94+'Investition-Finanzierung'!$M$119+'Investition-Finanzierung'!$L$144,0) -> 0 | Q78: =IF(B4,'Investition-Finanzierung'!$R$19+'Investition-Finanzierung'!$Q$44+'Investition-Finanzierung'!$P$69+'Investition-Finanzierung'!$O$94+'Investition-Finanzierung'!$N$119+'Investition-Finanzierung'!$M$144+'Investition-Finanzierung'!$L$169,0) -> 0 | R78: =IF(B4,'Investition-Finanzierung'!$S$19+'Investition-Finanzierung'!$R$44+'Investition-Finanzierung'!$Q$69+'Investition-Finanzierung'!$P$94+'Investition-Finanzierung'!$O$119+'Investition-Finanzierung'!$N$144+'Investition-Finanzierung'!$M$169+'Investition-Finanzierung'!$L$194,0) -> 0 | S78: =IF(B4,'Investition-Finanzierung'!$T$19+'Investition-Finanzierung'!$S$44+'Investition-Finanzierung'!$R$69+'Investition-Finanzierung'!$Q$94+'Investition-Finanzierung'!$P$119+'Investition-Finanzierung'!$O$144+'Investition-Finanzierung'!$N$169+'Investition-Finanzierung'!$M$194+'Investition-Finanzierung'!$L$219,0) -> 0 | T78: =IF(B4,'Investition-Finanzierung'!$U$19+'Investition-Finanzierung'!$T$44+'Investition-Finanzierung'!$S$69+'Investition-Finanzierung'!$R$94+'Investition-Finanzierung'!$Q$119+'Investition-Finanzierung'!$P$144+'Investition-Finanzierung'!$O$169+'Investition-Finanzierung'!$N$194+'Investition-Finanzierung'!$M$219+'Investition-Finanzierung'!$L$244,0) -> 0
A79: TRUE | B79: Plan | D79: Zinsen Innere Darlehen (Zahlung an andere Ansätze) | K79: =IF(B4,'Investition-Finanzierung'!$L$18,0) -> 0 | L79: =IF(B4,'Investition-Finanzierung'!$M$18+'Investition-Finanzierung'!$L$43,0) -> 0 | M79: =IF(B4,'Investition-Finanzierung'!$N$18+'Investition-Finanzierung'!$M$43+'Investition-Finanzierung'!$L$68,0) -> 0 | N79: =IF(B4,'Investition-Finanzierung'!$O$18+'Investition-Finanzierung'!$N$43+'Investition-Finanzierung'!$M$68+'Investition-Finanzierung'!$L$93,0) -> 0 | O79: =IF(B4,'Investition-Finanzierung'!$P$18+'Investition-Finanzierung'!$O$43+'Investition-Finanzierung'!$N$68+'Investition-Finanzierung'!$M$93+'Investition-Finanzierung'!$L$118,0) -> 0 | P79: =IF(B4,'Investition-Finanzierung'!$Q$18+'Investition-Finanzierung'!$P$43+'Investition-Finanzierung'!$O$68+'Investition-Finanzierung'!$N$93+'Investition-Finanzierung'!$M$118+'Investition-Finanzierung'!$L$143,0) -> 0 | Q79: =IF(B4,'Investition-Finanzierung'!$R$18+'Investition-Finanzierung'!$Q$43+'Investition-Finanzierung'!$P$68+'Investition-Finanzierung'!$O$93+'Investition-Finanzierung'!$N$118+'Investition-Finanzierung'!$M$143+'Investition-Finanzierung'!$L$168,0) -> 0 | R79: =IF(B4,'Investition-Finanzierung'!$S$18+'Investition-Finanzierung'!$R$43+'Investition-Finanzierung'!$Q$68+'Investition-Finanzierung'!$P$93+'Investition-Finanzierung'!$O$118+'Investition-Finanzierung'!$N$143+'Investition-Finanzierung'!$M$168+'Investition-Finanzierung'!$L$193,0) -> 0 | S79: =IF(B4,'Investition-Finanzierung'!$T$18+'Investition-Finanzierung'!$S$43+'Investition-Finanzierung'!$R$68+'Investition-Finanzierung'!$Q$93+'Investition-Finanzierung'!$P$118+'Investition-Finanzierung'!$O$143+'Investition-Finanzierung'!$N$168+'Investition-Finanzierung'!$M$193+'Investition-Finanzierung'!$L$218,0) -> 0 | T79: =IF(B4,'Investition-Finanzierung'!$U$18+'Investition-Finanzierung'!$T$43+'Investition-Finanzierung'!$S$68+'Investition-Finanzierung'!$R$93+'Investition-Finanzierung'!$Q$118+'Investition-Finanzierung'!$P$143+'Investition-Finanzierung'!$O$168+'Investition-Finanzierung'!$N$193+'Investition-Finanzierung'!$M$218+'Investition-Finanzierung'!$L$243,0) -> 0
A80: TRUE
A81: TRUE | B81: Geldmittel | D81: Giro- / Geldmittelstand Ansatz 851 (ohne ZMR) per 31.12. - p.a. | G81: 0 | K81: =K68+K77-K78-K79 -> 0 | L81: =L68+L77-L78-L79 -> 0 | M81: 0 | N81: 0 | O81: 0 | P81: 0 | Q81: 0 | R81: 0 | S81: 0 | T81: 0
A82: TRUE | B82: Geldmittel | D82: Giro- / Geldmittelstand Ansatz 851 (ohne ZMR) kumulativ per 31.12. | K82: =$G$82+K81 -> 0 | L82: =K82+L81 -> 0 | M82: =L82+M81 -> 0 | N82: 0 | O82: 0 | P82: 0 | Q82: 0 | R82: 0 | S82: 0 | T82: 0
A83: TRUE
A84: TRUE | D84: Liquide Mittel Ansatz 851 per 31.12. | G84: =G71+G82 -> 0 | K84: =K71+K82 -> 0 | L84: 0 | M84: 0 | N84: 0 | O84: 0 | P84: 0 | Q84: 0 | R84: 0 | S84: 0 | T84: 0
A85: Ende

Sheet Investition-Finanzierung
A1: FALSE | B1: Ende
A2: FALSE | B2: Investition-Finanzierung
A3: FALSE | B3: Ende
A4: TRUE
A5: TRUE | C5: =CONCATENATE("Investition-Finanzierung Abwasserentsorgung Rechnungsabschluss "&wST.Jahr," KLR-Ebene: "&wST.KLR_Ebene) -> Investition-Finanzierung Abwasserentsorgung Rechnungsabschluss 2024 KLR-Ebene:
A6: TRUE | C6: (Re)Investitions- und Finanzierungspläne (10 Jahre) | L6: Ermittlung Liquiditätserfordernis aus Investitions- und Finanzierungsplanung
A7: TRUE
A8: TRUE | C8: Investitions- und Finanzierungsplan | F8: =YEAR(Info!G17)+1 -> 2025 | I8: Finanzschulden | L8: =+F8 -> 2025 | M8: =L8+1 -> 2026 | N8: 2027 | O8: 2028 | P8: 2029 | Q8: 2030 | R8: 2031 | S8: 2032 | T8: 2033 | U8: 2034
A9: TRUE | C9: Neuerrichtung, Erweiterung
A10: TRUE | C10: Leitungskataster | I10: DL1 | J10: Zinsen | L10: =IF(AND(L8>$F8,L8<($F8+$F22+1)),IPMT($G22,L8-$F8,$F22,-$E22),0) -> 0 | M10: =IF(AND(M8>$F8,M8<($F8+$F22+1)),IPMT($G22,M8-$F8,$F22,-$E22),0) -> 0 | N10: =IF(AND(N8>$F8,N8<($F8+$F22+1)),IPMT($G22,N8-$F8,$F22,-$E22),0) -> 0 | O10: =IF(AND(O8>$F8,O8<($F8+$F22+1)),IPMT($G22,O8-$F8,$F22,-$E22),0) -> 0 | P10: =IF(AND(P8>$F8,P8<($F8+$F22+1)),IPMT($G22,P8-$F8,$F22,-$E22),0) -> 0 | Q10: =IF(AND(Q8>$F8,Q8<($F8+$F22+1)),IPMT($G22,Q8-$F8,$F22,-$E22),0) -> 0 | R10: 0 | S10: 0 | T10: 0 | U10: 0
A11: TRUE | C11: Sanierung / Anpassung | J11: Tilgung | L11: =IF(AND(L8>$F8,L8<($F8+$F22+1)), PPMT($G22,L8-$F8,$F22,-$E22),0) -> 0 | M11: =IF(AND(M8>$F8,M8<($F8+$F22+1)), PPMT($G22,M8-$F8,$F22,-$E22),0) -> 0 | N11: =IF(AND(N8>$F8,N8<($F8+$F22+1)), PPMT($G22,N8-$F8,$F22,-$E22),0) -> 0 | O11: =IF(AND(O8>$F8,O8<($F8+$F22+1)), PPMT($G22,O8-$F8,$F22,-$E22),0) -> 0 | P11: =IF(AND(P8>$F8,P8<($F8+$F22+1)), PPMT($G22,P8-$F8,$F22,-$E22),0) -> 0 | Q11: 0 | R11: 0 | S11: 0 | T11: 0 | U11: 0
A12: TRUE | C12: Summe Auszahlung aus der Investitonstätigkeit | E12: =SUM(E9:E11) -> 0 | I12: DL2 | J12: Zinsen | L12: =IF(AND(L8>$F8,L8<($F8+$F23+1)),IPMT($G23,L8-$F8,$F23,-$E23),0) -> 0 | M12: =IF(AND(M8>$F8,M8<($F8+$F23+1)),IPMT($G23,M8-$F8,$F23,-$E23),0) -> 0 | N12: =IF(AND(N8>$F8,N8<($F8+$F23+1)),IPMT($G23,N8-$F8,$F23,-$E23),0) -> 0 | O12: =IF(AND(O8>$F8,O8<($F8+$F23+1)),IPMT($G23,O8-$F8,$F23,-$E23),0) -> 0 | P12: 0 | Q12: 0 | R12: 0 | S12: 0 | T12: 0 | U12: 0
A13: TRUE | C13: Auszahlung von Kapitaltransfers (zB kooperative Vorhaben) | J13: Tilgung | L13: =IF(AND(L8>$F8,L8<($F8+$F23+1)),PPMT($G23,L8-$F8,$F23,-$E23),0) -> 0 | M13: =IF(AND(M8>$F8,M8<($F8+$F23+1)),PPMT($G23,M8-$F8,$F23,-$E23),0) -> 0 | N13: 0 | O13: 0 | P13: 0 | Q13: 0 | R13: 0 | S13: 0 | T13: 0 | U13: 0
A14: TRUE | C14: Einzahlung aus der Investitonstätigkeit (Veräußerungen) | I14: Summe Zinsen DL1+DL2 | L14: =+L10+L12 -> 0 | M14: =+M10+M12 -> 0 | N14: 0 | O14: 0 | P14: 0 | Q14: 0 | R14: 0 | S14: 0 | T14: 0 | U14: 0
A15: TRUE | C15: Einzahlung Kapitaltransfers (IZ Investitionszuschüsse) | I15: Summe Tilgung DL1+DL2 | L15: =+L11+L13 -> 0 | M15: 0 | N15: 0 | O15: 0 | P15: 0 | Q15: 0 | R15: 0 | S15: 0 | T15: 0 | U15: 0
A16: TRUE | C16: Einzahlung Kapitaltransfers (Interessentenbeiträge)
A17: TRUE | C17: Einzahlung Kapitaltransfers (Sonstiges) | I17: Inneres Darlehen
A18: TRUE | C18: Mittel aus OGB für Investitionen (Überschuss nach freier Finanzspitze) | I18: Zinsen Inneres Darlehen IDL | L18: =IF(AND(L8>$F8,L8<($F8+$F24+1)),IPMT($G24,L8-$F8,$F24,-$E24),0) -> 0 | M18: =IF(AND(M8>$F8,M8<($F8+$F24+1)),IPMT($G24,M8-$F8,$F24,-$E24),0) -> 0 | N18: 0 | O18: 0 | P18: 0 | Q18: 0 | R18: 0 | S18: 0 | T18: 0 | U18: 0
A19: TRUE | C19: Entnahmen aus Rücklagen (ZMR) | I19: Tilgung Inneres Darlehen IDL | L19: =IF(AND(L8>$F8,L8<($F8+$F24+1)),PPMT($G24,L8-$F8,$F24,-$E24),0) -> 0 | M19: =IF(AND(M8>$F8,M8<($F8+$F24+1)),PPMT($G24,M8-$F8,$F24,-$E24),0) -> 0 | N19: 0 | O19: 0 | P19: 0 | Q19: 0 | R19: 0 | S19: 0 | T19: 0 | U19: 0
A20: TRUE | C20: Einzahlung aus vorhandenen zweckgebundenen Girokonten
A21: TRUE | F21: LZ in J | G21: Zinssatz | I21: Finanzierungszuschüsse
A22: TRUE | C22: Einzahlung aus Darlehensaufnahme 1 (DL1) / (Finanzierungsleasing) | I22: Perioden Zahlung
A23: TRUE | C23: Einzahlung aus Darlehensaufnahme 2 (DL2) / (Finanzierungsleasing) | I23: FZ Zi | J23: Zinsenzuschuss | L23: =IF(L8>$F8,IF(ISERROR(IPMT($G27,L8-$F8,$F27,-$E27)),0,IPMT($G27,L8-$F8,$F27,-$E27)),0) -> 0 | M23: =IF(M8>$F8,IF(ISERROR(IPMT($G27,M8-$F8,$F27,-$E27)),0,IPMT($G27,M8-$F8,$F27,-$E27)),0) -> 0 | N23: =IF(N8>$F8,IF(ISERROR(IPMT($G27,N8-$F8,$F27,-$E27)),0,IPMT($G27,N8-$F8,$F27,-$E27)),0) -> 0 | O23: 0 | P23: 0 | Q23: 0 | R23: 0 | S23: 0 | T23: 0 | U23: 0
A24: TRUE | C24: Einzahlung aus Aufnahme Inneres Darlehen (IDL) | I24: FZ Bw | J24: Bw Zuschuss | L24: =IF(L8>$F8,IF(ISERROR(PPMT($G27,L8-$F8,$F27,-$E27)),0,PPMT($G27,L8-$F8,$F27,-$E27)),0) -> 0 | M24: =IF(M8>$F8,IF(ISERROR(PPMT($G27,M8-$F8,$F27,-$E27)),0,PPMT($G27,M8-$F8,$F27,-$E27)),0) -> 0 | N24: 0 | O24: 0 | P24: 0 | Q24: 0 | R24: 0 | S24: 0 | T24: 0 | U24: 0
A25: TRUE | C25: Schlüssige Finanzierung | E25: =-E12-E13+E14+E15+E16+E17+E18+E19+E20+E22+E23+E24 -> 0 | I25: Summe Zuschuss FZ | L25: =+L24+L23 -> 0 | M25: 0 | N25: 0 | O25: 0 | P25: 0 | Q25: 0 | R25: 0 | S25: 0 | T25: 0 | U25: 0
A26: TRUE | F26: LZ FZ in J | G26: Barwertzinssatz
A27: TRUE | C27: Finanzierungszusch. FZ (lt. Förderv.) - Zwischenfinanzierung erforderlich | I27: Bauzinsen (DL1 + DL2) | L27: =+F28 -> 0
A28: TRUE | C28: Bauzinsen während der Bauphase | E28: (DL1 + DL2) / 2 * Zinssatz | F28: =+(E23+E22)/2*G28 -> 0 | I28: Betriebskosten | L28: 0 | M28: =+E29 -> 0 | N28: =M28*(1+G29) -> 0 | O28: =N28*(1+G29) -> 0 | P28: =O28*(1+G29) -> 0 | Q28: =P28*(1+G29) -> 0 | R28: =Q28*(1+G29) -> 0 | S28: =R28*(1+G29) -> 0 | T28: =S28*(1+G29) -> 0 | U28: =T28*(1+G29) -> 0
A29: TRUE | C29: Betriebskostenveränderung (+/-) durch Invest. | F29: Steigerung p.a.
A30: TRUE
A31: TRUE | C31: Liquiditätserfordernis aus Investitionstätigkeit (ohne Rückzahlung Inneres Darlehen) | I31: SU | L31: =L14+L15-L25+L27+L28 -> 0 | M31: 0 | N31: 0 | O31: 0 | P31: 0 | Q31: 0 | R31: 0 | S31: 0 | T31: 0 | U31: 0
A32: TRUE
A33: TRUE | C33: Investitions- und Finanzierungsplan | F33: =F8+1 -> 2026 | I33: Finanzschulden | L33: =+F33 -> 2026 | M33: =L33+1 -> 2027 | N33: 2028 | O33: 2029 | P33: 2030 | Q33: 2031 | R33: 2032 | S33: 2033 | T33: 2034 | U33: 2035
A34: TRUE | C34: Neuerrichtung, Erweiterung
A35: TRUE | C35: Leitungskataster | I35: DL1 | J35: Zinsen | L35: =IF(AND(L33>$F33,L33<($F33+$F47+1)),IPMT($G47,L33-$F33,$F47,-$E47),0) -> 0 | M35: =IF(AND(M33>$F33,M33<($F33+$F47+1)),IPMT($G47,M33-$F33,$F47,-$E47),0) -> 0 | N35: =IF(AND(N33>$F33,N33<($F33+$F47+1)),IPMT($G47,N33-$F33,$F47,-$E47),0) -> 0 | O35: =IF(AND(O33>$F33,O33<($F33+$F47+1)),IPMT($G47,O33-$F33,$F47,-$E47),0) -> 0 | P35: =IF(AND(P33>$F33,P33<($F33+$F47+1)),IPMT($G47,P33-$F33,$F47,-$E47),0) -> 0 | Q35: =IF(AND(Q33>$F33,Q33<($F33+$F47+1)),IPMT($G47,Q33-$F33,$F47,-$E47),0) -> 0 | R35: 0 | S35: 0 | T35: 0 | U35: 0
A36: TRUE | C36: Sanierung / Anpassung | J36: Tilgung | L36: =IF(AND(L33>$F33,L33<($F33+$F47+1)), PPMT($G47,L33-$F33,$F47,-$E47),0) -> 0 | M36: =IF(AND(M33>$F33,M33<($F33+$F47+1)), PPMT($G47,M33-$F33,$F47,-$E47),0) -> 0 | N36: =IF(AND(N33>$F33,N33<($F33+$F47+1)), PPMT($G47,N33-$F33,$F47,-$E47),0) -> 0 | O36: =IF(AND(O33>$F33,O33<($F33+$F47+1)), PPMT($G47,O33-$F33,$F47,-$E47),0) -> 0 | P36: =IF(AND(P33>$F33,P33<($F33+$F47+1)), PPMT($G47,P33-$F33,$F47,-$E47),0) -> 0 | Q36: 0 | R36: 0 | S36: 0 | T36: 0 | U36: 0
A37: TRUE | C37: Summe Auszahlung aus der Investitonstätigkeit | E37: =SUM(E34:E36) -> 0 | I37: DL2 | J37: Zinsen | L37: =IF(AND(L33>$F33,L33<($F33+$F48+1)),IPMT($G48,L33-$F33,$F48,-$E48),0) -> 0 | M37: =IF(AND(M33>$F33,M33<($F33+$F48+1)),IPMT($G48,M33-$F33,$F48,-$E48),0) -> 0 | N37: =IF(AND(N33>$F33,N33<($F33+$F48+1)),IPMT($G48,N33-$F33,$F48,-$E48),0) -> 0 | O37: =IF(AND(O33>$F33,O33<($F33+$F48+1)),IPMT($G48,O33-$F33,$F48,-$E48),0) -> 0 | P37: 0 | Q37: 0 | R37: 0 | S37: 0 | T37: 0 | U37: 0
A38: TRUE | C38: Auszahlung von Kapitaltransfers (zB kooperative Vorhaben) | J38: Tilgung | L38: =IF(AND(L33>$F33,L33<($F33+$F48+1)),PPMT($G48,L33-$F33,$F48,-$E48),0) -> 0 | M38: =IF(AND(M33>$F33,M33<($F33+$F48+1)),PPMT($G48,M33-$F33,$F48,-$E48),0) -> 0 | N38: 0 | O38: 0 | P38: 0 | Q38: 0 | R38: 0 | S38: 0 | T38: 0 | U38: 0
A39: TRUE | C39: Einzahlung aus der Investitonstätigkeit (Veräußerungen) | I39: Summe Zinsen DL1+DL2 | L39: =+L35+L37 -> 0 | M39: =+M35+M37 -> 0 | N39: 0 | O39: 0 | P39: 0 | Q39: 0 | R39: 0 | S39: 0 | T39: 0 | U39: 0
A40: TRUE | C40: Einzahlung Kapitaltransfers (IZ Investitionszuschüsse) | I40: Summe Tilgung DL1+DL2 | L40: =+L36+L38 -> 0 | M40: 0 | N40: 0 | O40: 0 | P40: 0 | Q40: 0 | R40: 0 | S40: 0 | T40: 0 | U40: 0
A41: TRUE | C41: Einzahlung Kapitaltransfers (Interessentenbeiträge)
A42: TRUE | C42: Einzahlung Kapitaltransfers (Sonstiges) | I42: Inneres Darlehen
A43: TRUE | C43: Mittel aus OGB für Investitionen (Überschuss nach freier Finanzspitze) | I43: Zinsen Inneres Darlehen IDL | L43: =IF(AND(L33>$F33,L33<($F33+$F49+1)),IPMT($G49,L33-$F33,$F49,-$E49),0) -> 0 | M43: =IF(AND(M33>$F33,M33<($F33+$F49+1)),IPMT($G49,M33-$F33,$F49,-$E49),0) -> 0 | N43: 0 | O43: 0 | P43: 0 | Q43: 0 | R43: 0 | S43: 0 | T43: 0 | U43: 0
A44: TRUE | C44: Entnahmen aus Rücklagen (ZMR) | I44: Tilgung Inneres Darlehen IDL | L44: =IF(AND(L33>$F33,L33<($F33+$F49+1)),PPMT($G49,L33-$F33,$F49,-$E49),0) -> 0 | M44: =IF(AND(M33>$F33,M33<($F33+$F49+1)),PPMT($G49,M33-$F33,$F49,-$E49),0) -> 0 | N44: 0 | O44: 0 | P44: 0 | Q44: 0 | R44: 0 | S44: 0 | T44: 0 | U44: 0
A45: TRUE | C45: Einzahlung aus vorhandenen zweckgebundenen Girokonten
A46: TRUE | F46: LZ in J | G46: Zinssatz | I46: Finanzierungszuschüsse
A47: TRUE | C47: Einzahlung aus Darlehensaufnahme 1 (DL1) / (Finanzierungsleasing) | I47: Perioden Zahlung
A48: TRUE | C48: Einzahlung aus Darlehensaufnahme 2 (DL2) / (Finanzierungsleasing) | I48: FZ Zi | J48: Zinsenzuschuss | L48: =IF(L33>$F33,IF(ISERROR(IPMT($G52,L33-$F33,$F52,-$E52)),0,IPMT($G52,L33-$F33,$F52,-$E52)),0) -> 0 | M48: =IF(M33>$F33,IF(ISERROR(IPMT($G52,M33-$F33,$F52,-$E52)),0,IPMT($G52,M33-$F33,$F52,-$E52)),0) -> 0 | N48: =IF(N33>$F33,IF(ISERROR(IPMT($G52,N33-$F33,$F52,-$E52)),0,IPMT($G52,N33-$F33,$F52,-$E52)),0) -> 0 | O48: 0 | P48: 0 | Q48: 0 | R48: 0 | S48: 0 | T48: 0 | U48: 0
A49: TRUE | C49: Einzahlung aus Aufnahme Inneres Darlehen (IDL) | I49: FZ Bw | J49: Bw Zuschuss | L49: =IF(L33>$F33,IF(ISERROR(PPMT($G52,L33-$F33,$F52,-$E52)),0,PPMT($G52,L33-$F33,$F52,-$E52)),0) -> 0 | M49: =IF(M33>$F33,IF(ISERROR(PPMT($G52,M33-$F33,$F52,-$E52)),0,PPMT($G52,M33-$F33,$F52,-$E52)),0) -> 0 | N49: 0 | O49: 0 | P49: 0 | Q49: 0 | R49: 0 | S49: 0 | T49: 0 | U49: 0
A50: TRUE | C50: Schlüssige Finanzierung | E50: =-E37-E38+E39+E40+E41+E42+E43+E44+E45+E47+E48+E49 -> 0 | I50: Summe Zuschuss FZ | L50: =+L49+L48 -> 0 | M50: 0 | N50: 0 | O50: 0 | P50: 0 | Q50: 0 | R50: 0 | S50: 0 | T50: 0 | U50: 0
A51: TRUE | F51: LZ FZ in J | G51: Barwertzinssatz
A52: TRUE | C52: Finanzierungszusch. FZ (lt. Förderv.) - Zwischenfinanzierung erforderlich | I52: Bauzinsen (DL1 + DL2) | L52: =+F53 -> 0
A53: TRUE | C53: Bauzinsen während der Bauphase | E53: (DL1 + DL2) / 2 * Zinssatz | F53: =+(E48+E47)/2*G53 -> 0 | I53: Betriebskosten | L53: 0 | M53: =+E54 -> 0 | N53: =M53*(1+G54) -> 0 | O53: =N53*(1+G54) -> 0 | P53: =O53*(1+G54) -> 0 | Q53: =P53*(1+G54) -> 0 | R53: =Q53*(1+G54) -> 0 | S53: =R53*(1+G54) -> 0 | T53: =S53*(1+G54) -> 0 | U53: =T53*(1+G54) -> 0
A54: TRUE | C54: Betriebskostenveränderung (+/-) durch Invest. | F54: Steigerung p.a.
A55: TRUE
A56: TRUE | C56: Liquiditätserfordernis aus Investitionstätigkeit (ohne Rückzahlung Inneres Darlehen) | I56: SU | L56: =L39+L40-L50+L52+L53 -> 0 | M56: 0 | N56: 0 | O56: 0 | P56: 0 | Q56: 0 | R56: 0 | S56: 0 | T56: 0 | U56: 0
A57: TRUE
A58: TRUE | C58: Investitions- und Finanzierungsplan | F58: =F33+1 -> 2027 | I58: Finanzschulden | L58: =+F58 -> 2027 | M58: =L58+1 -> 2028 | N58: 2029 | O58: 2030 | P58: 2031 | Q58: 2032 | R58: 2033 | S58: 2034 | T58: 2035 | U58: 2036
A59: TRUE | C59: Neuerrichtung, Erweiterung
A60: TRUE | C60: Leitungskataster | I60: DL1 | J60: Zinsen | L60: =IF(AND(L58>$F58,L58<($F58+$F72+1)),IPMT($G72,L58-$F58,$F72,-$E72),0) -> 0 | M60: =IF(AND(M58>$F58,M58<($F58+$F72+1)),IPMT($G72,M58-$F58,$F72,-$E72),0) -> 0 | N60: =IF(AND(N58>$F58,N58<($F58+$F72+1)),IPMT($G72,N58-$F58,$F72,-$E72),0) -> 0 | O60: =IF(AND(O58>$F58,O58<($F58+$F72+1)),IPMT($G72,O58-$F58,$F72,-$E72),0) -> 0 | P60: =IF(AND(P58>$F58,P58<($F58+$F72+1)),IPMT($G72,P58-$F58,$F72,-$E72),0) -> 0 | Q60: =IF(AND(Q58>$F58,Q58<($F58+$F72+1)),IPMT($G72,Q58-$F58,$F72,-$E72),0) -> 0 | R60: 0 | S60: 0 | T60: 0 | U60: 0
A61: TRUE | C61: Sanierung / Anpassung | J61: Tilgung | L61: =IF(AND(L58>$F58,L58<($F58+$F72+1)), PPMT($G72,L58-$F58,$F72,-$E72),0) -> 0 | M61: =IF(AND(M58>$F58,M58<($F58+$F72+1)), PPMT($G72,M58-$F58,$F72,-$E72),0) -> 0 | N61: =IF(AND(N58>$F58,N58<($F58+$F72+1)), PPMT($G72,N58-$F58,$F72,-$E72),0) -> 0 | O61: =IF(AND(O58>$F58,O58<($F58+$F72+1)), PPMT($G72,O58-$F58,$F72,-$E72),0) -> 0 | P61: =IF(AND(P58>$F58,P58<($F58+$F72+1)), PPMT($G72,P58-$F58,$F72,-$E72),0) -> 0 | Q61: 0 | R61: 0 | S61: 0 | T61: 0 | U61: 0
A62: TRUE | C62: Summe Auszahlung aus der Investitonstätigkeit | E62: =SUM(E59:E61) -> 0 | I62: DL2 | J62: Zinsen | L62: =IF(AND(L58>$F58,L58<($F58+$F73+1)),IPMT($G73,L58-$F58,$F73,-$E73),0) -> 0 | M62: =IF(AND(M58>$F58,M58<($F58+$F73+1)),IPMT($G73,M58-$F58,$F73,-$E73),0) -> 0 | N62: =IF(AND(N58>$F58,N58<($F58+$F73+1)),IPMT($G73,N58-$F58,$F73,-$E73),0) -> 0 | O62: =IF(AND(O58>$F58,O58<($F58+$F73+1)),IPMT($G73,O58-$F58,$F73,-$E73),0) -> 0 | P62: 0 | Q62: 0 | R62: 0 | S62: 0 | T62: 0 | U62: 0
A63: TRUE | C63: Auszahlung von Kapitaltransfers (zB kooperative Vorhaben) | J63: Tilgung | L63: =IF(AND(L58>$F58,L58<($F58+$F73+1)),PPMT($G73,L58-$F58,$F73,-$E73),0) -> 0 | M63: =IF(AND(M58>$F58,M58<($F58+$F73+1)),PPMT($G73,M58-$F58,$F73,-$E73),0) -> 0 | N63: 0 | O63: 0 | P63: 0 | Q63: 0 | R63: 0 | S63: 0 | T63: 0 | U63: 0
A64: TRUE | C64: Einzahlung aus der Investitonstätigkeit (Veräußerungen) | I64: Summe Zinsen DL1+DL2 | L64: =+L60+L62 -> 0 | M64: =+M60+M62 -> 0 | N64: 0 | O64: 0 | P64: 0 | Q64: 0 | R64: 0 | S64: 0 | T64: 0 | U64: 0
A65: TRUE | C65: Einzahlung Kapitaltransfers (IZ Investitionszuschüsse) | I65: Summe Tilgung DL1+DL2 | L65: =+L61+L63 -> 0 | M65: 0 | N65: 0 | O65: 0 | P65: 0 | Q65: 0 | R65: 0 | S65: 0 | T65: 0 | U65: 0
A66: TRUE | C66: Einzahlung Kapitaltransfers (Interessentenbeiträge)
A67: TRUE | C67: Einzahlung Kapitaltransfers (Sonstiges) | I67: Inneres Darlehen
A68: TRUE | C68: Mittel aus OGB für Investitionen (Überschuss nach freier Finanzspitze) | I68: Zinsen Inneres Darlehen IDL | L68: =IF(AND(L58>$F58,L58<($F58+$F74+1)),IPMT($G74,L58-$F58,$F74,-$E74),0) -> 0 | M68: =IF(AND(M58>$F58,M58<($F58+$F74+1)),IPMT($G74,M58-$F58,$F74,-$E74),0) -> 0 | N68: 0 | O68: 0 | P68: 0 | Q68: 0 | R68: 0 | S68: 0 | T68: 0 | U68: 0
A69: TRUE | C69: Entnahmen aus Rücklagen (ZMR) | I69: Tilgung Inneres Darlehen IDL | L69: =IF(AND(L58>$F58,L58<($F58+$F74+1)),PPMT($G74,L58-$F58,$F74,-$E74),0) -> 0 | M69: =IF(AND(M58>$F58,M58<($F58+$F74+1)),PPMT($G74,M58-$F58,$F74,-$E74),0) -> 0 | N69: 0 | O69: 0 | P69: 0 | Q69: 0 | R69: 0 | S69: 0 | T69: 0 | U69: 0
A70: TRUE | C70: Einzahlung aus vorhandenen zweckgebundenen Girokonten
A71: TRUE | F71: LZ in J | G71: Zinssatz | I71: Finanzierungszuschüsse
A72: TRUE | C72: Einzahlung aus Darlehensaufnahme 1 (DL1) / (Finanzierungsleasing) | I72: Perioden Zahlung
A73: TRUE | C73: Einzahlung aus Darlehensaufnahme 2 (DL2) / (Finanzierungsleasing) | I73: FZ Zi | J73: Zinsenzuschuss | L73: =IF(L58>$F58,IF(ISERROR(IPMT($G77,L58-$F58,$F77,-$E77)),0,IPMT($G77,L58-$F58,$F77,-$E77)),0) -> 0 | M73: =IF(M58>$F58,IF(ISERROR(IPMT($G77,M58-$F58,$F77,-$E77)),0,IPMT($G77,M58-$F58,$F77,-$E77)),0) -> 0 | N73: =IF(N58>$F58,IF(ISERROR(IPMT($G77,N58-$F58,$F77,-$E77)),0,IPMT($G77,N58-$F58,$F77,-$E77)),0) -> 0 | O73: 0 | P73: 0 | Q73: 0 | R73: 0 | S73: 0 | T73: 0 | U73: 0
A74: TRUE | C74: Einzahlung aus Aufnahme Inneres Darlehen (IDL) | I74: FZ Bw | J74: Bw Zuschuss | L74: =IF(L58>$F58,IF(ISERROR(PPMT($G77,L58-$F58,$F77,-$E77)),0,PPMT($G77,L58-$F58,$F77,-$E77)),0) -> 0 | M74: =IF(M58>$F58,IF(ISERROR(PPMT($G77,M58-$F58,$F77,-$E77)),0,PPMT($G77,M58-$F58,$F77,-$E77)),0) -> 0 | N74: 0 | O74: 0 | P74: 0 | Q74: 0 | R74: 0 | S74: 0 | T74: 0 | U74: 0
A75: TRUE | C75: Schlüssige Finanzierung | E75: =-E62-E63+E64+E65+E66+E67+E68+E69+E70+E72+E73+E74 -> 0 | I75: Summe Zuschuss FZ | L75: =+L74+L73 -> 0 | M75: 0 | N75: 0 | O75: 0 | P75: 0 | Q75: 0 | R75: 0 | S75: 0 | T75: 0 | U75: 0
A76: TRUE | F76: LZ FZ in J | G76: Barwertzinssatz
A77: TRUE | C77: Finanzierungszusch. FZ (lt. Förderv.) - Zwischenfinanzierung erforderlich | I77: Bauzinsen (DL1 + DL2) | L77: =+F78 -> 0
A78: TRUE | C78: Bauzinsen während der Bauphase | E78: (DL1 + DL2) / 2 * Zinssatz | F78: =+(E73+E72)/2*G78 -> 0 | I78: Betriebskosten | L78: 0 | M78: =+E79 -> 0 | N78: =M78*(1+G79) -> 0 | O78: =N78*(1+G79) -> 0 | P78: =O78*(1+G79) -> 0 | Q78: =P78*(1+G79) -> 0 | R78: =Q78*(1+G79) -> 0 | S78: =R78*(1+G79) -> 0 | T78: =S78*(1+G79) -> 0 | U78: =T78*(1+G79) -> 0
A79: TRUE | C79: Betriebskostenveränderung (+/-) durch Invest. | F79: Steigerung p.a.
A80: TRUE
A81: TRUE | C81: Liquiditätserfordernis aus Investitionstätigkeit (ohne Rückzahlung Inneres Darlehen) | I81: SU | L81: =L64+L65-L75+L77+L78 -> 0 | M81: 0 | N81: 0 | O81: 0 | P81: 0 | Q81: 0 | R81: 0 | S81: 0 | T81: 0 | U81: 0
A82: TRUE
A83: TRUE | C83: Investitions- und Finanzierungsplan | F83: =F58+1 -> 2028 | I83: Finanzschulden | L83: =+F83 -> 2028 | M83: =L83+1 -> 2029 | N83: 2030 | O83: 2031 | P83: 2032 | Q83: 2033 | R83: 2034 | S83: 2035 | T83: 2036 | U83: 2037
A84: TRUE | C84: Neuerrichtung, Erweiterung
A85: TRUE | C85: Leitungskataster | I85: DL1 | J85: Zinsen | L85: =IF(AND(L83>$F83,L83<($F83+$F97+1)),IPMT($G97,L83-$F83,$F97,-$E97),0) -> 0 | M85: =IF(AND(M83>$F83,M83<($F83+$F97+1)),IPMT($G97,M83-$F83,$F97,-$E97),0) -> 0 | N85: =IF(AND(N83>$F83,N83<($F83+$F97+1)),IPMT($G97,N83-$F83,$F97,-$E97),0) -> 0 | O85: =IF(AND(O83>$F83,O83<($F83+$F97+1)),IPMT($G97,O83-$F83,$F97,-$E97),0) -> 0 | P85: =IF(AND(P83>$F83,P83<($F83+$F97+1)),IPMT($G97,P83-$F83,$F97,-$E97),0) -> 0 | Q85: =IF(AND(Q83>$F83,Q83<($F83+$F97+1)),IPMT($G97,Q83-$F83,$F97,-$E97),0) -> 0 | R85: 0 | S85: 0 | T85: 0 | U85: 0
A86: TRUE | C86: Sanierung / Anpassung | J86: Tilgung | L86: =IF(AND(L83>$F83,L83<($F83+$F97+1)), PPMT($G97,L83-$F83,$F97,-$E97),0) -> 0 | M86: =IF(AND(M83>$F83,M83<($F83+$F97+1)), PPMT($G97,M83-$F83,$F97,-$E97),0) -> 0 | N86: =IF(AND(N83>$F83,N83<($F83+$F97+1)), PPMT($G97,N83-$F83,$F97,-$E97),0) -> 0 | O86: =IF(AND(O83>$F83,O83<($F83+$F97+1)), PPMT($G97,O83-$F83,$F97,-$E97),0) -> 0 | P86: =IF(AND(P83>$F83,P83<($F83+$F97+1)), PPMT($G97,P83-$F83,$F97,-$E97),0) -> 0 | Q86: 0 | R86: 0 | S86: 0 | T86: 0 | U86: 0
A87: TRUE | C87: Summe Auszahlung aus der Investitonstätigkeit | E87: =SUM(E84:E86) -> 0 | I87: DL2 | J87: Zinsen | L87: =IF(AND(L83>$F83,L83<($F83+$F98+1)),IPMT($G98,L83-$F83,$F98,-$E98),0) -> 0 | M87: =IF(AND(M83>$F83,M83<($F83+$F98+1)),IPMT($G98,M83-$F83,$F98,-$E98),0) -> 0 | N87: =IF(AND(N83>$F83,N83<($F83+$F98+1)),IPMT($G98,N83-$F83,$F98,-$E98),0) -> 0 | O87: =IF(AND(O83>$F83,O83<($F83+$F98+1)),IPMT($G98,O83-$F83,$F98,-$E98),0) -> 0 | P87: 0 | Q87: 0 | R87: 0 | S87: 0 | T87: 0 | U87: 0
A88: TRUE | C88: Auszahlung von Kapitaltransfers (zB kooperative Vorhaben) | J88: Tilgung | L88: =IF(AND(L83>$F83,L83<($F83+$F98+1)),PPMT($G98,L83-$F83,$F98,-$E98),0) -> 0 | M88: =IF(AND(M83>$F83,M83<($F83+$F98+1)),PPMT($G98,M83-$F83,$F98,-$E98),0) -> 0 | N88: 0 | O88: 0 | P88: 0 | Q88: 0 | R88: 0 | S88: 0 | T88: 0 | U88: 0
A89: TRUE | C89: Einzahlung aus der Investitonstätigkeit (Veräußerungen) | I89: Summe Zinsen DL1+DL2 | L89: =+L85+L87 -> 0 | M89: =+M85+M87 -> 0 | N89: 0 | O89: 0 | P89: 0 | Q89: 0 | R89: 0 | S89: 0 | T89: 0 | U89: 0
A90: TRUE | C90: Einzahlung Kapitaltransfers (IZ Investitionszuschüsse) | I90: Summe Tilgung DL1+DL2 | L90: =+L86+L88 -> 0 | M90: 0 | N90: 0 | O90: 0 | P90: 0 | Q90: 0 | R90: 0 | S90: 0 | T90: 0 | U90: 0
A91: TRUE | C91: Einzahlung Kapitaltransfers (Interessentenbeiträge)
A92: TRUE | C92: Einzahlung Kapitaltransfers (Sonstiges) | I92: Inneres Darlehen
A93: TRUE | C93: Mittel aus OGB für Investitionen (Überschuss nach freier Finanzspitze) | I93: Zinsen Inneres Darlehen IDL | L93: =IF(AND(L83>$F83,L83<($F83+$F99+1)),IPMT($G99,L83-$F83,$F99,-$E99),0) -> 0 | M93: =IF(AND(M83>$F83,M83<($F83+$F99+1)),IPMT($G99,M83-$F83,$F99,-$E99),0) -> 0 | N93: 0 | O93: 0 | P93: 0 | Q93: 0 | R93: 0 | S93: 0 | T93: 0 | U93: 0
A94: TRUE | C94: Entnahmen aus Rücklagen (ZMR) | I94: Tilgung Inneres Darlehen IDL | L94: =IF(AND(L83>$F83,L83<($F83+$F99+1)),PPMT($G99,L83-$F83,$F99,-$E99),0) -> 0 | M94: =IF(AND(M83>$F83,M83<($F83+$F99+1)),PPMT($G99,M83-$F83,$F99,-$E99),0) -> 0 | N94: 0 | O94: 0 | P94: 0 | Q94: 0 | R94: 0 | S94: 0 | T94: 0 | U94: 0
A95: TRUE | C95: Einzahlung aus vorhandenen zweckgebundenen Girokonten
A96: TRUE | F96: LZ in J | G96: Zinssatz | I96: Finanzierungszuschüsse
A97: TRUE | C97: Einzahlung aus Darlehensaufnahme 1 (DL1) / (Finanzierungsleasing) | I97: Perioden Zahlung
A98: TRUE | C98: Einzahlung aus Darlehensaufnahme 2 (DL2) / (Finanzierungsleasing) | I98: FZ Zi | J98: Zinsenzuschuss | L98: =IF(L83>$F83,IF(ISERROR(IPMT($G102,L83-$F83,$F102,-$E102)),0,IPMT($G102,L83-$F83,$F102,-$E102)),0) -> 0 | M98: =IF(M83>$F83,IF(ISERROR(IPMT($G102,M83-$F83,$F102,-$E102)),0,IPMT($G102,M83-$F83,$F102,-$E102)),0) -> 0 | N98: =IF(N83>$F83,IF(ISERROR(IPMT($G102,N83-$F83,$F102,-$E102)),0,IPMT($G102,N83-$F83,$F102,-$E102)),0) -> 0 | O98: 0 | P98: 0 | Q98: 0 | R98: 0 | S98: 0 | T98: 0 | U98: 0
A99: TRUE | C99: Einzahlung aus Aufnahme Inneres Darlehen (IDL) | I99: FZ Bw | J99: Bw Zuschuss | L99: =IF(L83>$F83,IF(ISERROR(PPMT($G102,L83-$F83,$F102,-$E102)),0,PPMT($G102,L83-$F83,$F102,-$E102)),0) -> 0 | M99: =IF(M83>$F83,IF(ISERROR(PPMT($G102,M83-$F83,$F102,-$E102)),0,PPMT($G102,M83-$F83,$F102,-$E102)),0) -> 0 | N99: 0 | O99: 0 | P99: 0 | Q99: 0 | R99: 0 | S99: 0 | T99: 0 | U99: 0
A100: TRUE | C100: Schlüssige Finanzierung | E100: =-E87-E88+E89+E90+E91+E92+E93+E94+E95+E97+E98+E99 -> 0 | I100: Summe Zuschuss FZ | L100: =+L99+L98 -> 0 | M100: 0 | N100: 0 | O100: 0 | P100: 0 | Q100: 0 | R100: 0 | S100: 0 | T100: 0 | U100: 0
A101: TRUE | F101: LZ FZ in J | G101: Barwertzinssatz
A102: TRUE | C102: Finanzierungszusch. FZ (lt. Förderv.) - Zwischenfinanzierung erforderlich | I102: Bauzinsen (DL1 + DL2) | L102: =+F103 -> 0
A103: TRUE | C103: Bauzinsen während der Bauphase | E103: (DL1 + DL2) / 2 * Zinssatz | F103: =+(E98+E97)/2*G103 -> 0 | I103: Betriebskosten | L103: 0 | M103: =+E104 -> 0 | N103: =M103*(1+G104) -> 0 | O103: =N103*(1+G104) -> 0 | P103: =O103*(1+G104) -> 0 | Q103: =P103*(1+G104) -> 0 | R103: =Q103*(1+G104) -> 0 | S103: =R103*(1+G104) -> 0 | T103: =S103*(1+G104) -> 0 | U103: =T103*(1+G104) -> 0
A104: TRUE | C104: Betriebskostenveränderung (+/-) durch Invest. | F104: Steigerung p.a.
A105: TRUE
A106: TRUE | C106: Liquiditätserfordernis aus Investitionstätigkeit (ohne Rückzahlung Inneres Darlehen) | I106: SU | L106: =L89+L90-L100+L102+L103 -> 0 | M106: 0 | N106: 0 | O106: 0 | P106: 0 | Q106: 0 | R106: 0 | S106: 0 | T106: 0 | U106: 0
A107: TRUE
A108: TRUE | C108: Investitions- und Finanzierungsplan | F108: =F83+1 -> 2029 | I108: Finanzschulden | L108: =+F108 -> 2029 | M108: =L108+1 -> 2030 | N108: 2031 | O108: 2032 | P108: 2033 | Q108: 2034 | R108: 2035 | S108: 2036 | T108: 2037 | U108: 2038
A109: TRUE | C109: Neuerrichtung, Erweiterung
A110: TRUE | C110: Leitungskataster | I110: DL1 | J110: Zinsen | L110: =IF(AND(L108>$F108,L108<($F108+$F122+1)),IPMT($G122,L108-$F108,$F122,-$E122),0) -> 0 | M110: =IF(AND(M108>$F108,M108<($F108+$F122+1)),IPMT($G122,M108-$F108,$F122,-$E122),0) -> 0 | N110: =IF(AND(N108>$F108,N108<($F108+$F122+1)),IPMT($G122,N108-$F108,$F122,-$E122),0) -> 0 | O110: =IF(AND(O108>$F108,O108<($F108+$F122+1)),IPMT($G122,O108-$F108,$F122,-$E122),0) -> 0 | P110: =IF(AND(P108>$F108,P108<($F108+$F122+1)),IPMT($G122,P108-$F108,$F122,-$E122),0) -> 0 | Q110: =IF(AND(Q108>$F108,Q108<($F108+$F122+1)),IPMT($G122,Q108-$F108,$F122,-$E122),0) -> 0 | R110: 0 | S110: 0 | T110: 0 | U110: 0
A111: TRUE | C111: Sanierung / Anpassung | J111: Tilgung | L111: =IF(AND(L108>$F108,L108<($F108+$F122+1)), PPMT($G122,L108-$F108,$F122,-$E122),0) -> 0 | M111: =IF(AND(M108>$F108,M108<($F108+$F122+1)), PPMT($G122,M108-$F108,$F122,-$E122),0) -> 0 | N111: =IF(AND(N108>$F108,N108<($F108+$F122+1)), PPMT($G122,N108-$F108,$F122,-$E122),0) -> 0 | O111: =IF(AND(O108>$F108,O108<($F108+$F122+1)), PPMT($G122,O108-$F108,$F122,-$E122),0) -> 0 | P111: =IF(AND(P108>$F108,P108<($F108+$F122+1)), PPMT($G122,P108-$F108,$F122,-$E122),0) -> 0 | Q111: 0 | R111: 0 | S111: 0 | T111: 0 | U111: 0
A112: TRUE | C112: Summe Auszahlung aus der Investitonstätigkeit | E112: =SUM(E109:E111) -> 0 | I112: DL2 | J112: Zinsen | L112: =IF(AND(L108>$F108,L108<($F108+$F123+1)),IPMT($G123,L108-$F108,$F123,-$E123),0) -> 0 | M112: =IF(AND(M108>$F108,M108<($F108+$F123+1)),IPMT($G123,M108-$F108,$F123,-$E123),0) -> 0 | N112: =IF(AND(N108>$F108,N108<($F108+$F123+1)),IPMT($G123,N108-$F108,$F123,-$E123),0) -> 0 | O112: =IF(AND(O108>$F108,O108<($F108+$F123+1)),IPMT($G123,O108-$F108,$F123,-$E123),0) -> 0 | P112: 0 | Q112: 0 | R112: 0 | S112: 0 | T112: 0 | U112: 0
A113: TRUE | C113: Auszahlung von Kapitaltransfers (zB kooperative Vorhaben) | J113: Tilgung | L113: =IF(AND(L108>$F108,L108<($F108+$F123+1)),PPMT($G123,L108-$F108,$F123,-$E123),0) -> 0 | M113: =IF(AND(M108>$F108,M108<($F108+$F123+1)),PPMT($G123,M108-$F108,$F123,-$E123),0) -> 0 | N113: 0 | O113: 0 | P113: 0 | Q113: 0 | R113: 0 | S113: 0 | T113: 0 | U113: 0
A114: TRUE | C114: Einzahlung aus der Investitonstätigkeit (Veräußerungen) | I114: Summe Zinsen DL1+DL2 | L114: =+L110+L112 -> 0 | M114: =+M110+M112 -> 0 | N114: 0 | O114: 0 | P114: 0 | Q114: 0 | R114: 0 | S114: 0 | T114: 0 | U114: 0
A115: TRUE | C115: Einzahlung Kapitaltransfers (IZ Investitionszuschüsse) | I115: Summe Tilgung DL1+DL2 | L115: =+L111+L113 -> 0 | M115: 0 | N115: 0 | O115: 0 | P115: 0 | Q115: 0 | R115: 0 | S115: 0 | T115: 0 | U115: 0
A116: TRUE | C116: Einzahlung Kapitaltransfers (Interessentenbeiträge)
A117: TRUE | C117: Einzahlung Kapitaltransfers (Sonstiges) | I117: Inneres Darlehen
A118: TRUE | C118: Mittel aus OGB für Investitionen (Überschuss nach freier Finanzspitze) | I118: Zinsen Inneres Darlehen IDL | L118: =IF(AND(L108>$F108,L108<($F108+$F124+1)),IPMT($G124,L108-$F108,$F124,-$E124),0) -> 0 | M118: =IF(AND(M108>$F108,M108<($F108+$F124+1)),IPMT($G124,M108-$F108,$F124,-$E124),0) -> 0 | N118: 0 | O118: 0 | P118: 0 | Q118: 0 | R118: 0 | S118: 0 | T118: 0 | U118: 0
A119: TRUE | C119: Entnahmen aus Rücklagen (ZMR) | I119: Tilgung Inneres Darlehen IDL | L119: =IF(AND(L108>$F108,L108<($F108+$F124+1)),PPMT($G124,L108-$F108,$F124,-$E124),0) -> 0 | M119: =IF(AND(M108>$F108,M108<($F108+$F124+1)),PPMT($G124,M108-$F108,$F124,-$E124),0) -> 0 | N119: 0 | O119: 0 | P119: 0 | Q119: 0 | R119: 0 | S119: 0 | T119: 0 | U119: 0
A120: TRUE | C120: Einzahlung aus vorhandenen zweckgebundenen Girokonten
A121: TRUE | F121: LZ in J | G121: Zinssatz | I121: Finanzierungszuschüsse
A122: TRUE | C122: Einzahlung aus Darlehensaufnahme 1 (DL1) / (Finanzierungsleasing) | I122: Perioden Zahlung
A123: TRUE | C123: Einzahlung aus Darlehensaufnahme 2 (DL2) / (Finanzierungsleasing) | I123: FZ Zi | J123: Zinsenzuschuss | L123: =IF(L108>$F108,IF(ISERROR(IPMT($G127,L108-$F108,$F127,-$E127)),0,IPMT($G127,L108-$F108,$F127,-$E127)),0) -> 0 | M123: =IF(M108>$F108,IF(ISERROR(IPMT($G127,M108-$F108,$F127,-$E127)),0,IPMT($G127,M108-$F108,$F127,-$E127)),0) -> 0 | N123: =IF(N108>$F108,IF(ISERROR(IPMT($G127,N108-$F108,$F127,-$E127)),0,IPMT($G127,N108-$F108,$F127,-$E127)),0) -> 0 | O123: 0 | P123: 0 | Q123: 0 | R123: 0 | S123: 0 | T123: 0 | U123: 0
A124: TRUE | C124: Einzahlung aus Aufnahme Inneres Darlehen (IDL) | I124: FZ Bw | J124: Bw Zuschuss | L124: =IF(L108>$F108,IF(ISERROR(PPMT($G127,L108-$F108,$F127,-$E127)),0,PPMT($G127,L108-$F108,$F127,-$E127)),0) -> 0 | M124: =IF(M108>$F108,IF(ISERROR(PPMT($G127,M108-$F108,$F127,-$E127)),0,PPMT($G127,M108-$F108,$F127,-$E127)),0) -> 0 | N124: 0 | O124: 0 | P124: 0 | Q124: 0 | R124: 0 | S124: 0 | T124: 0 | U124: 0
A125: TRUE | C125: Schlüssige Finanzierung | E125: =-E112-E113+E114+E115+E116+E117+E118+E119+E120+E122+E123+E124 -> 0 | I125: Summe Zuschuss FZ | L125: =+L124+L123 -> 0 | M125: 0 | N125: 0 | O125: 0 | P125: 0 | Q125: 0 | R125: 0 | S125: 0 | T125: 0 | U125: 0
A126: TRUE | F126: LZ FZ in J | G126: Barwertzinssatz
A127: TRUE | C127: Finanzierungszusch. FZ (lt. Förderv.) - Zwischenfinanzierung erforderlich | I127: Bauzinsen (DL1 + DL2) | L127: =+F128 -> 0
A128: TRUE | C128: Bauzinsen während der Bauphase | E128: (DL1 + DL2) / 2 * Zinssatz | F128: =+(E123+E122)/2*G128 -> 0 | I128: Betriebskosten | L128: 0 | M128: =+E129 -> 0 | N128: =M128*(1+G129) -> 0 | O128: =N128*(1+G129) -> 0 | P128: =O128*(1+G129) -> 0 | Q128: =P128*(1+G129) -> 0 | R128: =Q128*(1+G129) -> 0 | S128: =R128*(1+G129) -> 0 | T128: =S128*(1+G129) -> 0 | U128: =T128*(1+G129) -> 0
A129: TRUE | C129: Betriebskostenveränderung (+/-) durch Invest. | F129: Steigerung p.a.
A130: TRUE
A131: TRUE | C131: Liquiditätserfordernis aus Investitionstätigkeit (ohne Rückzahlung Inneres Darlehen) | I131: SU | L131: =L114+L115-L125+L127+L128 -> 0 | M131: 0 | N131: 0 | O131: 0 | P131: 0 | Q131: 0 | R131: 0 | S131: 0 | T131: 0 | U131: 0
A132: TRUE
A133: TRUE | C133: Investitions- und Finanzierungsplan | F133: =F108+1 -> 2030 | I133: Finanzschulden | L133: =+F133 -> 2030 | M133: =L133+1 -> 2031 | N133: 2032 | O133: 2033 | P133: 2034 | Q133: 2035 | R133: 2036 | S133: 2037 | T133: 2038 | U133: 2039
A134: TRUE | C134: Neuerrichtung, Erweiterung
A135: TRUE | C135: Leitungskataster | I135: DL1 | J135: Zinsen | L135: =IF(AND(L133>$F133,L133<($F133+$F147+1)),IPMT($G147,L133-$F133,$F147,-$E147),0) -> 0 | M135: =IF(AND(M133>$F133,M133<($F133+$F147+1)),IPMT($G147,M133-$F133,$F147,-$E147),0) -> 0 | N135: =IF(AND(N133>$F133,N133<($F133+$F147+1)),IPMT($G147,N133-$F133,$F147,-$E147),0) -> 0 | O135: =IF(AND(O133>$F133,O133<($F133+$F147+1)),IPMT($G147,O133-$F133,$F147,-$E147),0) -> 0 | P135: =IF(AND(P133>$F133,P133<($F133+$F147+1)),IPMT($G147,P133-$F133,$F147,-$E147),0) -> 0 | Q135: =IF(AND(Q133>$F133,Q133<($F133+$F147+1)),IPMT($G147,Q133-$F133,$F147,-$E147),0) -> 0 | R135: 0 | S135: 0 | T135: 0 | U135: 0
A136: TRUE | C136: Sanierung / Anpassung | J136: Tilgung | L136: =IF(AND(L133>$F133,L133<($F133+$F147+1)), PPMT($G147,L133-$F133,$F147,-$E147),0) -> 0 | M136: =IF(AND(M133>$F133,M133<($F133+$F147+1)), PPMT($G147,M133-$F133,$F147,-$E147),0) -> 0 | N136: =IF(AND(N133>$F133,N133<($F133+$F147+1)), PPMT($G147,N133-$F133,$F147,-$E147),0) -> 0 | O136: =IF(AND(O133>$F133,O133<($F133+$F147+1)), PPMT($G147,O133-$F133,$F147,-$E147),0) -> 0 | P136: =IF(AND(P133>$F133,P133<($F133+$F147+1)), PPMT($G147,P133-$F133,$F147,-$E147),0) -> 0 | Q136: 0 | R136: 0 | S136: 0 | T136: 0 | U136: 0
A137: TRUE | C137: Summe Auszahlung aus der Investitonstätigkeit | E137: =SUM(E134:E136) -> 0 | I137: DL2 | J137: Zinsen | L137: =IF(AND(L133>$F133,L133<($F133+$F148+1)),IPMT($G148,L133-$F133,$F148,-$E148),0) -> 0 | M137: =IF(AND(M133>$F133,M133<($F133+$F148+1)),IPMT($G148,M133-$F133,$F148,-$E148),0) -> 0 | N137: =IF(AND(N133>$F133,N133<($F133+$F148+1)),IPMT($G148,N133-$F133,$F148,-$E148),0) -> 0 | O137: =IF(AND(O133>$F133,O133<($F133+$F148+1)),IPMT($G148,O133-$F133,$F148,-$E148),0) -> 0 | P137: 0 | Q137: 0 | R137: 0 | S137: 0 | T137: 0 | U137: 0
A138: TRUE | C138: Auszahlung von Kapitaltransfers (zB kooperative Vorhaben) | J138: Tilgung | L138: =IF(AND(L133>$F133,L133<($F133+$F148+1)),PPMT($G148,L133-$F133,$F148,-$E148),0) -> 0 | M138: =IF(AND(M133>$F133,M133<($F133+$F148+1)),PPMT($G148,M133-$F133,$F148,-$E148),0) -> 0 | N138: 0 | O138: 0 | P138: 0 | Q138: 0 | R138: 0 | S138: 0 | T138: 0 | U138: 0
A139: TRUE | C139: Einzahlung aus der Investitonstätigkeit (Veräußerungen) | I139: Summe Zinsen DL1+DL2 | L139: =+L135+L137 -> 0 | M139: =+M135+M137 -> 0 | N139: 0 | O139: 0 | P139: 0 | Q139: 0 | R139: 0 | S139: 0 | T139: 0 | U139: 0
A140: TRUE | C140: Einzahlung Kapitaltransfers (IZ Investitionszuschüsse) | I140: Summe Tilgung DL1+DL2 | L140: =+L136+L138 -> 0 | M140: 0 | N140: 0 | O140: 0 | P140: 0 | Q140: 0 | R140: 0 | S140: 0 | T140: 0 | U140: 0
A141: TRUE | C141: Einzahlung Kapitaltransfers (Interessentenbeiträge)
A142: TRUE | C142: Einzahlung Kapitaltransfers (Sonstiges) | I142: Inneres Darlehen
A143: TRUE | C143: Mittel aus OGB für Investitionen (Überschuss nach freier Finanzspitze) | I143: Zinsen Inneres Darlehen IDL | L143: =IF(AND(L133>$F133,L133<($F133+$F149+1)),IPMT($G149,L133-$F133,$F149,-$E149),0) -> 0 | M143: =IF(AND(M133>$F133,M133<($F133+$F149+1)),IPMT($G149,M133-$F133,$F149,-$E149),0) -> 0 | N143: 0 | O143: 0 | P143: 0 | Q143: 0 | R143: 0 | S143: 0 | T143: 0 | U143: 0
A144: TRUE | C144: Entnahmen aus Rücklagen (ZMR) | I144: Tilgung Inneres Darlehen IDL | L144: =IF(AND(L133>$F133,L133<($F133+$F149+1)),PPMT($G149,L133-$F133,$F149,-$E149),0) -> 0 | M144: =IF(AND(M133>$F133,M133<($F133+$F149+1)),PPMT($G149,M133-$F133,$F149,-$E149),0) -> 0 | N144: 0 | O144: 0 | P144: 0 | Q144: 0 | R144: 0 | S144: 0 | T144: 0 | U144: 0
A145: TRUE | C145: Einzahlung aus vorhandenen zweckgebundenen Girokonten
A146: TRUE | F146: LZ in J | G146: Zinssatz | I146: Finanzierungszuschüsse
A147: TRUE | C147: Einzahlung aus Darlehensaufnahme 1 (DL1) / (Finanzierungsleasing) | I147: Perioden Zahlung
A148: TRUE | C148: Einzahlung aus Darlehensaufnahme 2 (DL2) / (Finanzierungsleasing) | I148: FZ Zi | J148: Zinsenzuschuss | L148: =IF(L133>$F133,IF(ISERROR(IPMT($G152,L133-$F133,$F152,-$E152)),0,IPMT($G152,L133-$F133,$F152,-$E152)),0) -> 0 | M148: =IF(M133>$F133,IF(ISERROR(IPMT($G152,M133-$F133,$F152,-$E152)),0,IPMT($G152,M133-$F133,$F152,-$E152)),0) -> 0 | N148: =IF(N133>$F133,IF(ISERROR(IPMT($G152,N133-$F133,$F152,-$E152)),0,IPMT($G152,N133-$F133,$F152,-$E152)),0) -> 0 | O148: 0 | P148: 0 | Q148: 0 | R148: 0 | S148: 0 | T148: 0 | U148: 0
A149: TRUE | C149: Einzahlung aus Aufnahme Inneres Darlehen (IDL) | I149: FZ Bw | J149: Bw Zuschuss | L149: =IF(L133>$F133,IF(ISERROR(PPMT($G152,L133-$F133,$F152,-$E152)),0,PPMT($G152,L133-$F133,$F152,-$E152)),0) -> 0 | M149: =IF(M133>$F133,IF(ISERROR(PPMT($G152,M133-$F133,$F152,-$E152)),0,PPMT($G152,M133-$F133,$F152,-$E152)),0) -> 0 | N149: 0 | O149: 0 | P149: 0 | Q149: 0 | R149: 0 | S149: 0 | T149: 0 | U149: 0
A150: TRUE | C150: Schlüssige Finanzierung | E150: =-E137-E138+E139+E140+E141+E142+E143+E144+E145+E147+E148+E149 -> 0 | I150: Summe Zuschuss FZ | L150: =+L149+L148 -> 0 | M150: 0 | N150: 0 | O150: 0 | P150: 0 | Q150: 0 | R150: 0 | S150: 0 | T150: 0 | U150: 0
A151: TRUE | F151: LZ FZ in J | G151: Barwertzinssatz
A152: TRUE | C152: Finanzierungszusch. FZ (lt. Förderv.) - Zwischenfinanzierung erforderlich | I152: Bauzinsen (DL1 + DL2) | L152: =+F153 -> 0
A153: TRUE | C153: Bauzinsen während der Bauphase | E153: (DL1 + DL2) / 2 * Zinssatz | F153: =+(E148+E147)/2*G153 -> 0 | I153: Betriebskosten | L153: 0 | M153: =+E154 -> 0 | N153: =M153*(1+G154) -> 0 | O153: =N153*(1+G154) -> 0 | P153: =O153*(1+G154) -> 0 | Q153: =P153*(1+G154) -> 0 | R153: =Q153*(1+G154) -> 0 | S153: =R153*(1+G154) -> 0 | T153: =S153*(1+G154) -> 0 | U153: =T153*(1+G154) -> 0
A154: TRUE | C154: Betriebskostenveränderung (+/-) durch Invest. | F154: Steigerung p.a.
A155: TRUE
A156: TRUE | C156: Liquiditätserfordernis aus Investitionstätigkeit (ohne Rückzahlung Inneres Darlehen) | I156: SU | L156: =L139+L140-L150+L152+L153 -> 0 | M156: 0 | N156: 0 | O156: 0 | P156: 0 | Q156: 0 | R156: 0 | S156: 0 | T156: 0 | U156: 0
A157: TRUE
A158: TRUE | C158: Investitions- und Finanzierungsplan | F158: =F133+1 -> 2031 | I158: Finanzschulden | L158: =+F158 -> 2031 | M158: =L158+1 -> 2032 | N158: 2033 | O158: 2034 | P158: 2035 | Q158: 2036 | R158: 2037 | S158: 2038 | T158: 2039 | U158: 2040
A159: TRUE | C159: Neuerrichtung, Erweiterung
A160: TRUE | C160: Leitungskataster | I160: DL1 | J160: Zinsen | L160: =IF(AND(L158>$F158,L158<($F158+$F172+1)),IPMT($G172,L158-$F158,$F172,-$E172),0) -> 0 | M160: =IF(AND(M158>$F158,M158<($F158+$F172+1)),IPMT($G172,M158-$F158,$F172,-$E172),0) -> 0 | N160: =IF(AND(N158>$F158,N158<($F158+$F172+1)),IPMT($G172,N158-$F158,$F172,-$E172),0) -> 0 | O160: =IF(AND(O158>$F158,O158<($F158+$F172+1)),IPMT($G172,O158-$F158,$F172,-$E172),0) -> 0 | P160: =IF(AND(P158>$F158,P158<($F158+$F172+1)),IPMT($G172,P158-$F158,$F172,-$E172),0) -> 0 | Q160: =IF(AND(Q158>$F158,Q158<($F158+$F172+1)),IPMT($G172,Q158-$F158,$F172,-$E172),0) -> 0 | R160: 0 | S160: 0 | T160: 0 | U160: 0
A161: TRUE | C161: Sanierung / Anpassung | J161: Tilgung | L161: =IF(AND(L158>$F158,L158<($F158+$F172+1)), PPMT($G172,L158-$F158,$F172,-$E172),0) -> 0 | M161: =IF(AND(M158>$F158,M158<($F158+$F172+1)), PPMT($G172,M158-$F158,$F172,-$E172),0) -> 0 | N161: =IF(AND(N158>$F158,N158<($F158+$F172+1)), PPMT($G172,N158-$F158,$F172,-$E172),0) -> 0 | O161: =IF(AND(O158>$F158,O158<($F158+$F172+1)), PPMT($G172,O158-$F158,$F172,-$E172),0) -> 0 | P161: =IF(AND(P158>$F158,P158<($F158+$F172+1)), PPMT($G172,P158-$F158,$F172,-$E172),0) -> 0 | Q161: 0 | R161: 0 | S161: 0 | T161: 0 | U161: 0
A162: TRUE | C162: Summe Auszahlung aus der Investitonstätigkeit | E162: =SUM(E159:E161) -> 0 | I162: DL2 | J162: Zinsen | L162: =IF(AND(L158>$F158,L158<($F158+$F173+1)),IPMT($G173,L158-$F158,$F173,-$E173),0) -> 0 | M162: =IF(AND(M158>$F158,M158<($F158+$F173+1)),IPMT($G173,M158-$F158,$F173,-$E173),0) -> 0 | N162: =IF(AND(N158>$F158,N158<($F158+$F173+1)),IPMT($G173,N158-$F158,$F173,-$E173),0) -> 0 | O162: =IF(AND(O158>$F158,O158<($F158+$F173+1)),IPMT($G173,O158-$F158,$F173,-$E173),0) -> 0 | P162: 0 | Q162: 0 | R162: 0 | S162: 0 | T162: 0 | U162: 0
A163: TRUE | C163: Auszahlung von Kapitaltransfers (zB kooperative Vorhaben) | J163: Tilgung | L163: =IF(AND(L158>$F158,L158<($F158+$F173+1)),PPMT($G173,L158-$F158,$F173,-$E173),0) -> 0 | M163: =IF(AND(M158>$F158,M158<($F158+$F173+1)),PPMT($G173,M158-$F158,$F173,-$E173),0) -> 0 | N163: 0 | O163: 0 | P163: 0 | Q163: 0 | R163: 0 | S163: 0 | T163: 0 | U163: 0
A164: TRUE | C164: Einzahlung aus der Investitonstätigkeit (Veräußerungen) | I164: Summe Zinsen DL1+DL2 | L164: =+L160+L162 -> 0 | M164: =+M160+M162 -> 0 | N164: 0 | O164: 0 | P164: 0 | Q164: 0 | R164: 0 | S164: 0 | T164: 0 | U164: 0
A165: TRUE | C165: Einzahlung Kapitaltransfers (IZ Investitionszuschüsse) | I165: Summe Tilgung DL1+DL2 | L165: =+L161+L163 -> 0 | M165: 0 | N165: 0 | O165: 0 | P165: 0 | Q165: 0 | R165: 0 | S165: 0 | T165: 0 | U165: 0
A166: TRUE | C166: Einzahlung Kapitaltransfers (Interessentenbeiträge)
A167: TRUE | C167: Einzahlung Kapitaltransfers (Sonstiges) | I167: Inneres Darlehen
A168: TRUE | C168: Mittel aus OGB für Investitionen (Überschuss nach freier Finanzspitze) | I168: Zinsen Inneres Darlehen IDL | L168: =IF(AND(L158>$F158,L158<($F158+$F174+1)),IPMT($G174,L158-$F158,$F174,-$E174),0) -> 0 | M168: =IF(AND(M158>$F158,M158<($F158+$F174+1)),IPMT($G174,M158-$F158,$F174,-$E174),0) -> 0 | N168: 0 | O168: 0 | P168: 0 | Q168: 0 | R168: 0 | S168: 0 | T168: 0 | U168: 0
A169: TRUE | C169: Entnahmen aus Rücklagen (ZMR) | I169: Tilgung Inneres Darlehen IDL | L169: =IF(AND(L158>$F158,L158<($F158+$F174+1)),PPMT($G174,L158-$F158,$F174,-$E174),0) -> 0 | M169: =IF(AND(M158>$F158,M158<($F158+$F174+1)),PPMT($G174,M158-$F158,$F174,-$E174),0) -> 0 | N169: 0 | O169: 0 | P169: 0 | Q169: 0 | R169: 0 | S169: 0 | T169: 0 | U169: 0
A170: TRUE | C170: Einzahlung aus vorhandenen zweckgebundenen Girokonten
A171: TRUE | F171: LZ in J | G171: Zinssatz | I171: Finanzierungszuschüsse
A172: TRUE | C172: Einzahlung aus Darlehensaufnahme 1 (DL1) / (Finanzierungsleasing) | I172: Perioden Zahlung
A173: TRUE | C173: Einzahlung aus Darlehensaufnahme 2 (DL2) / (Finanzierungsleasing) | I173: FZ Zi | J173: Zinsenzuschuss | L173: =IF(L158>$F158,IF(ISERROR(IPMT($G177,L158-$F158,$F177,-$E177)),0,IPMT($G177,L158-$F158,$F177,-$E177)),0) -> 0 | M173: =IF(M158>$F158,IF(ISERROR(IPMT($G177,M158-$F158,$F177,-$E177)),0,IPMT($G177,M158-$F158,$F177,-$E177)),0) -> 0 | N173: =IF(N158>$F158,IF(ISERROR(IPMT($G177,N158-$F158,$F177,-$E177)),0,IPMT($G177,N158-$F158,$F177,-$E177)),0) -> 0 | O173: 0 | P173: 0 | Q173: 0 | R173: 0 | S173: 0 | T173: 0 | U173: 0
A174: TRUE | C174: Einzahlung aus Aufnahme Inneres Darlehen (IDL 1) | I174: FZ Bw | J174: Bw Zuschuss | L174: =IF(L158>$F158,IF(ISERROR(PPMT($G177,L158-$F158,$F177,-$E177)),0,PPMT($G177,L158-$F158,$F177,-$E177)),0) -> 0 | M174: =IF(M158>$F158,IF(ISERROR(PPMT($G177,M158-$F158,$F177,-$E177)),0,PPMT($G177,M158-$F158,$F177,-$E177)),0) -> 0 | N174: 0 | O174: 0 | P174: 0 | Q174: 0 | R174: 0 | S174: 0 | T174: 0 | U174: 0
A175: TRUE | C175: Schlüssige Finanzierung | E175: =-E162-E163+E164+E165+E166+E167+E168+E169+E170+E172+E173+E174 -> 0 | I175: Summe Zuschuss FZ | L175: =+L174+L173 -> 0 | M175: 0 | N175: 0 | O175: 0 | P175: 0 | Q175: 0 | R175: 0 | S175: 0 | T175: 0 | U175: 0
A176: TRUE | F176: LZ FZ in J | G176: Barwertzinssatz
A177: TRUE | C177: Finanzierungszusch. FZ (lt. Förderv.) - Zwischenfinanzierung erforderlich | I177: Bauzinsen (DL1 + DL2) | L177: =+F178 -> 0
A178: TRUE | C178: Bauzinsen während der Bauphase | E178: (DL1 + DL2) / 2 * Zinssatz | F178: =+(E173+E172)/2*G178 -> 0 | I178: Betriebskosten | L178: 0 | M178: =+E179 -> 0 | N178: =M178*(1+G179) -> 0 | O178: =N178*(1+G179) -> 0 | P178: =O178*(1+G179) -> 0 | Q178: =P178*(1+G179) -> 0 | R178: =Q178*(1+G179) -> 0 | S178: =R178*(1+G179) -> 0 | T178: =S178*(1+G179) -> 0 | U178: =T178*(1+G179) -> 0
A179: TRUE | C179: Betriebskostenveränderung (+/-) durch Invest. | F179: Steigerung p.a.
A180: TRUE
A181: TRUE | C181: Liquiditätserfordernis aus Investitionstätigkeit (ohne Rückzahlung Inneres Darlehen) | I181: SU | L181: =L164+L165-L175+L177+L178 -> 0 | M181: 0 | N181: 0 | O181: 0 | P181: 0 | Q181: 0 | R181: 0 | S181: 0 | T181: 0 | U181: 0
A182: TRUE
A183: TRUE | C183: Investitions- und Finanzierungsplan | F183: =F158+1 -> 2032 | I183: Finanzschulden | L183: =+F183 -> 2032 | M183: =L183+1 -> 2033 | N183: 2034 | O183: 2035 | P183: 2036 | Q183: 2037 | R183: 2038 | S183: 2039 | T183: 2040 | U183: 2041
A184: TRUE | C184: Neuerrichtung, Erweiterung
A185: TRUE | C185: Leitungskataster | I185: DL1 | J185: Zinsen | L185: =IF(AND(L183>$F183,L183<($F183+$F197+1)),IPMT($G197,L183-$F183,$F197,-$E197),0) -> 0 | M185: =IF(AND(M183>$F183,M183<($F183+$F197+1)),IPMT($G197,M183-$F183,$F197,-$E197),0) -> 0 | N185: =IF(AND(N183>$F183,N183<($F183+$F197+1)),IPMT($G197,N183-$F183,$F197,-$E197),0) -> 0 | O185: =IF(AND(O183>$F183,O183<($F183+$F197+1)),IPMT($G197,O183-$F183,$F197,-$E197),0) -> 0 | P185: =IF(AND(P183>$F183,P183<($F183+$F197+1)),IPMT($G197,P183-$F183,$F197,-$E197),0) -> 0 | Q185: =IF(AND(Q183>$F183,Q183<($F183+$F197+1)),IPMT($G197,Q183-$F183,$F197,-$E197),0) -> 0 | R185: 0 | S185: 0 | T185: 0 | U185: 0
A186: TRUE | C186: Sanierung / Anpassung | J186: Tilgung | L186: =IF(AND(L183>$F183,L183<($F183+$F197+1)), PPMT($G197,L183-$F183,$F197,-$E197),0) -> 0 | M186: =IF(AND(M183>$F183,M183<($F183+$F197+1)), PPMT($G197,M183-$F183,$F197,-$E197),0) -> 0 | N186: =IF(AND(N183>$F183,N183<($F183+$F197+1)), PPMT($G197,N183-$F183,$F197,-$E197),0) -> 0 | O186: =IF(AND(O183>$F183,O183<($F183+$F197+1)), PPMT($G197,O183-$F183,$F197,-$E197),0) -> 0 | P186: =IF(AND(P183>$F183,P183<($F183+$F197+1)), PPMT($G197,P183-$F183,$F197,-$E197),0) -> 0 | Q186: 0 | R186: 0 | S186: 0 | T186: 0 | U186: 0
A187: TRUE | C187: Summe Auszahlung aus der Investitonstätigkeit | E187: =SUM(E184:E186) -> 0 | I187: DL2 | J187: Zinsen | L187: =IF(AND(L183>$F183,L183<($F183+$F198+1)),IPMT($G198,L183-$F183,$F198,-$E198),0) -> 0 | M187: =IF(AND(M183>$F183,M183<($F183+$F198+1)),IPMT($G198,M183-$F183,$F198,-$E198),0) -> 0 | N187: =IF(AND(N183>$F183,N183<($F183+$F198+1)),IPMT($G198,N183-$F183,$F198,-$E198),0) -> 0 | O187: =IF(AND(O183>$F183,O183<($F183+$F198+1)),IPMT($G198,O183-$F183,$F198,-$E198),0) -> 0 | P187: 0 | Q187: 0 | R187: 0 | S187: 0 | T187: 0 | U187: 0
A188: TRUE | C188: Auszahlung von Kapitaltransfers (zB kooperative Vorhaben) | J188: Tilgung | L188: =IF(AND(L183>$F183,L183<($F183+$F198+1)),PPMT($G198,L183-$F183,$F198,-$E198),0) -> 0 | M188: =IF(AND(M183>$F183,M183<($F183+$F198+1)),PPMT($G198,M183-$F183,$F198,-$E198),0) -> 0 | N188: 0 | O188: 0 | P188: 0 | Q188: 0 | R188: 0 | S188: 0 | T188: 0 | U188: 0
A189: TRUE | C189: Einzahlung aus der Investitonstätigkeit (Veräußerungen) | I189: Summe Zinsen DL1+DL2 | L189: =+L185+L187 -> 0 | M189: =+M185+M187 -> 0 | N189: 0 | O189: 0 | P189: 0 | Q189: 0 | R189: 0 | S189: 0 | T189: 0 | U189: 0
A190: TRUE | C190: Einzahlung Kapitaltransfers (IZ Investitionszuschüsse) | I190: Summe Tilgung DL1+DL2 | L190: =+L186+L188 -> 0 | M190: 0 | N190: 0 | O190: 0 | P190: 0 | Q190: 0 | R190: 0 | S190: 0 | T190: 0 | U190: 0
A191: TRUE | C191: Einzahlung Kapitaltransfers (Interessentenbeiträge)
A192: TRUE | C192: Einzahlung Kapitaltransfers (Sonstiges) | I192: Inneres Darlehen
A193: TRUE | C193: Mittel aus OGB für Investitionen (Überschuss nach freier Finanzspitze) | I193: Zinsen Inneres Darlehen IDL | L193: =IF(AND(L183>$F183,L183<($F183+$F199+1)),IPMT($G199,L183-$F183,$F199,-$E199),0) -> 0 | M193: =IF(AND(M183>$F183,M183<($F183+$F199+1)),IPMT($G199,M183-$F183,$F199,-$E199),0) -> 0 | N193: 0 | O193: 0 | P193: 0 | Q193: 0 | R193: 0 | S193: 0 | T193: 0 | U193: 0
A194: TRUE | C194: Entnahmen aus Rücklagen (ZMR) | I194: Tilgung Inneres Darlehen IDL | L194: =IF(AND(L183>$F183,L183<($F183+$F199+1)),PPMT($G199,L183-$F183,$F199,-$E199),0) -> 0 | M194: =IF(AND(M183>$F183,M183<($F183+$F199+1)),PPMT($G199,M183-$F183,$F199,-$E199),0) -> 0 | N194: 0 | O194: 0 | P194: 0 | Q194: 0 | R194: 0 | S194: 0 | T194: 0 | U194: 0
A195: TRUE | C195: Einzahlung aus vorhandenen zweckgebundenen Girokonten
A196: TRUE | F196: LZ in J | G196: Zinssatz | I196: Finanzierungszuschüsse
A197: TRUE | C197: Einzahlung aus Darlehensaufnahme 1 (DL1) / (Finanzierungsleasing) | I197: Perioden Zahlung
A198: TRUE | C198: Einzahlung aus Darlehensaufnahme 2 (DL2) / (Finanzierungsleasing) | I198: FZ Zi | J198: Zinsenzuschuss | L198: =IF(L183>$F183,IF(ISERROR(IPMT($G202,L183-$F183,$F202,-$E202)),0,IPMT($G202,L183-$F183,$F202,-$E202)),0) -> 0 | M198: =IF(M183>$F183,IF(ISERROR(IPMT($G202,M183-$F183,$F202,-$E202)),0,IPMT($G202,M183-$F183,$F202,-$E202)),0) -> 0 | N198: =IF(N183>$F183,IF(ISERROR(IPMT($G202,N183-$F183,$F202,-$E202)),0,IPMT($G202,N183-$F183,$F202,-$E202)),0) -> 0 | O198: 0 | P198: 0 | Q198: 0 | R198: 0 | S198: 0 | T198: 0 | U198: 0
A199: TRUE | C199: Einzahlung aus Aufnahme Inneres Darlehen (IDL) | I199: FZ Bw | J199: Bw Zuschuss | L199: =IF(L183>$F183,IF(ISERROR(PPMT($G202,L183-$F183,$F202,-$E202)),0,PPMT($G202,L183-$F183,$F202,-$E202)),0) -> 0 | M199: =IF(M183>$F183,IF(ISERROR(PPMT($G202,M183-$F183,$F202,-$E202)),0,PPMT($G202,M183-$F183,$F202,-$E202)),0) -> 0 | N199: 0 | O199: 0 | P199: 0 | Q199: 0 | R199: 0 | S199: 0 | T199: 0 | U199: 0
A200: TRUE | C200: Schlüssige Finanzierung | E200: =-E187-E188+E189+E190+E191+E192+E193+E194+E195+E197+E198+E199 -> 0 | I200: Summe Zuschuss FZ | L200: =+L199+L198 -> 0 | M200: 0 | N200: 0 | O200: 0 | P200: 0 | Q200: 0 | R200: 0 | S200: 0 | T200: 0 | U200: 0
... 57 more rows

Sheet Grafik Liquiditätsplan
C29: SU 31 Summe Einzahlungen operative Gebarung | J29: Saldo (5) Geldfluss aus der voranschlagswirksamen Geb. (SA3 + SA4)
C30: SU 32 Summe Auszahlungen operative Gebarung | J30: Stand HH Rücklagen per 31.12
C31: Freie Finanzspitze (SA 1 - MVAG 361) | J31: davon Stand ZMR (Sparbuch, Sparkonto) per 31.12.
C32: SU 34 Summe Auszahlungen investive Gebarung | J32: Liquide Mittel Ansatz 851 per 31.12.
C33: SU 36 Summe Auszahlungen aus der Finanzierungstätigkeit
A35: ="Investitions- und Liquiditätsplan Abwasserentsorgung Rechnungsabschluss "&wST.Jahr&" "&wST.KLR_Ebene&" "&IF(Liquiditätsplan!B4,"inkl.","exkl.")&" zukünftiger Investitionen" -> Investitions- und Liquiditätsplan Abwasserentsorgung Rechnungsabschluss 2024 inkl. zukünftiger Investitionen
D36: =Liquiditätsplan!K8 -> 2025 | E36: =Liquiditätsplan!L8 -> 2026 | F36: =Liquiditätsplan!M8 -> 2027 | G36: =Liquiditätsplan!N8 -> 2028 | H36: =Liquiditätsplan!O8 -> 2029 | I36: =Liquiditätsplan!P8 -> 2030 | J36: =Liquiditätsplan!Q8 -> 2031 | K36: =Liquiditätsplan!R8 -> 2032 | L36: =Liquiditätsplan!S8 -> 2033 | M36: =Liquiditätsplan!T8 -> 2034
A37: TRUE | C37: SU 31 Summe Einzahlungen operative Gebarung | D37: =IF($A37,Liquiditätsplan!K9,NA()) -> 0 | E37: =IF($A37,Liquiditätsplan!L9,NA()) -> 0 | F37: =IF($A37,Liquiditätsplan!M9,NA()) -> 0 | G37: =IF($A37,Liquiditätsplan!N9,NA()) -> 0 | H37: =IF($A37,Liquiditätsplan!O9,NA()) -> 0 | I37: =IF($A37,Liquiditätsplan!P9,NA()) -> 0 | J37: =IF($A37,Liquiditätsplan!Q9,NA()) -> 0 | K37: =IF($A37,Liquiditätsplan!R9,NA()) -> 0 | L37: =IF($A37,Liquiditätsplan!S9,NA()) -> 0 | M37: =IF($A37,Liquiditätsplan!T9,NA()) -> 0
A38: TRUE | C38: SU 32 Summe Auszahlungen operative Gebarung | D38: =IF($A38,Liquiditätsplan!K21,NA()) -> 0 | E38: =IF($A38,Liquiditätsplan!L21,NA()) -> 0 | F38: =IF($A38,Liquiditätsplan!M21,NA()) -> 0 | G38: =IF($A38,Liquiditätsplan!N21,NA()) -> 0 | H38: =IF($A38,Liquiditätsplan!O21,NA()) -> 0 | I38: =IF($A38,Liquiditätsplan!P21,NA()) -> 0 | J38: =IF($A38,Liquiditätsplan!Q21,NA()) -> 0 | K38: =IF($A38,Liquiditätsplan!R21,NA()) -> 0 | L38: =IF($A38,Liquiditätsplan!S21,NA()) -> 0 | M38: =IF($A38,Liquiditätsplan!T21,NA()) -> 0
A39: TRUE | C39: Freie Finanzspitze (SA 1 - MVAG 361) | D39: =IF($A39,Liquiditätsplan!K42,NA()) -> 0 | E39: =IF($A39,Liquiditätsplan!L42,NA()) -> 0 | F39: =IF($A39,Liquiditätsplan!M42,NA()) -> 0 | G39: =IF($A39,Liquiditätsplan!N42,NA()) -> 0 | H39: =IF($A39,Liquiditätsplan!O42,NA()) -> 0 | I39: =IF($A39,Liquiditätsplan!P42,NA()) -> 0 | J39: =IF($A39,Liquiditätsplan!Q42,NA()) -> 0 | K39: =IF($A39,Liquiditätsplan!R42,NA()) -> 0 | L39: =IF($A39,Liquiditätsplan!S42,NA()) -> 0 | M39: =IF($A39,Liquiditätsplan!T42,NA()) -> 0
A40: TRUE | C40: SU 34 Summe Auszahlungen investive Gebarung | D40: =IF($A40,Liquiditätsplan!K50,NA()) -> 0 | E40: =IF($A40,Liquiditätsplan!L50,NA()) -> 0 | F40: =IF($A40,Liquiditätsplan!M50,NA()) -> 0 | G40: =IF($A40,Liquiditätsplan!N50,NA()) -> 0 | H40: =IF($A40,Liquiditätsplan!O50,NA()) -> 0 | I40: =IF($A40,Liquiditätsplan!P50,NA()) -> 0 | J40: =IF($A40,Liquiditätsplan!Q50,NA()) -> 0 | K40: =IF($A40,Liquiditätsplan!R50,NA()) -> 0 | L40: =IF($A40,Liquiditätsplan!S50,NA()) -> 0 | M40: =IF($A40,Liquiditätsplan!T50,NA()) -> 0
A41: TRUE | C41: SU 36 Summe Auszahlungen aus der Finanzierungstätigkeit | D41: =IF($A41,Liquiditätsplan!K59,NA()) -> 0 | E41: =IF($A41,Liquiditätsplan!L59,NA()) -> 0 | F41: =IF($A41,Liquiditätsplan!M59,NA()) -> 0 | G41: =IF($A41,Liquiditätsplan!N59,NA()) -> 0 | H41: =IF($A41,Liquiditätsplan!O59,NA()) -> 0 | I41: =IF($A41,Liquiditätsplan!P59,NA()) -> 0 | J41: =IF($A41,Liquiditätsplan!Q59,NA()) -> 0 | K41: =IF($A41,Liquiditätsplan!R59,NA()) -> 0 | L41: =IF($A41,Liquiditätsplan!S59,NA()) -> 0 | M41: =IF($A41,Liquiditätsplan!T59,NA()) -> 0
A42: TRUE | C42: Saldo (5) Geldfluss aus der voranschlagswirksamen Geb. (SA3 + SA4) | D42: =IF($A42,Liquiditätsplan!K64,NA()) -> 0 | E42: =IF($A42,Liquiditätsplan!L64,NA()) -> 0 | F42: =IF($A42,Liquiditätsplan!M64,NA()) -> 0 | G42: =IF($A42,Liquiditätsplan!N64,NA()) -> 0 | H42: =IF($A42,Liquiditätsplan!O64,NA()) -> 0 | I42: =IF($A42,Liquiditätsplan!P64,NA()) -> 0 | J42: =IF($A42,Liquiditätsplan!Q64,NA()) -> 0 | K42: =IF($A42,Liquiditätsplan!R64,NA()) -> 0 | L42: =IF($A42,Liquiditätsplan!S64,NA()) -> 0 | M42: =IF($A42,Liquiditätsplan!T64,NA()) -> 0
A43: TRUE | C43: Stand HH Rücklagen per 31.12 | D43: =IF($A43,Liquiditätsplan!K70,NA()) -> 0 | E43: =IF($A43,Liquiditätsplan!L70,NA()) -> 0 | F43: =IF($A43,Liquiditätsplan!M70,NA()) -> 0 | G43: =IF($A43,Liquiditätsplan!N70,NA()) -> 0 | H43: =IF($A43,Liquiditätsplan!O70,NA()) -> 0 | I43: =IF($A43,Liquiditätsplan!P70,NA()) -> 0 | J43: =IF($A43,Liquiditätsplan!Q70,NA()) -> 0 | K43: =IF($A43,Liquiditätsplan!R70,NA()) -> 0 | L43: =IF($A43,Liquiditätsplan!S70,NA()) -> 0 | M43: =IF($A43,Liquiditätsplan!T70,NA()) -> 0
A44: TRUE | C44: davon Stand ZMR (Sparbuch, Sparkonto) per 31.12. | D44: =IF($A44,Liquiditätsplan!K71,NA()) -> 0 | E44: =IF($A44,Liquiditätsplan!L71,NA()) -> 0 | F44: =IF($A44,Liquiditätsplan!M71,NA()) -> 0 | G44: =IF($A44,Liquiditätsplan!N71,NA()) -> 0 | H44: =IF($A44,Liquiditätsplan!O71,NA()) -> 0 | I44: =IF($A44,Liquiditätsplan!P71,NA()) -> 0 | J44: =IF($A44,Liquiditätsplan!Q71,NA()) -> 0 | K44: =IF($A44,Liquiditätsplan!R71,NA()) -> 0 | L44: =IF($A44,Liquiditätsplan!S71,NA()) -> 0 | M44: =IF($A44,Liquiditätsplan!T71,NA()) -> 0
A45: TRUE | C45: Liquide Mittel Ansatz 851 per 31.12. | D45: =IF($A45,Liquiditätsplan!K84,NA()) -> 0 | E45: =IF($A45,Liquiditätsplan!L84,NA()) -> 0 | F45: =IF($A45,Liquiditätsplan!M84,NA()) -> 0 | G45: =IF($A45,Liquiditätsplan!N84,NA()) -> 0 | H45: =IF($A45,Liquiditätsplan!O84,NA()) -> 0 | I45: =IF($A45,Liquiditätsplan!P84,NA()) -> 0 | J45: =IF($A45,Liquiditätsplan!Q84,NA()) -> 0 | K45: =IF($A45,Liquiditätsplan!R84,NA()) -> 0 | L45: =IF($A45,Liquiditätsplan!S84,NA()) -> 0 | M45: =IF($A45,Liquiditätsplan!T84,NA()) -> 0
